{"text_format":"1","workbook":"xlsx","n_sheets":4,"sheets":["Plantilla","SAP","Hoja1","Bancos  y Departamentos"],"not_rendered":{"charts":0,"images":1,"macros":1,"external_links":1,"defined_names":179,"comments":1,"pivot_tables":0},"unopened":[],"bounds":{"document_bytes":16777216,"sheet_cells":100000,"rows_first":2000,"rows_last":500,"rows_between":2000,"halvings":0,"cell_chars":16384,"cell_head_chars":4096},"cells_cut":0,"cells_raw":0,"read":"whole","date_system":"1900"}

{"sheet":"Plantilla","index":0,"n_rows":56,"n_cols":22,"rows_kept":56,"cut":false,"hidden":false,"merged":[[54,1,54,21],[15,6,15,14],[16,6,16,14],[21,9,21,10],[21,13,21,14],[24,5,24,14],[25,5,25,14],[13,14,13,15],[13,10,13,11],[37,13,37,21],[36,7,36,12],[37,7,37,12],[37,1,37,5],[38,9,38,10],[38,13,38,14],[41,5,41,14],[42,5,42,14],[35,18,35,21],[35,16,35,17],[35,1,35,2],[35,3,35,7],[35,11,35,15],[38,1,38,8],[33,1,34,2],[1,19,2,21],[1,1,4,1],[12,6,12,21],[12,3,12,5],[12,1,12,2],[13,1,13,4],[9,1,11,4],[9,5,11,7],[8,19,8,21],[11,8,11,21],[9,8,9,11],[9,12,9,15],[9,16,9,18],[9,19,9,21],[10,8,10,21],[6,1,6,21],[1,3,2,18],[3,3,4,18],[8,8,8,11],[8,12,8,15],[5,1,5,21],[8,16,8,18],[7,8,7,21],[7,1,8,4],[53,1,53,21],[16,15,16,21],[15,1,15,5],[22,5,22,21],[23,5,23,21],[21,15,21,21],[20,1,20,21],[21,1,21,8],[19,1,19,21],[22,1,25,4],[24,15,24,21],[27,1,27,21],[25,15,25,21],[44,1,44,21],[36,1,36,5],[38,15,38,21],[30,1,30,21],[42,15,42,21],[39,5,39,21],[40,5,40,21],[41,15,41,21],[39,1,42,4],[36,13,36,21],[32,5,32,7],[7,5,8,7],[14,1,14,4],[18,1,18,5],[17,7,17,12],[18,7,18,12],[15,15,15,21],[16,1,16,5],[47,1,47,7],[48,1,48,7],[33,7,33,8],[34,7,34,8],[33,10,33,11],[33,14,33,15],[35,8,35,10],[26,1,26,21],[47,16,47,17],[48,16,48,17],[29,1,29,21],[43,1,43,21],[17,13,17,21],[18,13,18,21],[17,1,17,5],[32,8,32,11],[32,12,32,15],[31,16,31,17],[28,6,28,12],[28,13,28,15],[28,16,28,21],[31,1,31,4],[31,5,31,7],[31,8,31,11],[31,12,31,15],[31,18,31,21],[32,17,32,19],[28,1,28,5],[32,1,32,4],[33,3,33,5],[34,3,34,5],[50,1,50,7],[51,1,51,7],[45,16,45,21],[45,8,45,15],[46,8,46,9],[46,16,46,17],[46,18,46,19],[46,20,46,21],[46,13,46,15],[47,8,47,9],[48,8,48,9],[51,20,51,21],[47,18,47,19],[48,18,48,19],[49,18,49,19],[50,18,50,19],[51,18,51,19],[51,8,51,9],[49,1,49,7],[50,8,50,9],[47,20,47,21],[48,20,48,21],[49,20,49,21],[50,20,50,21],[51,13,51,15],[45,1,46,7],[49,16,49,17],[50,16,50,17],[51,16,51,17],[47,13,47,15],[48,13,48,15],[49,13,49,15],[50,13,50,15],[49,8,49,9],[46,10,46,12],[47,10,47,12],[48,10,48,12],[49,10,49,12],[50,10,50,12],[51,10,51,12]]}
[]
[null,null,null,"INSCRIPCIÓN Y ACTUALIZACIÓN DE TERCEROS (DEUDORES Y ACREEDORES NACIONALES O DEL EXTERIOR)",null,null,null,null,null,null,null,null,null,null,null,null,null,null,null,"FECHA DE REGISTRO DE LA INFORMACIÓN"]
[]
[null,null,null,"GESTIÓN DEL FINANCIAMIENTO",null,null,null,null,null,null,null,null,null,null,null,null,null,null,null,"DÍA","MES","AÑO"]
[null,null,null,null,null,null,null,null,null,null,null,null,null,null,null,null,null,null,null,28,5,2019]
[]
[null,"INFORMACIÓN GENERAL (Aplica a personas naturales y jurídicas)"]
[null,"TIPO DE TERCERO",null,null,null,"CLASE DE TERCERO",null,null,"PERSONA NATURAL"]
[null,null,null,null,null,null,null,null,"1ER NOMBRE",null,null,null,"2DO NOMBRES",null,null,null,"1ER APELLIDO",null,null,"2DO APELLIDO"]
[null,"ACREEDOR",null,null,null,"Personas naturales"]
[null,null,null,null,null,null,null,null,"PERSONA JURÍDICA (RAZÓN SOCIAL, NOMBRE DE LA EMPRESA)"]
[]
[null,"TIPO DE DOC",null,"Cédula ciudadanía",null,null,"DIRECCIÓN"]
[null,"IDENTIFICACIÓN",null,null,null,"DV","TIPO VÍA","#-NOMBRE VÍA","LETRAS/DIR. EXTRANJERO","CUADRANTE","NÚMERO",null,"LETRAS","CUADRANTE","NÚMERO",null,"COMPL.","NOMBRE \nDEL COMPL.","COMPL.","NOMBRE \nDEL COMPL.","COMPL.","NOMBRE \nDEL COMPL."]
[null,null,null,null,null,null,null,null,null,null,"#",null,null,"","-"]
[null,"PAÍS: ",null,null,null,null,"REGIÓN / POBLACIÓN / DISTRITO / PROVINCIA / DEPARTAMENTO: ",null,null,null,null,null,null,null,null,"MUNICIPIO: "]
[]
[null,"Teléfono: (solo nacionales)",null,null,null,null,"Ext","Tel móvil - # Contacto Extranjero",null,null,null,null,null,"E-mail:"]
[]
[]
[null,"SÓLO APLICA PARA NACIONALES"]
[null,"Código de actividad económica principal: \n(Casilla 46 del RUT - 4 Dígitos)",null,null,null,null,null,null,null,null,null,null,null,null,null,""]
[null,"Entidad bancaria para transferencia electrónica",null,null,null,"Nombre de la entidad bancaria: (APLICA PARA ACREEDORES NACIONALES)"]
[]
[null,null,null,null,null,"Número de la cuenta:",null,null,null,null,null,null,null,null,null,"Tipo de cuenta:"]
[]
[]
[null,"SÓLO APLICA PARA INTERNACIONALES"]
[null,"Tipo de móneda:",null,null,null,null,null,null,null,null,null,null,null,"Otra:"]
[]
[null,"PAGADOR ALTERNATIVO (Autoriza que el pago sea consignado en la cuenta bancaria del sujeto externo a la Universidad)\nSólo aplica a acreedores que no tengan cuenta bancaria."]
[null,"1ER NOMBRE",null,null,null,"2DO NOMBRES",null,null,"1ER APELLIDO",null,null,null,"2DO APELLIDO",null,null,null,"TIPO DE DOC"]
[null,null,null,null,null,null,null,null,null,null,null,null,null,null,null,null,"IDENTIF.",null,null,null,"DV"]
[null,"DIRECCIÓN",null,"TIPO VÍA",null,null,"#-NOMBRE VÍA","LETRAS O PREFIJOS",null,"CUADRANTE","NÚMERO",null,"LETRAS","CUADRANTE","NÚMERO",null,"COMPL.","NOMBRE \nDEL COMPL.","COMPL.","NOMBRE \nDEL COMPL.","COMPL.","NOMBRE\nDEL COMPL."]
[null,null,null,null,null,null,null,null,null,null,"#",null,null,null,"-"]
[null,"País:",null,null,null,null,null,null,"Departamento:",null,null,null,null,null,null,null,"Municipio:"]
[null,"Teléfono: (solo nacionales)",null,null,null,null,"Ext","Teléfono móvil:",null,null,null,null,null,"E-mail:"]
[]
[null,"Código de actividad económica: (Casilla 46 del RUT)"]
[null,"Entidad bancaria para transferencia electrónica",null,null,null,"Nombre de la entidad bancaria:"]
[]
[null,null,null,null,null,"Número de la cuenta:",null,null,null,null,null,null,null,null,null,"Tipo de cuenta:"]
[]
[]
[null,"ANEXOS"]
[null,"DOCUMENTOS",null,null,null,null,null,null,"Acreedor",null,null,null,null,null,null,null,"Deudor"]
[null,null,null,null,null,null,null,null,"PN",null,"PJ",null,null,"Ext",null,null,"PN",null,"PJ",null,"Ext"]
[null,"Copia del Registro Único Tributario (RUT)",null,null,null,null,null,null,"X",null,"X",null,null,null,null,null,"X",null,"X"]
[null,"Copia de la Cédula de ciudadania",null,null,null,null,null,null,"X",null,null,null,null,null,null,null,"X"]
[null,"Pasaporte",null,null,null,null,null,null,null,null,null,null,null,"X",null,null,null,null,null,null,"X"]
[null,"Cédula de extranjeria",null,null,null,null,null,null,null,null,null,null,null,"X",null,null,null,null,null,null,"X"]
[null,"Certificado Bancario",null,null,null,null,null,null,"X",null,"X"]
[]
[null,"NOTAS:"]
[null,"*Declaro que la información aquí registrada concuerda con la realidad y asumo plena responsabilidad de la veracidad de la misma.\n*Cada vez que resulten cambios en los datos aquí registrados, debe informarlos inmediatamente."]
[null,"GF-RI-FO-001, Versión 02"]

{"sheet":"SAP","index":1,"n_rows":28,"n_cols":3,"rows_kept":28,"cut":false,"hidden":false,"merged":[[0,0,0,2]]}
["DATOS"]
["CLASE",{"$f":"IF(Plantilla!B15=\"\",\"\",IF(Plantilla!B10=\"ACREEDOR\",VLOOKUP(Plantilla!F10,COD_GRUPOCUENTAAC,2,0),VLOOKUP(Plantilla!F10,COD_GRUPOCUENTADE,2,0)))","v":""},{"$f":"IF(Plantilla!S32=\"\",\"\",\"K002\")","v":""}]
["NOMBRE 1",{"$f":"TRIM(IFERROR(IF(AND(Plantilla!I10=\"\",Plantilla!Q10=\"\"),LEFT(UPPER(Plantilla!I12&\" \"),MATCH(40,IF(MID(UPPER(Plantilla!I12&\" \"),ROW(2:100),1)=\" \",ROW(2:100),\"\"))+1),UPPER(CONCATENATE(IF(Plantilla!Q10=\"\",\"\",Plantilla!Q10&\" \"),IF(Plantilla!T10=\"\",\"\",Plantilla!T10&\" \"),IF(Plantilla!I10=\"\",\"\",Plantilla!I10&\" \"),IF(Plantilla!M10=\"\",\"\",Plantilla!M10&\" \")))),\"\"))","v":""},{"$f":"TRIM(UPPER(Plantilla!I33&\" \"&Plantilla!M33&\" \"&Plantilla!B33&\" \"&Plantilla!F33))","v":""}]
["NOMBRE 2",{"$f":"IF(LEN(Plantilla!I12)<40,\"\",IFERROR(LEFT(SUBSTITUTE(UPPER(Plantilla!I12&\" \"),(B3)&\" \",\"\"),MATCH(40,IF(MID(SUBSTITUTE(UPPER(Plantilla!I12&\" \"),(B3)&\" \",\"\"),ROW(2:100),1)=\" \",ROW(2:100),\"\"))+1),\"\"))","v":""}]
["# DOC",{"$f":"UPPER(SUBSTITUTE(SUBSTITUTE(SUBSTITUTE(SUBSTITUTE(SUBSTITUTE(Plantilla!B15,\".\",\"\"),\" \",\"\"),\",\",\"\"),\"'\",\"\"),\"-\",\"\"))","v":""},{"$f":"SUBSTITUTE(SUBSTITUTE(SUBSTITUTE(SUBSTITUTE(SUBSTITUTE(Plantilla!R33,\".\",\"\"),\" \",\"\"),\",\",\"\"),\"'\",\"\"),\"-\",\"\")","v":""}]
["1ER NOM Y APEL",{"$f":"TRIM(UPPER(IF(AND(Plantilla!Q10=\"\",Plantilla!I10=\"\"),Plantilla!I12,Plantilla!Q10&\" \"&Plantilla!I10)))","v":""},{"$f":"TRIM(UPPER(Plantilla!I33&\" \"&Plantilla!B33))","v":""}]
["DIRECCIÓN",{"$f":"TRIM(UPPER(IF(AND(Plantilla!G15=\"\",Plantilla!H15=\"\"),CONCATENATE(IF(Plantilla!I15=\"\",\"\",SUBSTITUTE(Plantilla!I15,CHAR(10),\" \")),IFERROR(VLOOKUP(Plantilla!J15,COD_CUADRANTE,2,0),\" \"),IF(Plantilla!L15=\"\",\"\",Plantilla!L15&\" \"),IF(Plantilla!M15=\"\",\"\",Plantilla!M15&\" \"),IFERROR(VLOOKUP(Plantilla!N15,COD_CUADRANTE,2,0),\"\"),IF(Plantilla!P15=\"\",\"\",Plantilla!P15&\" \"),IFERROR(VLOOKUP(Plantilla!Q15,COD_NOMENCLATURA,2,0),\"\"),IF(Plantilla!R15=\"\",\"\",Plantilla!R15&\" \"),IFERROR(VLOOKUP(Plantilla!S15,COD_NOMENCLATURA,2,0),\"\"),IF(Plantilla!T35=\"\",\"\",Plantilla!T35&\" \"),IFERROR(VLOOKUP(Plantilla!U15,COD_NOMENCLATURA,2,0),\"\"),IF(Plantilla!V35=\"\",\"\",Plantilla!V35&\" \")),CONCATENATE(IFERROR(VLOOKUP(Plantilla!G15,COD_NOMENCLATURA,2,0),\"\"),IF(Plantilla!H15=\"\",\"\",Plantilla!H15&\" \"),IF(Plantilla!I15=\"\",\"\",Plantilla!I15&\" \"),IFERROR(VLOOKUP(Plantilla!J15,COD_CUADRANTE,2,0),\"\"),IF(Plantilla!L15=\"\",\"\",Plantilla!L15&\" \"),IF(Plantilla!M15=\"\",\"\",Plantilla!M15&\" \"),IFERROR(VLOOKUP(Plantilla!N15,COD_CUADRANTE,2,0),\"\"),IF(Plantilla!P15=\"\",\"\",Plantilla!P15&\" \"),IFERROR(VLOOKUP(Plantilla!Q15,COD_NOMENCLATURA,2,0),\"\"),IF(Plantilla!R15=\"\",\"\",Plantilla!R15&\" \"),IFERROR(VLOOKUP(Plantilla!S15,COD_NOMENCLATURA,2,0),\"\"),IF(Plantilla!T15=\"\",\"\",Plantilla!T15&\" \"),IFERROR(VLOOKUP(Plantilla!U15,COD_NOMENCLATURA,2,0),\"\"),IF(Plantilla!V15=\"\",\"\",Plantilla!V15&\" \")))))","v":""},{"$f":"TRIM(UPPER(IF(AND(Plantilla!D35=\"\",Plantilla!G35=\"\"),CONCATENATE(IF(Plantilla!H35=\"\",\"\",Plantilla!H35&\" \"),IFERROR(VLOOKUP(Plantilla!J35,COD_CUADRANTE,2,0),\"\"),IF(Plantilla!L35=\"\",\"\",Plantilla!L35&\" \"),IF(Plantilla!M35=\"\",\"\",Plantilla!M35&\" \"),IFERROR(VLOOKUP(Plantilla!N35,COD_CUADRANTE,2,0),\"\"),IF(Plantilla!P35=\"\",\"\",Plantilla!P35&\" \"),IFERROR(VLOOKUP(Plantilla!Q35,COD_NOMENCLATURA,2,0),\"\"),IF(Plantilla!R35=\"\",\"\",Plantilla!R35&\" \"),IFERROR(VLOOKUP(Plantilla!S35,COD_NOMENCLATURA,2,0),\"\"),IF(Plantilla!T35=\"\",\"\",Plantilla!T35&\" \"),IFERROR(VLOOKUP(Plantilla!U35,COD_NOMENCLATURA,2,0),\"\"),IF(Plantilla!V35=\"\",\"\",Plantilla!V35&\" \")),CONCATENATE(IFERROR(VLOOKUP(Plantilla!D35,COD_NOMENCLATURA,2,0),\"\"),IF(Plantilla!G35=\"\",\"\",Plantilla!G35&\" \"),IF(Plantilla!H35=\"\",\"\",Plantilla!H35&\" \"),IFERROR(VLOOKUP(Plantilla!J35,COD_CUADRANTE,2,0),\"\"),IF(Plantilla!L35=\"\",\"\",Plantilla!L35&\" \"),IF(Plantilla!M35=\"\",\"\",Plantilla!M35&\" \"),IFERROR(VLOOKUP(Plantilla!N35,COD_CUADRANTE,2,0),\"\"),IF(Plantilla!P35=\"\",\"\",Plantilla!P35&\" \"),IFERROR(VLOOKUP(Plantilla!Q35,COD_NOMENCLATURA,2,0),\"\"),IF(Plantilla!R35=\"\",\"\",Plantilla!R35&\" \"),IFERROR(VLOOKUP(Plantilla!S35,COD_NOMENCLATURA,2,0),\"\"),IF(Plantilla!T35=\"\",\"\",Plantilla!T35&\" \"),IFERROR(VLOOKUP(Plantilla!U35,COD_NOMENCLATURA,2,0),\"\"),IF(Plantilla!V35=\"\",\"\",Plantilla!V35&\" \")))))","v":""}]
["MUNICIPIO",{"$f":"UPPER(Plantilla!P17)","v":""},{"$f":"UPPER(Plantilla!S36)","v":""}]
["PAÍS",{"$f":"IFERROR(VLOOKUP(Plantilla!B17,COD_PAIS,2,0),\"\")","v":""},{"$f":"IFERROR(VLOOKUP(Plantilla!D36,COD_PAIS,2,0),\"\")","v":""}]
["DEPTO",{"$f":"IFERROR(VLOOKUP(Plantilla!G17,COD_DEP,2,0),\"\")","v":""},{"$f":"IFERROR(VLOOKUP(Plantilla!L36,COD_DEP,2,0),\"\")","v":""}]
["NOMBRES",{"$f":"TRIM(UPPER(IF(OR(ISBLANK(B4),AND(ISTEXT(Plantilla!I10),ISTEXT(Plantilla!Q10))),(IF(RIGHT(CONCATENATE(TRIM(Plantilla!I10),\",\",TRIM(Plantilla!M10)))=\",\",SUBSTITUTE(CONCATENATE(TRIM(Plantilla!I10),\",\",TRIM(Plantilla!M10)),\",\",\"\"),CONCATENATE(TRIM(Plantilla!I10),\",\",TRIM(Plantilla!M10)))),IFERROR(LEFT(SUBSTITUTE(UPPER(Plantilla!I12&\" \"),(B3)&\" \"&B4,\"\"),MATCH(40,IF(MID(SUBSTITUTE(UPPER(Plantilla!I12&\" \"),(B3)&\" \"&B4,\"\"),ROW($2:$99),1)=\" \",ROW($2:$99),\"\"))+1),\"\"))))","v":""},{"$f":"TRIM(UPPER(IF(RIGHT(CONCATENATE(TRIM(Plantilla!B33),\",\",TRIM(Plantilla!F33)))=\",\",SUBSTITUTE(CONCATENATE(TRIM(Plantilla!B33),\",\",TRIM(Plantilla!F33)),\",\",\"\"),CONCATENATE(TRIM(Plantilla!B33),\",\",TRIM(Plantilla!F33)))))","v":""}]
["APELLIDOS",{"$f":"TRIM(UPPER(IF(AND(Plantilla!Q10=\"\",Plantilla!I10=\"\"),IFERROR(LEFT(SUBSTITUTE(UPPER(Plantilla!I12&\" \"),(B3)&\" \"&B4&B11,\"\"),MATCH(40,IF(MID(SUBSTITUTE(UPPER(Plantilla!I12&\" \"),(B3)&\" \"&B4&B11,\"\"),ROW($2:$99),1)=\" \",ROW($2:$99),\"\"))+1),\"\"),IF(RIGHT(CONCATENATE(Plantilla!Q10,\",\",Plantilla!T10))=\",\",SUBSTITUTE(CONCATENATE(TRIM(Plantilla!Q10),\",\",TRIM(Plantilla!T10)),\",\",\"\"),CONCATENATE(TRIM(Plantilla!Q10),\",\",TRIM(Plantilla!T10))))))","v":""},{"$f":"TRIM(UPPER(IF(RIGHT(CONCATENATE(TRIM(Plantilla!I33),\",\",TRIM(Plantilla!M33)))=\",\",SUBSTITUTE(CONCATENATE(TRIM(Plantilla!I33),\",\",TRIM(Plantilla!M33)),\",\",\"\"),CONCATENATE(TRIM(Plantilla!I33),\",\",TRIM(Plantilla!M33)))))","v":""}]
["TEL - EXT",{"$f":"SUBSTITUTE(SUBSTITUTE(SUBSTITUTE(SUBSTITUTE(SUBSTITUTE(IF(Plantilla!B19=\"\",\"\",CONCATENATE(\"(57)(\",IFERROR(VLOOKUP(B10,COD_PREFIJOS,2,0),\"\"),\")\",Plantilla!B19)),\".\",\"\"),\" \",\"\"),\",\",\"\"),\"'\",\"\"),\"-\",\"\")","v":""},{"$f":"SUBSTITUTE(SUBSTITUTE(SUBSTITUTE(SUBSTITUTE(SUBSTITUTE(IF(Plantilla!B38=\"\",\"\",CONCATENATE(\"(57)(\",IFERROR(VLOOKUP(C10,COD_PREFIJOS,2,0),\"\"),\")\",Plantilla!B38)),\".\",\"\"),\" \",\"\"),\",\",\"\"),\"'\",\"\"),\"-\",\"\")","v":""}]
["MÓVIL",{"$f":"SUBSTITUTE(SUBSTITUTE(SUBSTITUTE(SUBSTITUTE(SUBSTITUTE(Plantilla!H19,\".\",\"\"),\" \",\"\"),\",\",\"\"),\"'\",\"\"),\"-\",\"\")","v":""},{"$f":"SUBSTITUTE(SUBSTITUTE(SUBSTITUTE(SUBSTITUTE(SUBSTITUTE(Plantilla!H38,\".\",\"\"),\" \",\"\"),\",\",\"\"),\"'\",\"\"),\"-\",\"\")","v":""}]
["FAX"]
["E-MAIL",{"$f":"LOWER(Plantilla!N19)","v":""},{"$f":"LOWER(Plantilla!N38)","v":""}]
["ID FISCAL",{"$f":"IF(Plantilla!F15=\"\",B5,CONCATENATE(B5,Plantilla!F15))","v":""},{"$f":"IF(Plantilla!V33=\"\",C5,CONCATENATE(C5,Plantilla!V33))","v":""}]
["TIPO NIF",{"$f":"IFERROR(VLOOKUP(Plantilla!D13,COD_TIPODOC,2,0),\"\")","v":13},{"$f":"IF(Plantilla!R33=\"\",\"\",IFERROR(VLOOKUP(Plantilla!S32,COD_TIPODOC,2,0),\"\"))","v":""}]
["CLASE IMP",{"$f":"IF(Plantilla!B15=\"\",\"\",IF(OR(AND(B2=\"K004\",B18=21),AND(B2=\"K004\",B18=22),AND(B2=\"K004\",B18=41),AND(B2=\"K004\",B18=42),AND(B2=\"D004\",B18=21),AND(B2=\"D004\",B18=22),AND(B2=\"D004\",B18=41),AND(B2=\"D004\",B18=42),OR(B2=\"K002\",B2=\"K006\",B2=\"D003\",B2=\"D006\")),\"PN\",\"PJ\"))","v":""},{"$f":"IF(Plantilla!R33=\"\",\"\",IF(OR(AND(C2=\"K004\",C18=21),AND(C2=\"K004\",C18=22),AND(C2=\"K004\",C18=41),AND(C2=\"K004\",C18=42),AND(C2=\"D004\",C18=21),AND(C2=\"D004\",C18=22),AND(C2=\"D004\",C18=41),AND(C2=\"D004\",C18=42),OR(C2=\"K002\",C2=\"K006\",C2=\"D003\",C2=\"D006\")),\"PN\",\"PJ\"))","v":""}]
["PAÍS ",{"$f":"IF(B21=\"\",\"\",\"CO\")","v":""},{"$f":"IF(C21=\"\",\"\",\"CO\")","v":""}]
["COD BANCO",{"$f":"IFERROR(VLOOKUP(Plantilla!F24,COD_BANCOS,2,0),\"\")","v":""},{"$f":"IFERROR(VLOOKUP(Plantilla!F41,COD_BANCOS,2,0),\"\")","v":""}]
["# CUENTA",{"$f":"SUBSTITUTE(SUBSTITUTE(SUBSTITUTE(SUBSTITUTE(SUBSTITUTE(Plantilla!F26,\".\",\"\"),\" \",\"\"),\",\",\"\"),\"'\",\"\"),\"-\",\"\")","v":""},{"$f":"SUBSTITUTE(SUBSTITUTE(SUBSTITUTE(SUBSTITUTE(SUBSTITUTE(Plantilla!F43,\".\",\"\"),\" \",\"\"),\",\",\"\"),\"'\",\"\"),\"-\",\"\")","v":""}]
["CLASE DE CUENT",{"$f":"IFERROR(VLOOKUP(Plantilla!P26,COD_CCUENTA,2,0),\"\")","v":""},{"$f":"IFERROR(VLOOKUP(Plantilla!P43,COD_CCUENTA,2,0),\"\")","v":""}]
["C.CONTABLE",{"$f":"IF(Plantilla!B15=\"\",\"\",IF(B2=\"K006\",2505010090,IF(B2<>\"\",2401010001,\"\")))","v":""},{"$f":"IF(Plantilla!R33=\"\",\"\",IF(C3=\"\",\"\",2401010001))","v":""}]
["CLAVE CLASI",{"$f":"IF(Plantilla!B15=\"\",\"\",IF(Plantilla!B10=\"DEUDOR\",\"031\",\"012\"))","v":""},{"$f":"IF(Plantilla!R33=\"\",\"\",IF(Plantilla!B10=\"DEUDOR\",\"031\",\"012\"))","v":""}]
["GRUPO TES",{"$f":"IFERROR(VLOOKUP(B2,COD_TESORERIA,2,0),\"\")","v":""},{"$f":"IFERROR(VLOOKUP(C2,COD_TESORERIA,2,0),\"\")","v":""}]
["CÓD ACT ECONO",{"$f":"CONCATENATE(Plantilla!J22,Plantilla!L22,Plantilla!M22,Plantilla!N22)","v":""},{"$f":"CONCATENATE(Plantilla!J39,Plantilla!L39,Plantilla!M39,Plantilla!N39)","v":""}]
["MONEDA",{"$f":"IF(Plantilla!D13=\"\",\"\",IF(Plantilla!G29=\"\",\"COP\",IFERROR(VLOOKUP(Plantilla!G29,MONEDAS,2,0),\"\")))","v":"COP"},{"$f":"IF(Plantilla!R33=\"\",\"\",IF(Plantilla!H29=\"\",\"COP\",IFERROR(VLOOKUP(Plantilla!G29,'Bancos  y Departamentos'!AD2:AE210,2,0),\"\")))","v":""}]

{"sheet":"Hoja1","index":2,"n_rows":3,"n_cols":36,"rows_kept":3,"cut":false,"hidden":true,"merged":[]}
[null,"TIPO DE TERCERO","TRATO","1ER NOMBRE O\nRAZÓN SOCIAL (Empresa)","2DO NOMBRE","1ER APELLIDOS","2DO APELLIDOS","TIPO DOCUMENTO","# IDENTIFICACION","DV RUT","A ECON","Tipo de vía","Nom/# vía","Letras/\nPrefijo","CUADRANTE","NÚMERO","Letras/\nPrefijo","CUADRANTE","NÚMERO","ELEMENTO","NOMBRE","ELEMENTO","NOMBRE","ELEMENTO","NOMBRE","PAIS","DEPARTAMENTO","MUNICIPIO","TEL FIJO","EXT","CELULAR","E_MAIL","MONEDA ","BANCO","NUMEROCUENTA","CLASECUENTA"]
[null,{"$f":"IF(Plantilla!F10=\"\",\"\",Plantilla!F10)","v":"Personas naturales"},null,{"$f":"IF(AND(Plantilla!I10=\"\",Plantilla!Q10=\"\"),Plantilla!I12,Plantilla!I10)","v":0},{"$f":"IF(Plantilla!M10=\"\",\"\",Plantilla!M10)","v":""},{"$f":"IF(Plantilla!Q10=\"\",\"\",Plantilla!Q10)","v":""},{"$f":"IF(Plantilla!T10=\"\",\"\",Plantilla!T10)","v":""},{"$f":"IF(Plantilla!D13=\"\",\"\",Plantilla!D13)","v":"Cédula ciudadanía"},{"$f":"IF(Plantilla!B15=\"\",\"\",Plantilla!B15)","v":""},{"$f":"IF(Plantilla!F15=\"\",\"\",Plantilla!F15)","v":""},{"$f":"IF(NOT(ISBLANK(Plantilla!J22)),CONCATENATE(Plantilla!J22,Plantilla!L22,Plantilla!M22,Plantilla!N22),\"\")","v":""},{"$f":"IF(Plantilla!G15=\"\",\"\",Plantilla!G15)","v":""},{"$f":"IF(Plantilla!H15=\"\",\"\",Plantilla!H15)","v":""},{"$f":"IF(Plantilla!I15=\"\",\"\",Plantilla!I15)","v":""},{"$f":"IF(Plantilla!J15=\"\",\"\",Plantilla!J15)","v":""},{"$f":"IF(Plantilla!L15=\"\",\"\",Plantilla!L15)","v":""},{"$f":"IF(Plantilla!M15=\"\",\"\",Plantilla!M15)","v":""},{"$f":"IF(Plantilla!N15=\"\",\"\",Plantilla!N15)","v":""},{"$f":"IF(Plantilla!P15=\"\",\"\",Plantilla!P15)","v":""},{"$f":"IF(Plantilla!Q15=\"\",\"\",Plantilla!Q15)","v":""},{"$f":"IF(Plantilla!R15=\"\",\"\",Plantilla!R15)","v":""},{"$f":"IF(Plantilla!S15=\"\",\"\",Plantilla!S15)","v":""},{"$f":"IF(Plantilla!R15=\"\",\"\",Plantilla!R15)","v":""},{"$f":"IF(Plantilla!U15=\"\",\"\",Plantilla!U15)","v":""},{"$f":"IF(Plantilla!V15=\"\",\"\",Plantilla!V15)","v":""},{"$f":"IF(Plantilla!B17=\"\",\"\",Plantilla!B17)","v":""},{"$f":"IF(Plantilla!G17=\"\",\"\",Plantilla!G17)","v":""},{"$f":"IF(Plantilla!P17=\"\",\"\",Plantilla!P17)","v":""},{"$f":"IF(Plantilla!B19=\"\",\"\",Plantilla!B19)","v":""},{"$f":"IF(Plantilla!G19=\"\",\"\",Plantilla!G19)","v":""},{"$f":"IF(Plantilla!H19=\"\",\"\",Plantilla!H19)","v":""},{"$f":"IF(Plantilla!N19=\"\",\"\",Plantilla!N19)","v":""},{"$f":"IF(Plantilla!G29=\"\",\"\",Plantilla!G29)","v":""},{"$f":"IF(Plantilla!F24=\"\",\"\",Plantilla!F24)","v":""},{"$f":"IF(Plantilla!F26=\"\",\"\",Plantilla!F26)","v":""},{"$f":"IF(Plantilla!P26=\"\",\"\",Plantilla!P26)","v":""}]
[null,{"$f":"IF(AND(Plantilla!F10<>\"\",Plantilla!R33<>\"\",Plantilla!S32<>\"\"),Plantilla!F10,\"\")","v":""},{"$f":"IF(Plantilla!F11=\"\",\"\",Plantilla!F11)","v":""},{"$f":"IF(Plantilla!B33=\"\",\"\",Plantilla!B33)","v":""},{"$f":"IF(Plantilla!F33=\"\",\"\",Plantilla!F33)","v":""},{"$f":"IF(Plantilla!I33=\"\",\"\",Plantilla!I33)","v":""},{"$f":"IF(Plantilla!M33=\"\",\"\",Plantilla!M33)","v":""},{"$f":"IF(Plantilla!S32=\"\",\"\",Plantilla!S32)","v":""},{"$f":"IF(Plantilla!R33=\"\",\"\",Plantilla!R33)","v":""},{"$f":"IF(Plantilla!V33=\"\",\"\",Plantilla!V33)","v":""},{"$f":"IF(NOT(ISBLANK(Plantilla!J39)),CONCATENATE(Plantilla!J39,Plantilla!L39,Plantilla!M39,Plantilla!N39),\"\")","v":""},{"$f":"IF(Plantilla!D35=\"\",\"\",Plantilla!D35)","v":""},{"$f":"IF(Plantilla!G35=\"\",\"\",Plantilla!G35)","v":""},{"$f":"IF(Plantilla!H35=\"\",\"\",Plantilla!H35)","v":""},{"$f":"IF(Plantilla!J35=\"\",\"\",Plantilla!J35)","v":""},{"$f":"IF(Plantilla!L35=\"\",\"\",Plantilla!L35)","v":""},{"$f":"IF(Plantilla!M35=\"\",\"\",Plantilla!M35)","v":""},{"$f":"IF(Plantilla!N35=\"\",\"\",Plantilla!N35)","v":""},{"$f":"IF(Plantilla!P35=\"\",\"\",Plantilla!P35)","v":""},{"$f":"IF(Plantilla!Q35=\"\",\"\",Plantilla!Q35)","v":""},{"$f":"IF(Plantilla!R35=\"\",\"\",Plantilla!R35)","v":""},{"$f":"IF(Plantilla!S35=\"\",\"\",Plantilla!S35)","v":""},{"$f":"IF(Plantilla!T35=\"\",\"\",Plantilla!T35)","v":""},{"$f":"IF(Plantilla!U35=\"\",\"\",Plantilla!U35)","v":""},{"$f":"IF(Plantilla!V35=\"\",\"\",Plantilla!V35)","v":""},{"$f":"IF(Plantilla!D36=\"\",\"\",Plantilla!D36)","v":""},{"$f":"IF(Plantilla!L36=\"\",\"\",Plantilla!L36)","v":""},{"$f":"IF(Plantilla!S36=\"\",\"\",Plantilla!S36)","v":""},{"$f":"IF(Plantilla!B38=\"\",\"\",Plantilla!B38)","v":""},{"$f":"IF(Plantilla!G38=\"\",\"\",Plantilla!G38)","v":""},{"$f":"IF(Plantilla!H38=\"\",\"\",Plantilla!H38)","v":""},{"$f":"IF(Plantilla!N38=\"\",\"\",Plantilla!N38)","v":""},{"$f":"IF(Plantilla!G30=\"\",\"\",Plantilla!G30)","v":""},{"$f":"IF(Plantilla!F41=\"\",\"\",Plantilla!F41)","v":""},{"$f":"IF(Plantilla!F43=\"\",\"\",Plantilla!F43)","v":""},{"$f":"IF(Plantilla!P43=\"\",\"\",Plantilla!P43)","v":""}]

{"sheet":"Bancos  y Departamentos","index":3,"n_rows":1485,"n_cols":164,"rows_kept":1485,"cut":false,"hidden":true,"merged":[]}
["BANCOS","COD",null,"PAISES","COD",null,"DEPARTAMENTOS","COD","PREFIJO","NOMBRE","Nomenclatura",null,"TIPOSAP","COD",null,"GRUPOCUENTA","COD","COD",null,"COD","TRATO",null,"CLASEIMPUESTO","COD",null,"CLASECUENTA","COD",null,"GRUPOTESORERIA","MONEDA","ADP","05","08",11,13,15,17,18,19,20,23,25,27,41,44,47,50,52,54,63,66,68,70,73,76,81,85,86,88,91,94,95,97,99,null,null,"CO","COD","AR","COD","DE","COD","AU","COD","AT","COD","BE","COD","BR","COD","BG","COD","CA","COD","CL","COD","CN","COD","KR","COD","HR","COD","DK","COD","SK","COD","SI","COD","ES","COD","US","COD","COD","RU","COD","PH","COD","FI","COD","FR","COD","GR","COD","HU","COD","IN","COD","IE","COD","IL","COD","IT","COD","JP","COD","KZ","COD","MX","COD","NO","COD","NZ","COD","NL","COD","PE","COD","PL","COD","PT","COD","GB","COD","CZ","COD","RO","COD","SG","COD","ZA","COD","SE","COD","CH","COD","TH","COD","TW","COD","TR","COD","UA","COD","VE"]
["BANCAMIA","59",null,"COLOMBIA","CO",null,"ANTIOQUIA","05",4,"AEROPUERTO","AER ",null,"Cédula ciudadanía",13,null,"Personas naturales","K002","K2",null,null,"SEÑOR",null,"Persona Jurídica","PJ",null,"CUENTA DE AHORROS","02",null,"Personas naturales","Peso colombiano","COP","ABEJORRAL","BARANOA","BOGOTA, D.C.","ACHI","ALMEIDA","AGUADAS","ALBANIA","ALMAGUER","AGUACHICA","AYAPEL","AGUA DE DIOS","ACANDI","ACEVEDO","ALBANIA","ALGARROBO","ACACIAS","ALBAN","ABREGO","ARMENIA","APIA","AGUADA","BUENAVISTA","ALPUJARRA","ALCALA","ARAUCA","AGUAZUL","COLON","PROVIDENCIA","EL ENCANTO","BARRANCO MINAS","CALAMAR","CARURU","LA PRIMAVERA",null,null,"ANTIOQUIA","05","BUENOS AIRES","01","BADEN-WURTEMBERG",8,"AUST CAPITAL TERR","ACT","BURGENLAND","B","AMBERES",1,"ACRE","AC","BURGAS",1,"ALBERTA","AB","I - IQUIQUE",1,"ANHUI",110,"BUSAN",12,"BJELOVARSKO-BILOGORS","G00","HOVEDSTADEN",1,"BRATISLAVA",1,"AJDOVSCINA",1,"ÁLAVA",1,"ALABAMA","AL",79,"ÁREA AUTONOM.JUDÍA",5,"BICOL",1,"AHVENANMAA",1,"AIN",1,"AITOLIA KAI AKARNAN",1,"BACS-KISKUN",26,"ANDAMAN Y NICO.IN.","CW","CARLOW",1,"CENTRAL","AG","AGRIGENTO",23,"AICHI",4,"AKMOLINSKAIA","AGS","AGUASCALIENTES",2,"AKERSHUS FYLKE","AKL","AUCKLAND",1,"DRENTHE",11,"AMAZONAS","DSL","DOLNOSLASKIE",42,"ALENTEJO CENTRAL","AB","ABERDEENSHIRE",31,"JIHOCESKY",1,"ALBA","SG","SINGAPUR","EC","EASTERN CAPE",1,"BLEKINGE LÄN","AG","ARGOVIA",1,"AMNAT CHAROEN","FJN","FU-CHIEN",1,"ADANA","CHR","CHERKAS'KA","AMA","AMAZONAS"]
["BANCO AGRARIO S.A.","40",null,"AFGANISTÁN","AF",null,"BOGOTÁ",11,1,"ALMACÉN","ALM ",null,"RUT- NIT",31,null,"Personas Jurídicas","K003","K3",null,null,"SEÑORA",null,"Persona Natural","PN",null,"CUENTA CORRIENTE","01",null,"Personas jurídicas","Dólar americano","USD","ABRIAQUI","BARRANQUILLA",null,"ALTOS DEL ROSARIO","AQUITANIA","ANSERMA","BELEN DE LOS ANDAQUIES","ARGELIA","AGUSTIN CODAZZI","BUENAVISTA","ALBAN","ALTO BAUDO","AGRADO","BARRANCAS","ARACATACA","BARRANCA DE UPIA","ALDANA","ARBOLEDAS","BUENAVISTA","BALBOA","ALBANIA","CAIMITO","ALVARADO","ANDALUCIA","ARAUQUITA","CHAMEZA","LEGUIZAMO","SAN ANDRES","LA CHORRERA","CACAHUAL","EL RETORNO","MITU","PUERTO CARREÑO",null,null,"BOGOTÁ","11","CAPITAL FEDERAL","00","BAJA SAJONIA",3,"AUSTRALIA MERIDIONAL","SA","CARINTIA","K","BRABANTE (FLAMENCO)",2,"ALAGOAS","AL","GRAD SOFIYA",2,"COLUMBIA BRITÁNICA","BC","II - ANTOFAGASTA",2,"BEIJING (PEKÍN)",10,"CHOLLABUK-DO",2,"DUBROVACKO-NERETVANS","T00","MIDTJYLLAND",2,"STREDOSLOVENSKY",3,"BREZICE",2,"ALBACETE",2,"ALASKA","AK",28,"ÁREA DE AMUR",2,"CAGAYAN VALLEY",2,"ETELÄ-SUOMI",2,"AISNE",2,"AKHAIA",2,"BARANYA",1,"ANDRA PRADESH","CN","CAVAN",2,"HAIFA","AL","ALESSANDRIA",5,"AKITA",5,"AKTUBINSKAIA","BC","BAJA CALIFORNIA",9,"AUST-AGDER FYLKE","BOP","BAY OF PLENTY",2,"FLEVOLAND",5,"ANCASH","K-P","KUJAWSKO-POMORSKIE",40,"ALENTEJO LITORAL","AL","ANGLESEY",64,"JIHOMORAVSKY",2,"ARAD",null,null,"FS","FREE STATE",2,"DALARNAS LÄN","AR","AUSSER-RHODEN",2,"ANG THONG","KSH","KAO-HSIUNG",2,"ADIYAMAN","CHG","CHERNIGIVS'KA","ANZ","ANZOATEGUI"]
["BANCO AV VILLAS","52",null,"ALBANIA","AL",null,"AMAZONAS",91,8,"ALTILLO","AL ",null,"Cédula extranjería",22,null,"Extranjeros","K004","K4",null,null,"SEÑORES",null,null,null,null,null,null,null,"Extranjeros","Euro europeo","EUR","ALEJANDRIA","CAMPO DE LA CRUZ",null,"ARENAL","ARCABUCO","ARANZAZU","CARTAGENA DEL CHAIRA","BALBOA","ASTREA","CANALETE","ANAPOIMA","BAGADO","AIPE","DISTRACCION","ARIGUANI","CABUYARO","ANCUYA","BOCHALEMA","CALARCA","BELEN DE UMBRIA","ARATOCA","CHALAN","AMBALEMA","ANSERMANUEVO","CRAVO NORTE","HATO COROZAL","MOCOA",null,"LA PEDRERA","INIRIDA","MIRAFLORES","PACOA","SAN JOSE DE OCUNE",null,null,"AMAZONAS","91","CATAMARCA",2,"BAVIERA",9,"AUTRALIA OCCIDENTAL","WA","BAJA AUSTRIA","NOE","HAINAUT",3,"AMAZONAS","AM","KHASKOVO",3,"MANITOBA","MB","III - COPIAPO",3,"CHONG QING",320,"CHOLLANAM-DO",3,"ISTARSKA","S00","NORDJYLLAND",3,"VYCHODOSLOVENSKY",4,"CELJE",3,"ALICANTE",3,"ARIZONA","AZ",29,"ÁREA DE ARKHANGELSK",3,"CENTRAL LUZON",3,"ITÄ-SUOMI",3,"ALLIER",3,"ARGOLIS",3,"BEKES",2,"ARUNACHAL PRADESH","CE","CLARE",3,"JERUSALÉN","AN","ANCONA",2,"AOMORI","00","ALMATYNSKAIA","BCS","BAJA CALIFORNIA S",6,"BUSKERUD FYLKE","CAN","CANTERBURY",3,"FRISIA",19,"APURIMAC","LDZ","LÓDZKIE",50,"ALGARVE","AN","ANGUS/FORFANSHIRE",41,"KARLOVARSKY",3,"ARGES",null,null,"LP","LIMPOPO",4,"GÄVLEBORGS LÄN","BS","BASILEA CIUDAD",3,"BURIRAM","TPE","T´AI-PEI",3,"AFYON","CHV","CHERNOVITS'KA","APU","APURE"]
["BANCO BOGOTÁ","01",null,"ALEMANIA","DE",null,"ARAUCA",81,7,"ANILLO VIAL","AVIAL ",null,"TAX ID -Doc extranjeros PJ ",44,null,"Entes públicos","K005","K5",null,null,"SEÑOR Y SEÑORA",null,null,null,null,null,null,null,"Entes públicos","(Int.) Dólares americanos (5 decimales)","USDN","AMAGA","CANDELARIA",null,"ARJONA","BELEN","BELALCAZAR","CURILLO","BOLIVAR","BECERRIL","CERETE","ANOLAIMA","BAHIA SOLANO","ALGECIRAS","EL MOLINO","CERRO SAN ANTONIO","CASTILLA LA NUEVA","ARBOLEDA","BUCARASICA","CIRCASIA","DOSQUEBRADAS","BARBOSA","COLOSO","ANZOATEGUI","ARGELIA","FORTUL","LA SALINA","ORITO",null,"LETICIA","LA GUADALUPE","SAN JOSE DEL GUAVIARE","PAPUNAHUA","SANTA RITA",null,null,"ARAUCA","81","CHACO",16,"BERLÍN",11,"NUEVA GALES DEL SUR","NSW","ALTA AUSTRIA","OOE","LIEJA",4,"AMAPÁ","AP","LOVECH",4,"NEW BRUNSWICK","NB","IV - LA SERENA",4,"FUJIAN",150,"CH'UNGCH'ONGBUK-DO",4,"KARLOVACKA ","D00","SJAELLAND",4,"ZAPADOSLOVENSKY",2,"CERKNICA",4,"ALMERÍA",4,"ARKANSAS","AR",30,"ÁREA DE ASTRACÁN",11,"CNTRL MINDANAO",4,"LAPPI",4,"ALPES (ALTA PROVENZ)",4,"ARKADHIA",4,"BEKESCSABA",3,"ASSAM","C","CORK",4,"NORTHERN","AO","AOSTA",12,"CHIBA",6,"ATYRAUSKAIA","CMP","CAMPECHE",20,"FINNMARK FYLKE","HAB","HAWKE´S BAY",4,"GELDERLAND",8,"AREQUIPA","LBL","LUBELSKIE",41,"ALTO ALENTEJO","AT","ANTRIM",52,"KRALOVEHRADECKY",4,"BACAU",null,null,"NC","NORTHERN CAPE",3,"GOTLANDS LÄN","BL","BASILEA PROVINCIA",4,"CHACHOENGSAO","TWN","TAIWÁN",4,"AGRI","DNP","DNIPROPETROVS'KA","ARA","ARAGUA"]
["BANCO CAJA SOCIAL - BCSC S.A.","32",null,"ANDORRA","AD",null,"ATLÁNTICO","08",5,"APARTAMENTO","AP ",null,"Doc identif Extranjero",42,null,"Empleados","K006","K6",null,null,null,null,null,null,null,null,null,null,"Empleados","(Interno) marco alemán (3 decimales)","DEM3","AMALFI","GALAPA",null,"BARRANCO DE LOBA","BERBEO","CHINCHINA","EL DONCELLO","BUENOS AIRES","BOSCONIA","CHIMA","ARBELAEZ","BAJO BAUDO","ALTAMIRA","FONSECA","CHIBOLO","CUBARRAL","BARBACOAS","CACHIRA","CORDOBA","GUATICA","BARICHARA","COROZAL","ARMERO","BOLIVAR","PUERTO RONDON","MANI","PUERTO ASIS",null,"MIRITI-PARANA","MORICHAL",null,"TARAIRA","SANTA ROSALIA",null,null,"ATLÁNTICO","08","CHUBUT",17,"BRANDENBURGO",12,"QUEENSLAND","QLD","SALZBURGO","S","LIMBURGO",5,"BAHÍA","BA","MONTANA",5,"TERRANOVA/LABRADOR","NL","V - VALPARAISO",5,"GANSU",260,"CH'UNGCH'ONGNAM-DO",5,"KOPRIVNICKO-KRIZEVAC","F00","SYDDANMARK",5,null,null,"CRNOMELJ",5,"ASTURIAS",33,"CALIFORNIA","CA",31,"ÁREA DE BELGOROD",7,"CNTRL VISAYAS",5,"LÄNSI-SUOMI",5,"ALPES (ALTOS)",5,"ARTA",5,"BORSOD-ABAUJ-ZEMPLEN",25,"BENGALA OESTE","DL","DONEGAL",5,"SOUTHERN","AR","AREZZO",38,"EHIME",11,"GAMBILSKAIA","CHS","CHIAPAS",4,"HEDMARK FYLKE","MAN","MANAWATU-WANGANUI",5,"GRONINGEN",18,"AYACUCHO","LBS","LUBUSKIE",17,"ALTO TRÁS-OS-MONTES","AG","ARGYLLSHIRE",51,"LIBERECKY",5,"BIHOR",null,null,"NW","NORTH WEST",5,"HALLANDS LÄN","BE","BERNA",5,"CHAI NAT",null,null,68,"AKSARAY","DON","DONETS'KA","BAR","BARINAS"]
["BANCO CORPBANCA COLOMBIA S.A.","06",null,"ANGOLA","AO",null,"BOLÍVAR",13,5,"AUTOPISTA","AUT ",null,"Pasaporte",41,null,null,null,null,null,null,null,null,null,null,null,null,null,null,null,"Afgani","AFN","ANDES","JUAN DE ACOSTA",null,"CALAMAR","BETEITIVA","FILADELFIA","EL PAUJIL","CAJIBIO","CHIMICHAGUA","CHINU","BELTRAN","BOJAYA","BARAYA","HATONUEVO","CIENAGA","CUMARAL","BELEN","CACOTA","FILANDIA","LA CELIA","BARRANCABERMEJA","COVEÑAS","ATACO","BUENAVENTURA","SARAVENA","MONTERREY","PUERTO CAICEDO",null,"PUERTO NARIÑO","PANA PANA",null,"YAVARATE",null,null,null,"BOLÍVAR","13","CÓRDOBA",3,"BREMEN",4,"TASMANIA","TAS","ESTIRIA","ST","LUXEMBURGO",6,"CEARÁ","CE","PLOVDIV",6,"NUEVA ESCOCIA","NS","VI - RANCAGUA",6,"GUANGDONG",190,"DAEGU",14,"KRAPINSKO-ZAGORSKA","B00",null,null,null,null,"DRAVOGRAD",6,"ÁVILA",5,"CAROLINA DEL NORTE","NC",32,"ÁREA DE BRYANSK",8,"EAST VISAYAS",6,"OULU",6,"ALPES MARÍTIMOS",6,"ATTIKI",6,"BUDAPEST",4,"BIHAR","D","DUBLÍN",6,"TEL AVIV","AP","ASCOLI PICENO",18,"FUKUI",9,"KARAGANDINSKAIA","CHI","CHIHUAHUA",12,"HORDALAND FYLKE","NTL","NORTHLAND",6,"LIMBURGO",12,"CAJAMARCA","MAL","MALOPOLSKIE",12,"AVE","AM","ARMAGH",81,"MORAVSKOSLEZSKY",6,"BISTRITA-NASAUD",null,null,"WC","WESTERN CAPE",6,"JÄMTLANDS LÄN","GR","CANTÓN DE GRISONES",6,"CHAIYAPHUM",null,null,5,"AMASYA","HAR","HARKIVS'KA","BOL","BOLÍVAR"]
["BANCO DAVIVIENDA S.A.","51",null,"ANGUILLA","AI",null,"BOYACA",15,8,"AVENIDA","AV ",null,"Reg. civil de nacimiento",11,null,null,null,null,null,null,null,null,null,null,null,null,null,null,null,"Afgani (ant.)","AFA","ANGELOPOLIS","LURUACO",null,"CANTAGALLO","BOAVITA","LA DORADA","FLORENCIA","CALDONO","CHIRIGUANA","CIENAGA DE ORO","BITUIMA","CARMEN DEL DARIEN","CAMPOALEGRE","MAICAO","CONCORDIA","EL CALVARIO","BUESACO","CHINACOTA","GENOVA","LA VIRGINIA","BETULIA","GALERAS","CAJAMARCA","BUGALAGRANDE","TAME","NUNCHIA","PUERTO GUZMAN",null,"PUERTO SANTANDER","PUERTO COLOMBIA",null,null,null,null,null,"BOYACA","15","CORRIENTES",4,"EL SARRE",10,"TERRITORIO DEL NORTE","NT","TIROL","T","NAMUR",7,"BRASÍLIA","DF","RUSE",7,"TERRITORIO NORESTE","NT","VII - TALCA",7,"GUANGXI",210,"DAEJEON",15,"LICKO-SENJSKA ","I00",null,null,null,null,"GORNJA RADGONA",7,"BADAJOZ",6,"CAROLINA DEL SUR","SC",74,"ÁREA DE CHELÍABINSK",1,"ILOCOS",null,null,7,"ARDÈCHE",7,"DHODHEKANISOS",7,"CSONGRAD",27,"CHANDIGARH","G","GALWAY",null,null,"AT","ASTI",40,"FUKUOKA",1,"KOSTANAISKAIA","COA","COAHUILA",15,"MØRE OG ROMSDAL F.","OTA","OTAGO",7,"NOORD-BRABANT",20,"CUZCO","MAZ","MAZOWIECKIE",43,"BAIXO ALENTEJO","AY","AYRSHIRE",71,"OLOMOUCKY",7,"BOTOSANI",null,null,"ZN","KWAZULU-NATAL",7,"JÖNKÖPINGS LÄN","FR","FRIBURGO",7,"CHANTHABURI",null,null,6,"ANKARA","HRS","HERSONS'KA","CAR","CARABOBO"]
["BANCO DE COMERCIO EXTERIOR DE COLOMBIA S.A. (BANCOLDEX)","31",null,"ANTÁRTIDA","AQ",null,"CALDAS",17,6,"AVENIDA CALLE","AC ",null,"Tarjeta de extranjería",21,null,null,null,null,null,null,null,null,null,null,null,null,null,null,null,"Ariary malgache","MGA","ANGOSTURA","MALAMBO",null,"CARTAGENA","BOYACA","LA MERCED","LA MONTAÑITA","CALOTO","CURUMANI","COTORRA","BOJACA","CONDOTO","COLOMBIA","MANAURE","EL BANCO","EL CASTILLO","CHACHAGUI","CHITAGA","LA TEBAIDA","MARSELLA","BOLIVAR","GUARANDA","CARMEN DE APICALA","CAICEDONIA",null,"OROCUE","SAN FRANCISCO",null,"TARAPACA","SAN FELIPE",null,null,null,null,null,"CALDAS","17","ENTRE RIOS",5,"HAMBURGO",2,"VICTORIA","VIC","VORARLBERG","V","OOST-VLAANDEREN",8,"ESPÍRITO SANTO","ES","SOFÍA",8,"NUNAVUT","NU","VIII - CONCEPCIÓN",8,"GUIZHOU",220,"GANGWON-DO",7,"MEDJIMURSKA","U00",null,null,null,null,"GROSUPLJE",8,"BALEARES",7,"COLORADO","CO",38,"ÁREA DE IRKUTSK",10,"NORTH MINDANAO",null,null,9,"ARIÈGE",8,"DHRAMA",8,"DEBRECEN",33,"CHHAATTISGARH","KY","KERRY",null,null,"AV","AVELLINO",7,"FUKUSHIMA",12,"KYZILORDINSKAIA","COL","COLIMA",18,"NORDLAND FYLKE","STL","SOUTHLAND",8,"NOORD-HOLLAND",17,"HUANCAVELICA","OPO","OPOLSKIE",21,"BAIXO MONDEGO","BS","BATH&NTHESTSOMERSET",53,"PARDUBICKY",8,"BRAILA",null,null,null,null,8,"KALMAR LÄN","GE","GINEBRA",8,"CHIANG MAI",null,null,7,"ANTALYA","HML","HMEL'NITS'KA","COJ","COJEDES"]
["BANCO DE LA REPUBLICA","00",null,"ANTIGUA/BARBUDA","AG",null,"CAQUETA",18,8,"AVENIDA CARRERA","AK ",null,"Tarjeta de identidad",12,null,null,null,null,null,null,null,null,null,null,null,null,null,null,null,"Baht tailandés","THB","ANORI","MANATI",null,"CICUCO","BRICEÑO","MANIZALES","MILAN","CORINTO","EL COPEY","LA APARTADA","CABRERA","EL CANTON DE SAN PABLO","ELIAS","RIOHACHA","EL PIÑON","EL DORADO","COLON","CONVENCION","MONTENEGRO","MISTRATO","BUCARAMANGA","LA UNION","CASABIANCA","CALI",null,"PAZ DE ARIPORO","SAN MIGUEL",null,null,null,null,null,null,null,null,"CAQUETA","18","FORMOSA",18,"HESSE",6,null,null,"VIENA","W","WEST-VLAANDEREN",9,"GOIÁS","GO","VARNA",9,"ONTARIO","ON","IX - TEMUCO",9,"HAINAN",200,"GWANGJU",8,"OSJECKO-BARANJSKA ","N00",null,null,null,null,"HRASTNIK LASKO",9,"BARCELONA",8,"CONNECTICUT","CT",37,"ÁREA DE IVÁNOVO",4,"SOUTH LUZON",null,null,10,"AUBE",9,"EVRITANIA",9,"DUNAUJVAROS",28,"DADRA Y NAGAR HAV.","KE","KILDARE",null,null,"BA","BARI",21,"GIFU",8,"MANGYSTAYSKAIA","DF","DISTRITO FEDERAL",17,"NORD-TRØNDELAG FYLKE","TAR","TARANAKI",9,"OVERIJSSEL",14,"HUÁNUCO","PDK","PODKARPACKIE",20,"BAIXO VOUGA","BE","BEDFORDSHIRE",32,"PLZENSKY",9,"BRASOV",null,null,null,null,9,"KRONOBERGS LÄN","GL","GLARIS",9,"CHIANG RAI",null,null,75,"ARDAHAN","IVF","IVANO-FRANKIVS'KA","DA","DELTA AMACURO"]
["BANCO DE OCCIDENTE","23",null,"ARABIA SAUDÍ","SA",null,"CASANARE",85,8,"BARRIO","BRR ",null,"Iden Extran difere al NIT DIAN",33,null,"Personas naturales","D003","D4",null,null,null,null,null,null,null,null,null,null,null,"Balboa panameño","PAB","ANZA","PALMAR DE VARELA",null,"CORDOBA","BUENAVISTA","MANZANARES","MORELIA","EL TAMBO","EL PASO","LORICA","CACHIPAY","EL CARMEN DE ATRATO","GARZON","SAN JUAN DEL CESAR","EL RETEN","FUENTE DE ORO","CONSACA","CUCUTA","PIJAO","PEREIRA","CABRERA","LOS PALMITOS","CHAPARRAL","CALIMA",null,"PORE","SANTIAGO",null,null,null,null,null,null,null,null,"CASANARE","85","JUJUY",6,"MECLENBURGO-POMERAN.",13,null,null,null,null,"BRABANTE (VALÓN)",10,"MARANHÃO","MA",null,null,"ISL.PRÍNCIPE EDUARDO","PE","X - PUERTO MONTT",10,"HEBEI",60,"GYEONGGI-DO",9,"POZESKO-SLAVONSKA ","K00",null,null,null,null,"IDRIJA",10,"BURGOS",9,"DAKOTA DEL NORTE","ND",39,"ÁREA DE KALININGRADO",12,"SOUTH MINDANAO",null,null,11,"AUDE",10,"EVROS",10,"EGER",29,"DAMAN Y DIU","KK","KILKENNY",null,null,"BL","BELLUNO",10,"GUNMA",3,"PAVLODARSKAIA","DGO","DURANGO",5,"OPPLAND FYLKE","WAI","WAIKATO",10,"UTRECHT",7,"ICA","PDL","PODLASKIE",27,"BEIRA INTERIOR NORTE","BK","BERKSHIRE",11,"PRAGA",10,"BUCURESTI",null,null,null,null,10,"NORRBOTTENS LÄN","AI","INNER-RHODEN",10,"CHON BURI",null,null,8,"ARTVIN","KIE","KIEVS'KA","DF","DISTRITO FEDERAL"]
["BANCO FALABELLA S.A.","62",null,"ARGELIA","DZ",null,"CAUCA",19,2,"BLOQUE","BL ",null,"Documento Información Exogena",43,null,"Personas Jurídicas","D001","D6",null,null,null,null,null,null,null,null,null,null,null,"Birr etíope","ETB","APARTADO","PIOJO",null,"EL CARMEN DE BOLIVAR","BUSBANZA","MARMATO","PUERTO RICO","FLORENCIA","GAMARRA","LOS CORDOBAS","CAJICA","EL LITORAL DEL SAN JUAN","GIGANTE","URIBIA","FUNDACION","GRANADA","CONTADERO","CUCUTILLA","QUIMBAYA","PUEBLO RICO","CALIFORNIA","MAJAGUAL","COELLO","CANDELARIA",null,"RECETOR","SIBUNDOY",null,null,null,null,null,null,null,null,"CAUCA","19","LA PAMPA",21,"RENANIA N.WESTFALIA",5,null,null,null,null,"BRUSELAS (CAPITAL)",11,"MINAS GERAIS","MG",null,null,"QUEBEC","QC","XI - COYHAIQUE",11,"HEILONGJIANG",90,"GYEONGSANGBUK-DO",10,"RIJECKO-GORANSKA ","H00",null,null,null,null,"ILIRSKA BISTRICA",11,"CÁCERES",10,"DAKOTA DEL SUR","SD",40,"ÁREA DE KALUGA",9,"WEST MINDANAO",null,null,12,"AVEYRON",11,"EVVOIA",11,"FEJER",30,"DELHI","LS","LAOIS",null,null,"BN","BENEVENTO",34,"HIROSHIMA",2,"SEVERO-KAZAKHSTANSK","MEX","ESTADO DE MÉXICO",3,"OSLO","WLG","WELLINGTON",11,"ZEELAND",16,"JUNÍN","POM","POMORSKIE",28,"BEIRA INTERIOR SUL","BW","BERWICKSHIRE",21,"STREDOCESKY",11,"BUZAU",null,null,null,null,20,"ÖREBRO LÄN","JU","JURA",11,"CHUMPHON",null,null,9,"AYDIN","KIR","KIROVOGRADS'KA","FAL","FALCON"]
["BANCO FINANDINA S.A.","55",null,"ARGENTINA","AR",null,"CESAR",20,5,"BODEGA","BG ",null,null,null,null,"Extranjeros","D004","D5",null,null,null,null,null,null,null,null,null,null,null,"Bolívar venezolano","VEF","ARBOLETES","POLONUEVO",null,"EL GUAMO","CALDAS","MARQUETALIA","SAN JOSE DEL FRAGUA","GUACHENEME","GONZALEZ","MOMIL","CAPARRAPI","ISTMINA","GUADALUPE","URUMITA","GUAMAL","GUAMAL","CORDOBA","DURANIA","SALENTO","QUINCHIA","CAPITANEJO","MORROA","COYAIMA","CARTAGO",null,"SABANALARGA","VALLE DEL GUAMUEZ",null,null,null,null,null,null,null,null,"CESAR","20","LA RIOJA",8,"RENANIA-PALATINADO",7,null,null,null,null,null,null,"MATO GROSSO DO SUL","MS",null,null,"SASKATCHEWAN","SK","XII - PUNTA ARENAS",12,"HENAN",180,"GYEONGSANGNAM-DO",11,"SIBENSKO-KNINSKA  ","O00",null,null,null,null,"IZOLA",12,"CÁDIZ",11,"DELAWARE","DE",41,"ÁREA DE KAMCHATKA",6,"WEST VISAYAS",null,null,13,"BOUCHES-DU-RHÔNE",12,"FLORINA",12,"GYOR",5,"GOA","LM","LEITRIM",null,null,"BG","BERGAMO",1,"HOKKAIDO",10,"VOSTOCHNO-KAZAKHSTAN","GTO","GUANAJUATO",1,"ØSTFOLD FYLKE","WEC","WEST COAST",12,"ZUID-HOLLAND",4,"LA LIBERTAD","SLS","SLASKIE",11,"CÁVADO","BF","BRACKNELL FOREST",42,"USTECKY",12,"CALARASI",null,null,null,null,21,"ÖSTERGÖTLANDS LÄN","LU","LUCERNA",12,"KALASIN",null,null,10,"BALIKESIR","LUG","LUGANS'KA","GUA","GUARICO"]
["BANCO FINANDINA S.A.","63",null,"ARMENIA","AM",null,"CHOCO",27,4,"BOULEVARD","BLV ",null,"TIPO DE TERCERO",null,null,"Entes públicos","D002","D3",null,null,null,null,null,null,null,null,null,null,null,"Bolívar venezolano (ant.)","VEB","ARGELIA","PONEDERA",null,"HATILLO DE LOBA","CAMPOHERMOSO","MARULANDA","SAN VICENTE DEL CAGUAN","GUAPI","GUATAPURI","MONTELIBANO","CAQUEZA","JURADO","HOBO","VILLANUEVA","PEDRAZA","LA MACARENA","CUASPUD","EL CARMEN",null,"SANTA ROSA DE CABAL","CARCASI","OVEJAS","CUNDAY","DAGUA",null,"SACAMA","VILLAGARZON",null,null,null,null,null,null,null,null,"CHOCO","27","MENDOZA",7,"SAJONIA",14,null,null,null,null,null,null,"MATO GROSSO","MT",null,null,"TERRITORIO YUKON","YT","RM - SANTIAGO",13,"HUBEI",170,"INCHEON",6,"SISACKO-MOSLAVACKA ","C00",null,null,null,null,"JESENICE",13,"CANTABRIA",39,"DISTRITO DE COLUMBIA","DC",42,"ÁREA DE KEMEROVO",null,null,null,null,14,"CALVADOS",13,"FOKIS",13,"GYOR-MOSON-SOPRON",6,"GUJARAT","LK","LIMERICK",null,null,"BI","BIELLA",28,"HYOGO",7,"ZAPADNO-KAZAKHST","GRO","GUERRERO",11,"ROGALAND FYLKE",null,null,null,null,3,"LAMBAYEQUE","SWK","SWIETOKRZYSKIE",29,"COVA DA BEIRA","BR","BRECKNOCKSHIRE",63,"VYSOCINA",13,"CARAS-SEVERIN",null,null,null,null,1,"SIN IDENTIFICAR","NE","NEUCHATEL",13,"KAMPHAENG PHET",null,null,74,"BARTIN","L'V","L'VIVSBKA","LAR","LARA"]
["BANCO GNB COLOMBIA S.A. HSBC","10",null,"ARUBA","AW",null,"CÓRDOBA",23,4,"CALLE","CL ",null,"ACREEDOR",null,null,"Empleados","D006","D1",null,null,null,null,null,null,null,null,null,null,null,"Boliviano","BOB","ARMENIA","PUERTO COLOMBIA",null,"MAGANGUE","CERINZA","NEIRA","SOLANO","INZA","LA GLORIA","MONTERIA","CARMEN DE CARUPA","LLORO","IQUIRA",null,"PIJIÑO DEL CARMEN","LEJANIAS","CUMBAL","EL TARRA",null,"SANTUARIO","CEPITA","PALMITO","DOLORES","EL AGUILA",null,"SAN LUIS DE PALENQUE",null,null,null,null,null,null,null,null,null,"CÓRDOBA","23","MISIONES",19,"SAJONIA-ANHALT",15,null,null,null,null,null,null,"PARÁ","PA",null,null,null,null,null,null,"HUNAN",160,"JEJU",1,"SLAVONSKOBRODSKA","L00",null,null,null,null,"KAMNIK",14,"CASTELLÓN",12,"FLORIDA","FL",43,"ÁREA DE KÍROV",null,null,null,null,15,"CANTAL",14,"FTHIOTIS",14,"HAJDU-BIHAR",7,"HARYANA","LD","LONGFORD",null,null,"BO","BOLONIA",8,"IBARAKI",null,null,"HGO","HIDALGO",14,"SOGN OG FJORDANE F.",null,null,null,null,6,"LIMA Y CALLAO","W-M","WARMINSKO-MAZURSKIE",25,"DÃO-LAFOES","BU","BUCKINGHAMSHIRE",72,"ZLINSKY",14,"CLUJ",null,null,null,null,11,"SKÅNE LÄN","NW","NIDWALDEN",14,"KANCHANABURI",null,null,72,"BATMAN","M_K","M.KIEV","MER","MERIDA"]
["BANCO GNB SUDAMERIS COLOMBIA","12",null,"AUSTRALIA","AU",null,"CUNDINAMARCA",25,1,"CALLEJÓN","CLJ ",null,"DEUDOR",null,null,null,null,null,null,null,null,null,null,null,null,null,null,null,null,"Cedi ghanés","GHS","BARBOSA","REPELÓN",null,"MAHATES","CHINAVITA","NORCASIA","SOLITA","JAMBALO","LA JAGUA DE IBIRICO","MOÑITOS","CHAGUANI","MEDIO BAUDO","ISNOS",null,"PIVIJAY","MAPIRIPAN","CUMBITARA","EL ZULIA",null,null,"CERRITO","SAMPUES","ESPINAL","EL CAIRO",null,"TAMARA",null,null,null,null,null,null,null,null,null,"CUNDINAMARCA","25","NEUQUEN",20,"SLESVIG-HOLSTEIN",1,null,null,null,null,null,null,"PARAÍBA","PB",null,null,null,null,null,null,"JIANGSU",100,"SEJONG",17,"SPLITSKO-DALMATINSKA","R00",null,null,null,null,"KOCEVJE",15,"CIUDAD REAL",13,"GEORGIA","GA",44,"ÁREA DE KOSTROMÁ",null,null,null,null,16,"CHARENTE",15,"GREVENA",15,"HEVES",8,"HIMACHAL PRADESH","LH","LOUTH",null,null,"BZ","BOLZANO",17,"ISHIKAWA",null,null,"JAL","JALISCO",16,"SØR-TRØNDELAG FYLKE",null,null,null,null,22,"LORETO","WLK","WIELKOPOLSKIE",16,"DOURO","BT","BUTESHIRE",null,null,15,"CONSTANTA",null,null,null,null,13,"SÖDERMANLANDS LÄN","OW","OBWALDEN",15,"KHON KAEN",null,null,69,"BAYBURT","M_S","M.SEVASTOPIL'","MIR","MIRANDA"]
["BANCO PICHINCHA S.A.","60",null,"AUSTRIA","AT",null,"GUAINIA",94,8,"CAMINO","CN ",null,null,null,null,null,null,null,null,null,null,null,null,null,null,null,null,null,null,"Cedi ghanés (ant.)","GHC","BELLO","SABANAGRANDE",null,"MARGARITA","CHIQUINQUIRA","PACORA","VALPARAISO","LA SIERRA","LA PAZ","PLANETA RICA","CHIA","NOVITA","LA ARGENTINA",null,"PLATO","MESETAS","EL CHARCO","GRAMALOTE",null,null,"CHARALA","SAN BENITO ABAD","FALAN","EL CERRITO",null,"TAURAMENA",null,null,null,null,null,null,null,null,null,"GUAINIA","94","RIO NEGRO",22,"TURINGIA",16,null,null,null,null,null,null,"PERNAMBUCO","PE",null,null,null,null,null,null,"JIANGXI",140,"SEÚL",13,"VARAZDINSKA ","E00",null,null,null,null,"KOPER",16,"CÓRDOBA",14,"GUAM","GU",45,"ÁREA DE KURGÁN",null,null,null,null,17,"CHARENTE-MARITIME",16,"ILIA",16,"HODMEZOVASARHELY",9,"JAMMU Y CACHEMIRA","MO","MAYO",null,null,"BS","BRESCIA",3,"IWATE",null,null,"MCH","MICHOACÁN",8,"TELEMARK FYLKE",null,null,null,null,24,"MADRE DE DÍOS","Z-P","ZACHODNIO-POMORSKIE",15,"ENTRE DOURO E VOUGA","CF","CAERNARFONSHIRE",null,null,16,"COVASNA",null,null,null,null,12,"STOCKHOLMS LÄN","SH","SCHAFFHAUSEN",16,"KRABI",null,null,11,"BILECIK","MIK","MIKOLAIVS'KA","MON","MONAGAS"]
["BANCO POPULAR","02",null,"AZERBAIYÁN","AZ",null,"GUAVIARE",95,8,"CARRERA","CR ",null,null,null,null,null,null,null,null,null,null,null,null,null,null,null,null,null,null,"Chelín austríaco (obsoleto --> EUR)","ATS","BELMIRA","SABANALARGA",null,"MARIA LA BAJA","CHIQUIZA","PALESTINA",null,"LA VEGA","MANAURE","PUEBLO NUEVO","CHIPAQUE","NUQUI","LA PLATA",null,"PUEBLOVIEJO","PUERTO CONCORDIA","EL PEÑOL","HACARI",null,null,"CHARTA","SAN JUAN DE BETULIA","FLANDES","EL DOVIO",null,"TRINIDAD",null,null,null,null,null,null,null,null,null,"GUAVIARE","95","SALTA",9,null,null,null,null,null,null,null,null,"PIAUÍ","PI",null,null,null,null,null,null,"JILIN",80,"ULSÁN",16,"VIROVITICKO-PODRAVAC","J00",null,null,null,null,"KRANJ",17,"CUENCA",16,"HAWAI","HI",46,"ÁREA DE KURSK",null,null,null,null,18,"CHER",17,"IMATHIA",17,"JASZ-NAGYKUN-SZOLNOK",34,"JHARKHAND","MH","MEATH",null,null,"BR","BRINDISI",37,"KAGAWA",null,null,"MOR","MORELOS",19,"TROMS FYLKE",null,null,null,null,9,"MOQUEGUA",null,null,31,"GRANDE LISBOA","CT","CAITHNESS",null,null,17,"DIMBOVITA",null,null,null,null,14,"UPPSALA LÄN","SZ","SCHWYZ",17,"KRUNG THEP",null,null,12,"BINGÖL","ODS","ODES'KA","NE","NUEVA ESPARTA"]
["BANCO PROCREDIT","58",null,"BAHAMAS","BS",null,"HUILA",41,8,"CARRETERA","CRT ",null,null,null,null,null,null,null,null,null,null,null,null,null,null,null,null,null,null,"Chelín keniata","KES","BETANIA","SANTA LUCIA",null,"MOMPOS","CHISCAS","PENSILVANIA",null,"LOPEZ","PAILITAS","PUERTO ESCONDIDO","CHOACHI","QUIBDO","NATAGA",null,"REMOLINO","PUERTO GAITAN","EL ROSARIO","HERRAN",null,null,"CHIMA","SAN LUIS DE SINCE","FRESNO","FLORIDA",null,"VILLANUEVA",null,null,null,null,null,null,null,null,null,"HUILA","41","SAN JUAN",10,null,null,null,null,null,null,null,null,"PARANÁ","PR",null,null,null,null,null,null,"LIAONING",70,null,null,"VUKOVARSKO-SRIJEMSKA","P00",null,null,null,null,"KRSKO",18,"GERONA",17,"IDAHO","ID",47,"ÁREA DE LENINGRADO",null,null,null,null,19,"CORRÈZE",18,"IOANNINA",18,"KAPOSVAR",10,"KARNATAKA","MN","MONAGHAN",null,null,"CA","CAGLIARI",46,"KAGOSHIMA",null,null,"NAY","NAYARIT",10,"VEST-AGDER FYLKE",null,null,null,null,15,"PASCO",null,null,13,"GRANDE PORTO","CA","CAMBRIDGESHIRE",null,null,18,"DOLJ",null,null,null,null,15,"VÄRMLANDS LÄN","SO","SOLOTHURN",19,"LAMPANG",null,null,13,"BITLIS","POL","POLTAVS'KA","POR","PORTUGUESA"]
["BANCO SANTANDER DE NEGOCIOS COLOMBIA S.A. - BANCO SANTANDER","65",null,"BAHRÁIN","BH",null,"LA_GUAJIRA",44,5,"CASA","CA ",null,"ESTE","ESTE ",null,null,null,null,null,null,null,null,null,null,null,null,null,null,null,"Chelín somalí","SOS","BETULIA","SANTO TOMAS",null,"MONTECRISTO","CHITA","RIOSUCIO",null,"MERCADERES","PELAYA","PUERTO LIBERTADOR","CHOCONTA","RIO QUITO","NEIVA",null,"SALAMINA","PUERTO LLERAS","EL TABLON DE GOMEZ","LA ESPERANZA",null,null,"CHIPATA","SAN MARCOS","GUAMO","GINEBRA",null,"YOPAL",null,null,null,null,null,null,null,null,null,"LA_GUAJIRA","44","SAN LUIS",11,null,null,null,null,null,null,null,null,"RIO DE JANEIRO","RJ",null,null,null,null,null,null,"NEI MONGOL",40,null,null,"ZADARSKA ","M00",null,null,null,null,"LENART",19,"GRANADA",18,"ILLINOIS","IL",48,"ÁREA DE LÍPETSK",null,null,null,null,"2B","CORSE-DU-NORD",19,"IRAKLION",19,"KECSKEMET",11,"KERALA","OY","OFFALY",null,null,"CL","CALTANISETTA",14,"KANAGAWA",null,null,"NL","NUEVO LEÓN",7,"VESTFOLD FYLKE",null,null,null,null,2,"PIURA",null,null,34,"LEZÍRIA DO TEJO","CD","CARDIGANSHIRE",null,null,19,"GALATI",null,null,null,null,16,"VÄSTERBOTTENS LÄN","SG","ST.GALLEN",20,"LAMPHUN",null,null,14,"BOLU","KRM","RESPUBLIKA KRIM","SUC","SUCRE"]
["BANCOLOMBIA PANAMÁ S.A.","03",null,"BANGLADESH","BD",null,"MAGDALENA",47,5,"CASERÍO","CAS ",null,"NORTE  ","NORTE ",null,null,null,null,null,null,null,null,null,null,null,null,null,null,null,"Chelín tanzanés","TZS","BRICEÑO","SOLEDAD",null,"MORALES","CHITARAQUE","RISARALDA",null,"MIRANDA","PUEBLO BELLO","PURISIMA","COGUA","RIOSUCIO","OPORAPA",null,"SAN SEBASTIAN DE BUENAVIS","PUERTO LOPEZ","EL TAMBO","LA PLAYA",null,null,"CIMITARRA","SAN ONOFRE","HERVEO","GUACARI",null,null,null,null,null,null,null,null,null,null,null,"MAGDALENA","47","SANTA CRUZ",23,null,null,null,null,null,null,null,null,"RIO GRANDE DO NORTE","RN",null,null,null,null,null,null,"NINGXIA",270,null,null,"ZAGREB CIUDAD ","V00",null,null,null,null,"LENDAVA",20,"GUADALAJARA",19,"INDIANA","IN",49,"ÁREA DE MAGADÁN",null,null,null,null,"2A","CORSE-DU-SUD",20,"KARDHITSA",20,"KOMAROM-ESZTERGOM",31,"LAKSHADWEEP","RN","ROSCOMMON",null,null,"CB","CAMPOBASSO",26,"KIOTO",null,null,"OAX","OAXACA",null,null,null,null,null,null,21,"PUNO",null,null,33,"MÉDIO TEJO","CB","CARMARTHENSHIRE",null,null,21,"GIURGIU",null,null,null,null,17,"VÄSTERNORRLANDS LÄN","TI","TICINO",21,"LOEI",null,null,15,"BURDUR","RIV","RIVNENS'KA","TAC","TACHIRA"]
["BANCOLOMBIA S.A.","07",null,"BARBADOS","BB",null,"META",50,8,"CÉLULA","CEL ",null,"OESTE  ","OESTE ",null,null,null,null,null,null,null,null,null,null,null,null,null,null,null,"Chelín ugandés","UGX","BURITICA","SUAN",null,"PINILLOS","CHIVATA","SALAMINA",null,"MONDOMO","RIO DE ORO","SAHAGUN","COTA","SAN JOSE DEL PALMAR","PAICOL",null,"SAN ZENON","PUERTO RICO","FRANCISCO PIZARRO","LABATECA",null,null,"CONCEPCION","SAN PEDRO","HONDA","GUADALAJARA DE BUGA",null,null,null,null,null,null,null,null,null,null,null,"META","50","SANTA FÉ",12,null,null,null,null,null,null,null,null,"RONDÔNIA","RO",null,null,null,null,null,null,"QINGHAI",280,null,null,"ZAGREBACKA","A00",null,null,null,null,"LITIJA",21,"GUIPÚZCOA",20,"IOWA","IA",50,"ÁREA DE MOSCÚ",null,null,null,null,21,"CÔTE-D'OR",21,"KASTORIA",21,"MISKOLC",12,"MADHYA PRADESH","SO","SLIGO",null,null,"CI","CARBONIA-IGLESIAS",39,"KOCHI",null,null,"PUE","PUEBLA",null,null,null,null,null,null,13,"SAN MARTÍN",null,null,10,"MINHO-LIMA","CH","CHESHIRE",null,null,20,"GORJ",null,null,null,null,18,"VÄSTMANLANDS LÄN","TG","TURGOVIA",22,"LOP BURI",null,null,16,"BURSA","SUM","SUMS'KA","TRU","TRUJILLO"]
["BANCOOMEVA","61",null,"BELGICA","BL",null,"NARIÑO",52,2,"CENTRO","CEN ",null,"SUR","SUR ",null,null,null,null,null,null,null,null,null,null,null,null,null,null,null,"Colón costarricense","CRC","CACERES","TUBARA",null,"REGIDOR","CHIVOR","SAMANA",null,"MORALES","SAN ALBERTO","SAN ANDRES SOTAVENTO","CUCUNUBA","SIPI","PALERMO",null,"SANTA ANA","REMOLINO","FUNES","LOS PATIOS",null,null,"CONFINES","SANTIAGO DE TOLU","IBAGUE","JAMUNDI",null,null,null,null,null,null,null,null,null,null,null,"NARIÑO","52","SANTIAGO DEL ESTERO",13,null,null,null,null,null,null,null,null,"RORAIMA","RR",null,null,null,null,null,null,"SHAANXI",250,null,null,null,null,null,null,null,null,"LJUBLJANA-BEZIGRAD",22,"HUELVA",21,"ISLAS MARIANA NORTE","MP",51,"ÁREA DE MÚRMANSK",null,null,null,null,22,"CÔTES-D'ARMOR",22,"KAVALA",22,"NAGYKANIZSA",13,"MAHARASHTRA","TA","TIPPERARY",null,null,"CE","CASERTA",43,"KUMAMOTO",null,null,"QRO","QUERÉTARO",null,null,null,null,null,null,10,"TACNA",null,null,30,"OESTE","CN","CLACKMANNANSHIRE",null,null,22,"HARGHITA",null,null,null,null,19,"VÄSTRA GÖTALANDS LÄN","UR","URI",23,"MAE HONG SON",null,null,17,"CANAKKALE","TER","TERNOPIL'S'KA","VAR","VARGAS"]
["BBVA COLOMBIA","13",null,"BELICE","BE",null,"NORTE_SANTANDER",54,7,"CENTRO COMERCIAL","CC ",null,null,null,null,null,null,null,null,null,null,null,null,null,null,null,null,null,null,"Colón salvadoreño","SVC","CAICEDO","USIACURI",null,"RIO VIEJO","CIENEGA","SAN JOSE",null,"PADILLA","SAN DIEGO","SAN ANTERO","EL COLEGIO","TADO","PALESTINA",null,"SANTA BARBARA DE PINTO","RESTREPO","GUACHUCAL","LOURDES",null,null,"CONTRATACION","SINCELEJO","ICONONZO","LA CUMBRE",null,null,null,null,null,null,null,null,null,null,null,"NORTE_SANTANDER","54","TIERRA DE FUEGO",24,null,null,null,null,null,null,null,null,"RIO GRANDE DO SUL","RS",null,null,null,null,null,null,"SHANDONG",120,null,null,null,null,null,null,null,null,"LJUBLJANA-CENTER",23,"HUESCA",22,"ISLAS VÍRGENES","VI",53,"ÁREA DE NÓVGOROD",null,null,null,null,23,"CREUSE",23,"KEFALLINIA",23,"NOGRAD",14,"MANIPUR","WD","WATERFORD",null,null,"CT","CATANIA",24,"MIE",null,null,"QR","QUINTANA ROO",null,null,null,null,null,null,1,"TUMBES",null,null,32,"PENÍNSULA DE SETÚBAL","CO","CORNUALLES",null,null,23,"HUNEDOARA",null,null,null,null,null,null,"VS","VALAIS",24,"MAHA SARAKHAM",null,null,18,"CANKIRI","VIN","VINNITS'KA","YAR","YARACUY"]
["CITIBANK COLOMBIA","09",null,"BENÍN","BJ",null,"PUTUMAYO",86,8,"CIRCULAR","CIR ",null,null,null,null,null,null,null,null,null,null,null,null,null,null,null,null,null,null,"Cordoba Oro nicaragüense","NIO","CALDAS",null,null,"SAN CRISTOBAL","COMBITA","SUPIA",null,"PAEZ","SAN MARTIN","SAN BERNARDO DEL VIENTO","EL PEÑON","UNGUIA","PITAL",null,"SANTA MARTA","SAN CARLOS GUAROA","GUAITARILLA","MUTISCUA",null,null,"COROMORO","SUCRE","LERIDA","LA UNION",null,null,null,null,null,null,null,null,null,null,null,"PUTUMAYO","86","TUCUMÁN",14,null,null,null,null,null,null,null,null,"SANTA CATARINA","SC",null,null,null,null,null,null,"SHANGHAI",20,null,null,null,null,null,null,null,null,"LJUBLJANA-MOSTE-POLJ",24,"JAÉN",23,"KANSAS","KS",54,"ÁREA DE NOVOSIBIRSK",null,null,null,null,97,"D.O.M.-T.O.M.",24,"KERKIRA",24,"NYIREGYHAZA",15,"MEGALAYA","WH","WESTMEATH",null,null,"CZ","CATANZARO",4,"MIYAGI",null,null,"SLP","SAN LUIS POTOSÍ",null,null,null,null,null,null,23,"UCAYALI",null,null,23,"PINHAL INTERIOR N.","CM","CROMARTYSHIRE",null,null,24,"IALOMITA",null,null,null,null,null,null,"VD","VAUD",18,"MAHANAKHON",null,null,19,"CORUM","VOL","VOLINS'KA","ZUL","ZULIA"]
["COLPATRIA S.A.","19",null,"BERMUDAS","BM",null,"QUINDIO",63,6,"CIRCUNVALAR","CRV ",null,null,null,null,null,null,null,null,null,null,null,null,null,null,null,null,null,null,"Corona checa","CZK","CAMPAMENTO",null,null,"SAN ESTANISLAO","COPER","VICTORIA",null,"PATIA","TAMALAMEQUE","SAN CARLOS","EL ROSAL",null,"PITALITO",null,"SITIONUEVO","SAN JUAN DE ARAMA","GUALMATAN","OCAÑA",null,null,"CURITI","TOLU VIEJO","LIBANO","LA VICTORIA",null,null,null,null,null,null,null,null,null,null,null,"QUINDIO","63",null,null,null,null,null,null,null,null,null,null,"SERGIPE","SE",null,null,null,null,null,null,"SHANXI",50,null,null,null,null,null,null,null,null,"LJUBLJANA-SISKA",25,"LA CORUÑA",15,"KENTUCKY","KY",55,"ÁREA DE OMSK",null,null,null,null,24,"DORDOGNE",25,"KHALKIDHIKI",25,"PECS",16,"MIZORAM","WX","WEXFORD",null,null,"CH","CHIETI",45,"MIYAZAKI",null,null,"SIN","SINALOA",null,null,null,null,null,null,null,null,null,null,24,"PINHAL INTERIOR SUL","CU","CUMBERLAND",null,null,25,"IASI",null,null,null,null,null,null,"ZG","ZUG",25,"MUKDAHAN",null,null,20,"DENIZLI","ZAK","ZAKARPATS'KA"]
["CONFIAR COOPERATIVA FINANCIERA","292",null,"BIELORRUSIA","BY",null,"RISARALDA",66,6,"CIUDADELA","CD ",null,null,null,null,null,null,null,null,null,null,null,null,null,null,null,null,null,null,"Corona danesa","DKK","CAÑASGORDAS",null,null,"SAN FERNANDO","CORRALES","VILLAMARIA",null,"PIENDAMO","VALLEDUPAR","SAN PELAYO","FACATATIVA",null,"RIVERA",null,"TENERIFE","SAN JUANITO","ILES","PAMPLONA",null,null,"EL CARMEN DE CHUCURI",null,"MARIQUITA","OBANDO",null,null,null,null,null,null,null,null,null,null,null,"RISARALDA","66",null,null,null,null,null,null,null,null,null,null,"SÃO PAULO","SP",null,null,null,null,null,null,"SICHUAN",230,null,null,null,null,null,null,null,null,"LJUBLJANA-VIC-RUDNIK",26,"LA RIOJA",26,"LOUISIANA","LA",56,"ÁREA DE ORENBURG",null,null,null,null,25,"DOUBS",26,"KHANIA",26,"PEST",17,"NAGALAND","WW","WICKLOW",null,null,"CO","COMO",20,"NAGANO",null,null,"SON","SONORA",null,null,null,null,null,null,null,null,null,null,22,"PINHAL LITORAL","DD","DENBIGHSHIRE",null,null,26,"ILFOV",null,null,null,null,null,null,"ZH","ZÚRICH",26,"NAKHON NAYOK",null,null,21,"DIYARBAKIR","ZAP","ZAPORIZ'KA"]
["COOPERATIVA FINANCIERA DE ANTIOQUIA C.F.A","283",null,"BOLIVIA","BO",null,"SAN_ANDRÉS",88,8,"CONJUNTO","CONJ ",null,null,null,null,null,null,null,null,null,null,null,null,null,null,null,null,null,null,"Corona eslovaca (obsoleto --> EUR)","SKK","CARACOLI",null,null,"SAN JACINTO","COVARACHIA","VITERBO",null,"POPAYAN",null,"TIERRALTA","FOMEQUE",null,"SALADOBLANCO",null,null,"SAN MARTIN","IMUES","PAMPLONITA",null,null,"EL GUACAMAYO",null,"MELGAR","PALMIRA",null,null,null,null,null,null,null,null,null,null,null,"SAN_ANDRÉS","88",null,null,null,null,null,null,null,null,null,null,"TOCANTINS","TO",null,null,null,null,null,null,"TIANJIN",30,null,null,null,null,null,null,null,null,"LJUTOMER",27,"LAS PALMAS",35,"MAINE","ME",57,"ÁREA DE ORIOL",null,null,null,null,26,"DRÔME",27,"KHIOS",27,"SOMOGY",18,"ORISSA",null,null,null,null,"CS","COSENZA",42,"NAGASAKI",null,null,"TAB","TABASCO",null,null,null,null,null,null,null,null,null,null,70,"REG.AUT.DA MADEIRA","DB","DERBYSHIRE",null,null,27,"MARAMURES",null,null,null,null,null,null,null,null,27,"NAKHON PATHOM",null,null,22,"EDIRNE","ZHI","ZHITOMIRS'KA"]
["COOPERATIVA LEON XIII DE MACEO LTDA","1356",null,"BONAIRE, SABA","BQ",null,"SANTANDER",68,7,"CONJUNTO RESIDENCIAL","CON ",null,null,null,null,null,null,null,null,null,null,null,null,null,null,null,null,null,null,"Corona estonia (obsoleto --> EUR)","EEK","CARAMANTA",null,null,"SAN JACINTO DEL CAUCA","CUBARA",null,null,"PUERTO TEJADA",null,"VALENCIA","FOSCA",null,"SAN AGUSTIN",null,null,"URIBE","IPIALES","PUERTO SANTANDER",null,null,"EL PEÑON",null,"MURILLO","PRADERA",null,null,null,null,null,null,null,null,null,null,null,"SANTANDER","68",null,null,null,null,null,null,null,null,null,null,null,null,null,null,null,null,null,null,"XINJIANG",290,null,null,null,null,null,null,null,null,"LOGATEC",28,"LEÓN",24,"MARYLAND","MD",58,"ÁREA DE PENZA",null,null,null,null,91,"ESSONNE",28,"KIKLADHES",28,"SOPRON",32,"PONDICHERRY",null,null,null,null,"CR","CREMONA",29,"NARA",null,null,"TMS","TAMAULIPAS",null,null,null,null,null,null,null,null,null,null,60,"REG.AUT.DOS AÇORES","DV","DEVON",null,null,28,"MEHEDINTI",null,null,null,null,null,null,null,null,28,"NAKHON PHANOM",null,null,23,"ELAZIG"]
["COOPRUDEA","1477",null,"BOSNIA-HERZ.","BA",null,"SUCRE",70,5,"CONSULTORIO","CS ",null,null,null,null,null,null,null,null,null,null,null,null,null,null,null,null,null,null,"Corona islandesa","ISK","CAREPA",null,null,"SAN JUAN NEPOMUCENO","CUCAITA",null,null,"PURACE",null,null,"FUNZA",null,"SANTA MARIA",null,null,"VILLAVICENCIO","LA CRUZ","RAGONVALIA",null,null,"EL PLAYON",null,"NATAGAIMA","RESTREPO",null,null,null,null,null,null,null,null,null,null,null,"SUCRE","70",null,null,null,null,null,null,null,null,null,null,null,null,null,null,null,null,null,null,"XIZANG",300,null,null,null,null,null,null,null,null,"MARIBOR",29,"LÉRIDA",25,"MASSACHUSETTS","MA",60,"ÁREA DE PSKOV",null,null,null,null,27,"EURE",29,"KILKIS",29,"SZABOLCS-SZAT.-BEREG",19,"PUNJAB",null,null,null,null,"KR","CROTONE",15,"NIIGATA",null,null,"TLX","TLAXCALA",null,null,null,null,null,null,null,null,null,null,26,"SERRA DA ESTRELA","DO","DORSET",null,null,29,"MURES",null,null,null,null,null,null,null,null,29,"NAKHON RATCHASIMA",null,null,24,"ERZINCAN"]
["COTRAFA COOPERATIVA FINANCIERA","1289",null,"BOTSUANA","BW",null,"TOLIMA",73,8,"CORREGIMIENTO","C ",null,null,null,null,null,null,null,null,null,null,null,null,null,null,null,null,null,null,"Corona noruega","NOK","CAROLINA",null,null,"SAN MARTIN DE LOBA","CUITIVA",null,null,"ROSAS",null,null,"FUQUENE",null,"SUAZA",null,null,"VISTAHERMOSA","LA FLORIDA","SALAZAR",null,null,"ENCINO",null,"ORTEGA","RIOFRIO",null,null,null,null,null,null,null,null,null,null,null,"TOLIMA","73",null,null,null,null,null,null,null,null,null,null,null,null,null,null,null,null,null,null,"YUNNAN",240,null,null,null,null,null,null,null,null,"METLIKA",30,"LUGO",27,"MICHIGAN","MI",62,"ÁREA DE RIAZÁN",null,null,null,null,28,"EURE-ET-LOIR",30,"KORINTHIA",30,"SZEGED",20,"RAJASTHAN",null,null,null,null,"CN","CUNEO",44,"OITA",null,null,"VER","VERACRUZ",null,null,null,null,null,null,null,null,null,null,14,"TÂMEGA","DN","DOWN",null,null,30,"NEAMT",null,null,null,null,null,null,null,null,30,"NAKHON SAWAN",null,null,25,"ERZURUM"]
["HELM BANK","14",null,"BRASIL","BR",null,"VALLE",76,2,"DEPARTAMENTO","DPTO ",null,null,null,null,null,null,null,null,null,null,null,null,null,null,null,null,null,null,"Corona sueca","SEK","CAUCASIA",null,null,"SAN PABLO","DUITAMA",null,null,"SAN SEBASTIAN",null,null,"FUSAGASUGA",null,"TARQUI",null,null,null,"LA LLANADA","SAN CALIXTO",null,null,"ENCISO",null,"PALOCABILDO","ROLDANILLO",null,null,null,null,null,null,null,null,null,null,null,"VALLE","76",null,null,null,null,null,null,null,null,null,null,null,null,null,null,null,null,null,null,"ZHEJIANG",130,null,null,null,null,null,null,null,null,"MOZIRJE",31,"MADRID",28,"MINNESOTA","MN",65,"ÁREA DE SAKHALIN",null,null,null,null,29,"FINISTÈRE",31,"KOZANI",31,"SZEKESFEHERVAR",21,"SIKKIM",null,null,null,null,"EN","ENNA",33,"OKAYAMA",null,null,"YUC","YUCATÁN",null,null,null,null,null,null,null,null,null,null,null,null,"DF","DUMFRIESSHIRE",null,null,31,"OLT",null,null,null,null,null,null,null,null,31,"NAKHON SI THAMMARAT",null,null,26,"ESKISEHIR"]
["IDEA","99",null,"BRUNÉI","BN",null,"VAUPES",97,8,"DEPÓSITO","DP ",null,null,null,null,null,null,null,null,null,null,null,null,null,null,null,null,null,null,"Dalasi gambiano","GMD","CHIGORODO",null,null,"SANTA CATALINA","EL COCUY",null,null,"SANTA ROSA",null,null,"GACHALA",null,"TELLO",null,null,null,"LA TOLA","SAN CAYETANO",null,null,"FLORIAN",null,"PIEDRAS","SAN PEDRO",null,null,null,null,null,null,null,null,null,null,null,"VAUPES","97",null,null,null,null,null,null,null,null,null,null,null,null,null,null,null,null,null,null,null,null,null,null,null,null,null,null,null,null,"MURSKA SOBOTA",32,"MÁLAGA",29,"MISSISSIPPI","MS",63,"ÁREA DE SAMARA",null,null,null,null,30,"GARD",32,"LAKONIA",32,"SZOLNOK",22,"TAMIL NADU",null,null,null,null,"FE","FERRARA",47,"OKINAWA",null,null,"ZAC","ZACATECAS",null,null,null,null,null,null,null,null,null,null,null,null,"DT","DUNBARTONSHIRE",null,null,32,"PRAHOVA",null,null,null,null,null,null,null,null,32,"NAN",null,null,35,"ESMIRNA"]
["SCOTIABANK COLOMBIA","08",null,"BULGARIA","BG",null,"VICHADA",99,8,"DEPÓSITO SÓTANO","DS ",null,null,null,null,null,null,null,null,null,null,null,null,null,null,null,null,null,null,"Dinar argelino","DZD","CISNEROS",null,null,"SANTA ROSA","EL ESPINO",null,null,"SANTANDER DE QUILICHAO",null,null,"GACHANCIPA",null,"TERUEL",null,null,null,"LA UNION","SANTIAGO",null,null,"FLORIDABLANCA",null,"PLANADAS","SEVILLA",null,null,null,null,null,null,null,null,null,null,null,"VICHADA",99,null,null,null,null,null,null,null,null,null,null,null,null,null,null,null,null,null,null,null,null,null,null,null,null,null,null,null,null,"NOVA GORICA",33,"MURCIA",30,"MISSOURI","MO",64,"ÁREA DE SARÁTOV",null,null,null,null,31,"GARONA (ALTA)",33,"LARISA",33,"SZOMBATHELY",23,"TRIPURA",null,null,null,null,"FR","FERRARA",27,"OSAKA",null,null,null,null,null,null,null,null,null,null,null,null,null,null,null,null,"DU","DURHAM",null,null,33,"SALAJ",null,null,null,null,null,null,null,null,33,"NARATHIWAT",null,null,34,"ESTANBUL"]
[null,null,null,"BURKINA FASO","BF",null,"CAPITAL FEDERAL","00",null,"DIAGONAL","DG ",null,null,null,null,null,null,null,null,null,null,null,null,null,null,null,null,null,null,"Dinar Bahrein","BHD","CIUDAD BOLIVAR",null,null,"SANTA ROSA DEL SUR","FIRAVITOBA",null,null,"SILVIA",null,null,"GACHETA",null,"TESALIA",null,null,null,"LEIVA","SARDINATA",null,null,"GALAN",null,"PRADO","TORO",null,null,null,null,null,null,null,null,null,null,null,null,null,null,null,null,null,null,null,null,null,null,null,null,null,null,null,null,null,null,null,null,null,null,null,null,null,null,null,null,null,"NOVO MESTO",34,"NAVARRA",31,"MONTANA","MT",73,"ÁREA DE SIMBIRSK",null,null,null,null,32,"GERS",34,"LASITHI",34,"TATABANYA",24,"UTTAR PRADESH",null,null,null,null,"FU","FIUME",41,"SAGA",null,null,null,null,null,null,null,null,null,null,null,null,null,null,null,null,"EL","EAST LOTHIAN",null,null,34,"SATU MARE",null,null,null,null,null,null,null,null,34,"NONG BUA LAMPHU",null,null,27,"GAZIANTEP"]
[null,null,null,"BURUNDI","BI",null,"BUENOS AIRES","01",null,"EDIFICIO","ED ",null,null,null,null,null,null,null,null,null,null,null,null,null,null,null,null,null,null,"Dinar iraquí","IQD","COCORNA",null,null,"SIMITI","FLORESTA",null,null,"SOTARA",null,null,"GAMA",null,"TIMANA",null,null,null,"LINARES","SILOS",null,null,"GAMBITA",null,"PURIFICACION","TRUJILLO",null,null,null,null,null,null,null,null,null,null,null,null,null,null,null,null,null,null,null,null,null,null,null,null,null,null,null,null,null,null,null,null,null,null,null,null,null,null,null,null,null,"ORMOZ",35,"ORENSE",32,"NEBRASKA","NE",67,"ÁREA DE SMOLENSK",null,null,null,null,33,"GIRONDE",35,"LESVOS",35,"TOLNA",35,"UTTARANCHAL",null,null,null,null,"FI","FLORENCIA",11,"SAITAMA",null,null,null,null,null,null,null,null,null,null,null,null,null,null,null,null,"SE","EAST SUSSEX",null,null,35,"SIBIU",null,null,null,null,null,null,null,null,35,"NONG KHAI",null,null,28,"GIRESUN"]
[null,null,null,"BUTÁN","BT",null,"CATAMARCA","02",null,"ENTRADA","EN ",null,null,null,null,null,null,null,null,null,null,null,null,null,null,null,null,null,null,"Dinar jordano","JOD","CONCEPCION",null,null,"SOPLAVIENTO","GACHANTIVA",null,null,"SUAREZ",null,null,"GIRARDOT",null,"VILLAVIEJA",null,null,null,"LOS ANDES","TEORAMA",null,null,"GIRON",null,"RIOBLANCO","TULUA",null,null,null,null,null,null,null,null,null,null,null,null,null,null,null,null,null,null,null,null,null,null,null,null,null,null,null,null,null,null,null,null,null,null,null,null,null,null,null,null,null,"PESNICA",36,"PALENCIA",34,"NEVADA","NV",66,"ÁREA DE SVERDLOVSK",null,null,null,null,971,"GUADALUPE",36,"LEVKAS",36,"VAS",null,null,null,null,null,null,"FG","FOGGIA",25,"SHIGA",null,null,null,null,null,null,null,null,null,null,null,null,null,null,null,null,"ES","ESSEX",null,null,36,"SUCEAVA",null,null,null,null,null,null,null,null,36,"NONTHABURI",null,null,29,"GÜMÜSHANE"]
[null,null,null,"CABO VERDE","CV",null,"CÓRDOBA","05",null,"ESCALERA","ES ",null,null,null,null,null,null,null,null,null,null,null,null,null,null,null,null,null,null,"Dinar kuwaití","KWD","CONCORDIA",null,null,"TALAIGUA NUEVO","GAMEZA",null,null,"TIMBIO",null,null,"GRANADA",null,"YAGUARA",null,null,null,"MAGUI","TIBU",null,null,"GUACA",null,"RONCESVALLES","ULLOA",null,null,null,null,null,null,null,null,null,null,null,null,null,null,null,null,null,null,null,null,null,null,null,null,null,null,null,null,null,null,null,null,null,null,null,null,null,null,null,null,null,"PIRAN",37,"PONTEVEDRA",36,"NEW HAMPSHIRE","NH",68,"ÁREA DE TAMBOV",null,null,null,null,973,"GUYANA",37,"MAGNISIA",37,"VESZPREM",null,null,null,null,null,null,"FC","FORLI/CESANA",32,"SHIMANE",null,null,null,null,null,null,null,null,null,null,null,null,null,null,null,null,"FM","FERMANAGH",null,null,37,"TELEORMAN",null,null,null,null,null,null,null,null,37,"PATHUM THANI",null,null,30,"HAKKARI"]
[null,null,null,"CAMBOYA","KH",null,"CORRIENTES","04",null,"ESQUINA","ESQ ",null,null,null,null,null,null,null,null,null,null,null,null,null,null,null,null,null,null,"Dinar libio","LYD","COPACABANA",null,null,"TIQUISIO","GARAGOA",null,null,"TIMBIQUI",null,null,"GUACHETA",null,null,null,null,null,"MALLAMA","TOLEDO",null,null,"GUADALUPE",null,"ROVIRA","VERSALLES",null,null,null,null,null,null,null,null,null,null,null,null,null,null,null,null,null,null,null,null,null,null,null,null,null,null,null,null,null,null,null,null,null,null,null,null,null,null,null,null,null,"POSTOJNA",38,"SALAMANCA",37,"NUEVA JERSEY","NJ",70,"ÁREA DE TOMSK",null,null,null,null,92,"HAUTS-DE-SEINE",38,"MESSINIA",38,"ZALA",null,null,null,null,null,null,"GE","GÉNOVA",22,"SHIZUOKA",null,null,null,null,null,null,null,null,null,null,null,null,null,null,null,null,"FI","FIFE",null,null,38,"TIMIS",null,null,null,null,null,null,null,null,38,"PATTANI",null,null,31,"HATAY"]
[null,null,null,"CAMERÚN","CM",null,"ENTRE RIOS","05",null,"ESTE","ESTE ",null,null,null,null,null,null,null,null,null,null,null,null,null,null,null,null,null,null,"Dinar macedionio","MKD","DABEIBA",null,null,"TURBACO","GUACAMAYAS",null,null,"TORIBIO",null,null,"GUADUAS",null,null,null,null,null,"MOSQUERA","VILLA CARO",null,null,"GUAPOTA",null,"SALDAÑA","VIJES",null,null,null,null,null,null,null,null,null,null,null,null,null,null,null,null,null,null,null,null,null,null,null,null,null,null,null,null,null,null,null,null,null,null,null,null,null,null,null,null,null,"PTUJ",39,"SEGOVIA",40,"NUEVA YORK","NY",71,"ÁREA DE TULA",null,null,null,null,34,"HÉRAULT",39,"PELLA",39,"ZALAEGERSZEG",null,null,null,null,null,null,"GO","GORIZIA",9,"TOCHIGI",null,null,null,null,null,null,null,null,null,null,null,null,null,null,null,null,"FL","FLINTSHIRE",null,null,39,"TULCEA",null,null,null,null,null,null,null,null,39,"PHANGNGA",null,null,33,"ICEL"]
[null,null,null,"CANADA","CA",null,"JUJUY","06",null,"ETAPA","ET ",null,null,null,null,null,null,null,null,null,null,null,null,null,null,null,null,null,null,"Dinar nuevo yugoslavo (antiguo)","YUM","DON MATIAS",null,null,"TURBANA","GUATEQUE",null,null,"TOTORO",null,null,"GUASCA",null,null,null,null,null,"OLAYA HERRERA","VILLA DEL ROSARIO",null,null,"GUAVATA",null,"SAN ANTONIO","YOTOCO",null,null,null,null,null,null,null,null,null,null,null,null,null,null,null,null,null,null,null,null,null,null,null,null,null,null,null,null,null,null,null,null,null,null,null,null,null,null,null,null,null,"RADLJE OB DRAVI",40,"SEVILLA",41,"NUEVO MÉXICO","NM",69,"ÁREA DE TVER",null,null,null,null,99,"HORS-FRANCE",40,"PIERIA",null,null,null,null,null,null,null,null,"GR","GROSSETO",13,"TOKIO",null,null,null,null,null,null,null,null,null,null,null,null,null,null,null,null,"GL","GLOUCESTERSHIRE",null,null,40,"VASLUI",null,null,null,null,null,null,null,null,40,"PHATTHALUNG",null,null,76,"IGDIR"]
[null,null,null,"CHAD","TD",null,"MENDOZA","07",null,"EXTERIOR","EX ",null,null,null,null,null,null,null,null,null,null,null,null,null,null,null,null,null,null,"Dinar serbio","RSD","EBEJICO",null,null,"VILLANUEVA","GUAYATA",null,null,"VILLA RICA",null,null,"GUATAQUI",null,null,null,null,null,"OSPINA",null,null,null,"GUEPSA",null,"SAN LUIS","YUMBO",null,null,null,null,null,null,null,null,null,null,null,null,null,null,null,null,null,null,null,null,null,null,null,null,null,null,null,null,null,null,null,null,null,null,null,null,null,null,null,null,null,"RADOVLJICA",41,"SORIA",42,"OHIO","OH",72,"ÁREA DE TYUMEN",null,null,null,null,35,"ILLE-ET-VILAINE",41,"PIRAIEVS",null,null,null,null,null,null,null,null,"IM","IMPERIA",36,"TOKUSHIMA",null,null,null,null,null,null,null,null,null,null,null,null,null,null,null,null,"HA","HAMPSHIRE",null,null,41,"VILCEA",null,null,null,null,null,null,null,null,41,"PHAYAO",null,null,32,"ISPARTA"]
[null,null,null,"CHILE","CL",null,"LA RIOJA","08",null,"FINCA","FCA ",null,null,null,null,null,null,null,null,null,null,null,null,null,null,null,null,null,null,"Dinar serbio (antiguo)","CSD","EL BAGRE",null,null,"ZAMBRANO","GUICAN",null,null,null,null,null,"GUATAVITA",null,null,null,null,null,"PASTO",null,null,null,"HATO",null,"SANTA ISABEL","ZARZAL",null,null,null,null,null,null,null,null,null,null,null,null,null,null,null,null,null,null,null,null,null,null,null,null,null,null,null,null,null,null,null,null,null,null,null,null,null,null,null,null,null,"RAVNE NA KOROSKEM",42,"STA.CRUZ TENERIFE",38,"OKLAHOMA","OK",33,"ÁREA DE VLADÍMIR",null,null,null,null,36,"INDRE",42,"PREVEZA",null,null,null,null,null,null,null,null,"IS","ISERNIA",31,"TOTTORI",null,null,null,null,null,null,null,null,null,null,null,null,null,null,null,null,"HW","HEREFORD Y WORCESTER",null,null,42,"VRANCEA",null,null,null,null,null,null,null,null,42,"PHETCHABUN",null,null,46,"K.MARASH"]
[null,null,null,"CHINA","CN",null,"SALTA","09",null,"GARAJE","GJ ",null,null,null,null,null,null,null,null,null,null,null,null,null,null,null,null,null,null,"Dinar sudanés (antiguo)","SDD","EL CARMEN DE VIBORAL",null,null,null,"IZA",null,null,null,null,null,"GUAYABAL DE SIQUIMA",null,null,null,null,null,"POLICARPA",null,null,null,"JESUS MARIA",null,"SUAREZ",null,null,null,null,null,null,null,null,null,null,null,null,null,null,null,null,null,null,null,null,null,null,null,null,null,null,null,null,null,null,null,null,null,null,null,null,null,null,null,null,null,null,"RIBNICA",43,"TARRAGONA",43,"OREGÓN","OR",34,"ÁREA DE VOLGOGRADO",null,null,null,null,37,"INDRE-ET-LOIRE",43,"RETHIMNI",null,null,null,null,null,null,null,null,"SP","LA SPEZIA",16,"TOYAMA",null,null,null,null,null,null,null,null,null,null,null,null,null,null,null,null,"HT","HERTFORDSHIRE",null,null,null,null,null,null,null,null,null,null,null,null,43,"PHETCHABURI",null,null,70,"KARAMAN"]
[null,null,null,"CHIPRE","CY",null,"SAN JUAN",10,null,"GARAJE SÓTANO","GS ",null,null,null,null,null,null,null,null,null,null,null,null,null,null,null,null,null,null,"Dinar tunecino","TND","EL SANTUARIO",null,null,null,"JENESANO",null,null,null,null,null,"GUAYABETAL",null,null,null,null,null,"POTOSI",null,null,null,"JORDAN",null,"VALLE DE SAN JUAN",null,null,null,null,null,null,null,null,null,null,null,null,null,null,null,null,null,null,null,null,null,null,null,null,null,null,null,null,null,null,null,null,null,null,null,null,null,null,null,null,null,null,"RUSE",44,"TERUEL",44,"PENNSYLVANIA","PA",35,"ÁREA DE VOLOGDA",null,null,null,null,38,"ISÈRE",44,"RODHOPI",null,null,null,null,null,null,null,null,"AQ","L'AQUILA",30,"WAKAYAMA",null,null,null,null,null,null,null,null,null,null,null,null,null,null,null,null,"HU","HUNTINGDONSHIRE",null,null,null,null,null,null,null,null,null,null,null,null,44,"PHICHIT",null,null,36,"KARS"]
[null,null,null,"CIUDAD VATICANO","VA",null,"SAN LUIS",11,null,"GLORIETA","GT ",null,null,null,null,null,null,null,null,null,null,null,null,null,null,null,null,null,null,"Dirham Emiratos Árabes Unidos","AED","ENTRERRIOS",null,null,null,"JERICO",null,null,null,null,null,"GUTIERREZ",null,null,null,null,null,"PROVIDENCIA",null,null,null,"LA BELLEZA",null,"VENADILLO",null,null,null,null,null,null,null,null,null,null,null,null,null,null,null,null,null,null,null,null,null,null,null,null,null,null,null,null,null,null,null,null,null,null,null,null,null,null,null,null,null,null,"SENTJUR PRI CELJU",45,"TOLEDO",45,"PUERTO RICO","PR",36,"ÁREA DE VORÓNEZH",null,null,null,null,39,"JURA",48,"SALÓNICA",null,null,null,null,null,null,null,null,"LT","LATINA",6,"YAMAGATA",null,null,null,null,null,null,null,null,null,null,null,null,null,null,null,null,"IN","INVERNESSHIRE",null,null,null,null,null,null,null,null,null,null,null,null,45,"PHITSANULOK",null,null,37,"KASTAMONU"]
[null,null,null,"COLOMBIA","CO",null,"SANTA FÉ",12,null,"HACIENDA","HC ",null,null,null,null,null,null,null,null,null,null,null,null,null,null,null,null,null,null,"Dirham marroquí","MAD","ENVIGADO",null,null,null,"LA CAPILLA",null,null,null,null,null,"JERUSALEN",null,null,null,null,null,"PUERRES",null,null,null,"LA PAZ",null,"VILLAHERMOSA",null,null,null,null,null,null,null,null,null,null,null,null,null,null,null,null,null,null,null,null,null,null,null,null,null,null,null,null,null,null,null,null,null,null,null,null,null,null,null,null,null,null,"SEVNICA",46,"VALENCIA",46,"RHODE ISLAND","RI",76,"ÁREA DE YAROSLAVL",null,null,null,null,40,"LANDES",45,"SAMOS",null,null,null,null,null,null,null,null,"LE","LECCE",35,"YAMAGUCHI",null,null,null,null,null,null,null,null,null,null,null,null,null,null,null,null,"IW","ISLA DE WIGHT",null,null,null,null,null,null,null,null,null,null,null,null,46,"PHRA NAKHON SI AYUT.",null,null,38,"KAYSERI"]
[null,null,null,"COMORAS","KM",null,"SANTIAGO DEL ESTERO",13,null,"HANGAR","HG ",null,null,null,null,null,null,null,null,null,null,null,null,null,null,null,null,null,null,"Dobra Santo Tomé","STD","FREDONIA",null,null,null,"LA UVITA",null,null,null,null,null,"JUNIN",null,null,null,null,null,"PUPIALES",null,null,null,"LANDAZURI",null,"VILLARRICA",null,null,null,null,null,null,null,null,null,null,null,null,null,null,null,null,null,null,null,null,null,null,null,null,null,null,null,null,null,null,null,null,null,null,null,null,null,null,null,null,null,null,"SEZANA",47,"VALLADOLID",47,"SAMOA AMERICANA","AS",75,"ÁREA DE ZABAIKALSK",null,null,null,null,8,"LAS ARDENAS",46,"SERRAI",null,null,null,null,null,null,null,null,"LI","LIVORNO",19,"YAMANASHI",null,null,null,null,null,null,null,null,null,null,null,null,null,null,null,null,"KE","KENT",null,null,null,null,null,null,null,null,null,null,null,null,47,"PHRAE",null,null,71,"KIRIKKALE"]
[null,null,null,"COREA DEL NORTE","KP",null,"TUCUMÁN",14,null,"INSPECCIÓN DE POLICÍA","IP ",null,null,null,null,null,null,null,null,null,null,null,null,null,null,null,null,null,null,"Dólar australiano","AUD","FRONTINO",null,null,null,"LA VICTORIA",null,null,null,null,null,"LA CALERA",null,null,null,null,null,"RICAURTE",null,null,null,"LEBRIJA",null,null,null,null,null,null,null,null,null,null,null,null,null,null,null,null,null,null,null,null,null,null,null,null,null,null,null,null,null,null,null,null,null,null,null,null,null,null,null,null,null,null,null,null,"SKOFJA LOKA",48,"VIZCAYA",48,"TENNESSEE","TN",61,"ÁREA ROSTOV DEL DON",null,null,null,null,42,"LOIRE",47,"THESPROTIA",null,null,null,null,null,null,null,null,"LO","LODI",null,null,null,null,null,null,null,null,null,null,null,null,null,null,null,null,null,null,"KI","KINCARDINESHIRE",null,null,null,null,null,null,null,null,null,null,null,null,48,"PHUKET",null,null,39,"KIRKLARELI"]
[null,null,null,"COREA _DEL_SUR","KR",null,"CHACO",16,null,"INSPECCIÓN DEPARTAMENTAL ","IPD ",null,null,null,null,null,null,null,null,null,null,null,null,null,null,null,null,null,null,"Dólar Bahamas","BSD","GIRALDO",null,null,null,"LABRANZAGRANDE",null,null,null,null,null,null,null,null,null,null,null,"ROBERTO PAYAN",null,null,null,"LOS SANTOS",null,null,null,null,null,null,null,null,null,null,null,null,null,null,null,null,null,null,null,null,null,null,null,null,null,null,null,null,null,null,null,null,null,null,null,null,null,null,null,null,null,null,null,null,"SLOVENJ GRADEC",49,"ZAMORA",49,"TEXAS","TX",78,"C.ST-PETERBURG",null,null,null,null,43,"LOIRE (HAUTE)",49,"TRIKALA",null,null,null,null,null,null,null,null,"LC","LUCCA",null,null,null,null,null,null,null,null,null,null,null,null,null,null,null,null,null,null,"KN","KINROSS-SHIRE",null,null,null,null,null,null,null,null,null,null,null,null,49,"PRACHIN BURI",null,null,40,"KIRSHEHIR"]
[null,null,null,"COSTA DE MARFIL","CI",null,"CHUBUT",17,null,"INSPECCIÓN MUNICIPAL ","IPM ",null,null,null,null,null,null,null,null,null,null,null,null,null,null,null,null,null,null,"Dólar Barbados","BBD","GIRARDOTA",null,null,null,"MACANAL",null,null,null,null,null,null,null,null,null,null,null,"SAMANIEGO",null,null,null,"MACARAVITA",null,null,null,null,null,null,null,null,null,null,null,null,null,null,null,null,null,null,null,null,null,null,null,null,null,null,null,null,null,null,null,null,null,null,null,null,null,null,null,null,null,null,null,null,"SLOVENSKA BISTRICA",50,"ZARAGOZA",50,"UTAH","UT",77,"CANAL DE MOSCÚ",null,null,null,null,44,"LOIRE-ATLANTIQUE",50,"VOIOTIA",null,null,null,null,null,null,null,null,"LU","LUCCA",null,null,null,null,null,null,null,null,null,null,null,null,null,null,null,null,null,null,"KK","KIRKCUDBRIGHTSHIRE",null,null,null,null,null,null,null,null,null,null,null,null,null,null,null,null,41,"KOCAELI"]
[null,null,null,"COSTA RICA","CR",null,"FORMOSA",18,null,"INTERIOR ","IN ",null,null,null,null,null,null,null,null,null,null,null,null,null,null,null,null,null,null,"Dólar Belice","BZD","GOMEZ PLATA",null,null,null,"MARIPI",null,null,null,null,null,null,null,null,null,null,null,"SAN ANDRES DE TUMACO",null,null,null,"MALAGA",null,null,null,null,null,null,null,null,null,null,null,null,null,null,null,null,null,null,null,null,null,null,null,null,null,null,null,null,null,null,null,null,null,null,null,null,null,null,null,null,null,null,null,null,"SLOVENSKE KONJICE",51,null,null,"VERMONT","VT",80,"DI.AUT.AGINSK BURYAT",null,null,null,null,45,"LOIRET",51,"XANTHI",null,null,null,null,null,null,null,null,"MC","MACERATA",null,null,null,null,null,null,null,null,null,null,null,null,null,null,null,null,null,null,"LN","LANARKSHIRE",null,null,null,null,null,null,null,null,null,null,null,null,null,null,null,null,42,"KONYA"]
[null,null,null,"CROACIA","HR",null,"MISIONES",19,null,"KILÓMETRO  ","KM ",null,null,null,null,null,null,null,null,null,null,null,null,null,null,null,null,null,null,"Dólar Bermudas","BMD","GRANADA",null,null,null,"MIRAFLORES",null,null,null,null,null,null,null,null,null,null,null,"SAN BERNARDO",null,null,null,"MATANZA",null,null,null,null,null,null,null,null,null,null,null,null,null,null,null,null,null,null,null,null,null,null,null,null,null,null,null,null,null,null,null,null,null,null,null,null,null,null,null,null,null,null,null,null,"SMARJE PRI JELSAH",52,null,null,"VIRGINIA","VA",81,"DI.AUT.KOMY PERMJATS",null,null,null,null,41,"LOIR-ET-CHER",52,"ZAKINTHOS",null,null,null,null,null,null,null,null,"MN","MANTOVA",null,null,null,null,null,null,null,null,null,null,null,null,null,null,null,null,null,null,"LA","LANCASHIRE",null,null,null,null,null,null,null,null,null,null,null,null,null,null,null,null,43,"KÜTAHYA"]
[null,null,null,"CUBA","CU",null,"NEUQUEN",20,null,"LOCAL  ","LC ",null,null,null,null,null,null,null,null,null,null,null,null,null,null,null,null,null,null,"Dólar Brunei","BND","GUADALUPE",null,null,null,"MONGUA",null,null,null,null,null,null,null,null,null,null,null,"SAN LORENZO",null,null,null,"MOGOTES",null,null,null,null,null,null,null,null,null,null,null,null,null,null,null,null,null,null,null,null,null,null,null,null,null,null,null,null,null,null,null,null,null,null,null,null,null,null,null,null,null,null,null,null,"TOLMIN",53,null,null,"VIRGINIA OCCIDENTAL","WV",86,"DIS.CHANTI-MANSYJSKY",null,null,null,null,46,"LOT",null,null,null,null,null,null,null,null,null,null,"MS","MASSA CARRARA",null,null,null,null,null,null,null,null,null,null,null,null,null,null,null,null,null,null,"LE","LEICESTERSHIRE",null,null,null,null,null,null,null,null,null,null,null,null,null,null,null,null,44,"MALATYA"]
[null,null,null,"CURAÇAO","CW",null,"LA PAMPA",21,null,"LOCAL MEZZANINE ","LM ",null,null,null,null,null,null,null,null,null,null,null,null,null,null,null,null,null,null,"Dólar Caimanes","KYD","GUARNE",null,null,null,"MONGUI",null,null,null,null,null,null,null,null,null,null,null,"SAN PABLO",null,null,null,"MOLAGAVITA",null,null,null,null,null,null,null,null,null,null,null,null,null,null,null,null,null,null,null,null,null,null,null,null,null,null,null,null,null,null,null,null,null,null,null,null,null,null,null,null,null,null,null,null,"TRBOVLJE",54,null,null,"WASHINGTON","WA",89,"DIS.JAMALO-NENEKCHKY",null,null,null,null,47,"LOT-ET-GARONNE",null,null,null,null,null,null,null,null,null,null,"MT","MATERA",null,null,null,null,null,null,null,null,null,null,null,null,null,null,null,null,null,null,"LI","LINCOLNSHIRE",null,null,null,null,null,null,null,null,null,null,null,null,null,null,null,null,45,"MANISA"]
[null,null,null,"DE ISL.MARSHALL","MH",null,"RIO NEGRO",22,null,"LOTE  ","LT ",null,null,null,null,null,null,null,null,null,null,null,null,null,null,null,null,null,null,"Dólar canadiense","CAD","GUATAPE",null,null,null,"MONIQUIRA",null,null,null,null,null,null,null,null,null,null,null,"SAN PEDRO DE CARTAGO",null,null,null,"OCAMONTE",null,null,null,null,null,null,null,null,null,null,null,null,null,null,null,null,null,null,null,null,null,null,null,null,null,null,null,null,null,null,null,null,null,null,null,null,null,null,null,null,null,null,null,null,"TREBNJE",55,null,null,"WISCONSIN","WI",83,"DISTR.AUT.NENEKCHKY",null,null,null,null,48,"LOZÈRE",null,null,null,null,null,null,null,null,null,null,"VS","MEDIO CAMPIDANO",null,null,null,null,null,null,null,null,null,null,null,null,null,null,null,null,null,null,"LD","LONDONDERRY",null,null,null,null,null,null,null,null,null,null,null,null,null,null,null,null,47,"MARDIN"]
[null,null,null,"DINAMARCA","DK",null,"SANTA CRUZ",23,null,"MANZANA  ","MZ ",null,null,null,null,null,null,null,null,null,null,null,null,null,null,null,null,null,null,"Dólar caribeño oriental","XCD","HELICONIA",null,null,null,"MOTAVITA",null,null,null,null,null,null,null,null,null,null,null,"SANDONA",null,null,null,"OIBA",null,null,null,null,null,null,null,null,null,null,null,null,null,null,null,null,null,null,null,null,null,null,null,null,null,null,null,null,null,null,null,null,null,null,null,null,null,null,null,null,null,null,null,null,"TRZIC",56,null,null,"WYOMING","WY",87,"DISTR.AUTON.CHUKOTKA",null,null,null,null,49,"MAINE-ET-LOIRE",null,null,null,null,null,null,null,null,null,null,"ME","MESSINA",null,null,null,null,null,null,null,null,null,null,null,null,null,null,null,null,null,null,"ME","MERIONETH",null,null,null,null,null,null,null,null,null,null,null,null,null,null,null,null,48,"MUGLA"]
[null,null,null,"DOMINICA","DM",null,"TIERRA DE FUEGO",24,null,"MEZZANINE  ","MN ",null,null,null,null,null,null,null,null,null,null,null,null,null,null,null,null,null,null,"Dólar fiyiano","FJD","HISPANIA",null,null,null,"MUZO",null,null,null,null,null,null,null,null,null,null,null,"SANTA BARBARA",null,null,null,"ONZAGA",null,null,null,null,null,null,null,null,null,null,null,null,null,null,null,null,null,null,null,null,null,null,null,null,null,null,null,null,null,null,null,null,null,null,null,null,null,null,null,null,null,null,null,null,"VELENJE",57,null,null,null,null,88,"DISTR.AUTON.EVENSKY",null,null,null,null,50,"MANCHE",null,null,null,null,null,null,null,null,null,null,"MI","MILÁN",null,null,null,null,null,null,null,null,null,null,null,null,null,null,null,null,null,null,"MG","MID GLAMORGAN",null,null,null,null,null,null,null,null,null,null,null,null,null,null,null,null,49,"MUSH"]
[null,null,null,"E.A.U.","AE",null,"BURGENLAND","B",null,"MÓDULO  ","MD ",null,null,null,null,null,null,null,null,null,null,null,null,null,null,null,null,null,null,"Dólar guyanés","GYD","ITAGUI",null,null,null,"NOBSA",null,null,null,null,null,null,null,null,null,null,null,"SANTACRUZ",null,null,null,"PALMAR",null,null,null,null,null,null,null,null,null,null,null,null,null,null,null,null,null,null,null,null,null,null,null,null,null,null,null,null,null,null,null,null,null,null,null,null,null,null,null,null,null,null,null,null,"VRHNIKA",58,null,null,null,null,82,"DISTR.AUTON.KORJACS",null,null,null,null,51,"MARNE",null,null,null,null,null,null,null,null,null,null,"MO","MÓDENA",null,null,null,null,null,null,null,null,null,null,null,null,null,null,null,null,null,null,"MX","MIDDLESEX",null,null,null,null,null,null,null,null,null,null,null,null,null,null,null,null,50,"NEVSHEHIR"]
[null,null,null,"ECUADOR","EC",null,"CARINTIA","K",null,"MOJÓN  ","MJ ",null,null,null,null,null,null,null,null,null,null,null,null,null,null,null,null,null,null,"Dólar Hong Kong","HKD","ITUANGO",null,null,null,"NUEVO COLON",null,null,null,null,null,null,null,null,null,null,null,"SAPUYES",null,null,null,"PALMAS DEL SOCORRO",null,null,null,null,null,null,null,null,null,null,null,null,null,null,null,null,null,null,null,null,null,null,null,null,null,null,null,null,null,null,null,null,null,null,null,null,null,null,null,null,null,null,null,null,"ZAGORJE OB SAVI",59,null,null,null,null,84,"DISTR.AUTON.TAYMIR",null,null,null,null,52,"MARNE (HAUTE)",null,null,null,null,null,null,null,null,null,null,"MB","MONZA Y BRIANZA",null,null,null,null,null,null,null,null,null,null,null,null,null,null,null,null,null,null,"MD","MIDLOTHIAN",null,null,null,null,null,null,null,null,null,null,null,null,null,null,null,null,51,"NIGDE"]
[null,null,null,"EGIPTO","EG",null,"BAJA AUSTRIA","NOE",null,"MUELLE  ","MLL ",null,null,null,null,null,null,null,null,null,null,null,null,null,null,null,null,null,null,"Dólar isla de San Cristóbal --> XCD","XDS","JARDIN",null,null,null,"OICATA",null,null,null,null,null,null,null,null,null,null,null,"SOTOMAYOR",null,null,null,"PARAMO",null,null,null,null,null,null,null,null,null,null,null,null,null,null,null,null,null,null,null,null,null,null,null,null,null,null,null,null,null,null,null,null,null,null,null,null,null,null,null,null,null,null,null,null,"ZALEC",60,null,null,null,null,9,"KARACHIEVO-CHERKESIA",null,null,null,null,972,"MARTINICA",null,null,null,null,null,null,null,null,null,null,"NA","NÁPOLES",null,null,null,null,null,null,null,null,null,null,null,null,null,null,null,null,null,null,"MM","MONMOUTHSHIRE",null,null,null,null,null,null,null,null,null,null,null,null,null,null,null,null,52,"ORDU"]
[null,null,null,"EL SALVADOR","SV",null,"ALTA AUSTRIA","OOE",null,"NORTE  ","NORTE ",null,null,null,null,null,null,null,null,null,null,null,null,null,null,null,null,null,null,"Dólar jamaicano","JMD","JERICO",null,null,null,"OTANCHE",null,null,null,null,null,null,null,null,null,null,null,"TAMINANGO",null,null,null,"PIEDECUESTA",null,null,null,null,null,null,null,null,null,null,null,null,null,null,null,null,null,null,null,null,null,null,null,null,null,null,null,null,null,null,null,null,null,null,null,null,null,null,null,null,null,null,null,null,null,null,null,null,null,null,52,"NIZNI NÓVGOROD",null,null,null,null,53,"MAYENNE",null,null,null,null,null,null,null,null,null,null,"NO","NOVARA",null,null,null,null,null,null,null,null,null,null,null,null,null,null,null,null,null,null,"MT","MONTGOMERYSHIRE",null,null,null,null,null,null,null,null,null,null,null,null,null,null,null,null,53,"RIZE"]
[null,null,null,"ERITREA","ER",null,"SALZBURGO","S",null,"OCCIDENTE  ","OCC ",null,null,null,null,null,null,null,null,null,null,null,null,null,null,null,null,null,null,"Dólar liberiano","LRD","LA CEJA",null,null,null,"PACHAVITA",null,null,null,null,null,null,null,null,null,null,null,"TANGUA",null,null,null,"PINCHOTE",null,null,null,null,null,null,null,null,null,null,null,null,null,null,null,null,null,null,null,null,null,null,null,null,null,null,null,null,null,null,null,null,null,null,null,null,null,null,null,null,null,null,null,null,null,null,null,null,null,null,7,"R.KABARDINA-BALKARIA",null,null,null,null,54,"MEURTHE-ET-MOSELLE",null,null,null,null,null,null,null,null,null,null,"NU","NUORO",null,null,null,null,null,null,null,null,null,null,null,null,null,null,null,null,null,null,"MR","MORAYSHIRE",null,null,null,null,null,null,null,null,null,null,null,null,null,null,null,null,54,"SAKARYA"]
[null,null,null,"ESLOVAQUIA","SK",null,"ESTIRIA","ST",null,"OESTE  ","OESTE ",null,null,null,null,null,null,null,null,null,null,null,null,null,null,null,null,null,null,"Dolar namíbio","NAD","LA ESTRELLA",null,null,null,"PAEZ",null,null,null,null,null,null,null,null,null,null,null,"TUQUERRES",null,null,null,"PUENTE NACIONAL",null,null,null,null,null,null,null,null,null,null,null,null,null,null,null,null,null,null,null,null,null,null,null,null,null,null,null,null,null,null,null,null,null,null,null,null,null,null,null,null,null,null,null,null,null,null,null,null,null,null,3,"REP.BASHKORTOSTÁN",null,null,null,null,55,"MEUSE",null,null,null,null,null,null,null,null,null,null,"OG","OGLIASTRA",null,null,null,null,null,null,null,null,null,null,null,null,null,null,null,null,null,null,"NR","NAIRNSHIRE",null,null,null,null,null,null,null,null,null,null,null,null,null,null,null,null,55,"SAMSUN"]
[null,null,null,"ESLOVENIA","SI",null,"TIROL","T",null,"OFICINA  ","OF ",null,null,null,null,null,null,null,null,null,null,null,null,null,null,null,null,null,null,"Dólar neozelandés","NZD","LA PINTADA",null,null,null,"PAIPA",null,null,null,null,null,null,null,null,null,null,null,"YACUANQUER",null,null,null,"PUERTO PARRA",null,null,null,null,null,null,null,null,null,null,null,null,null,null,null,null,null,null,null,null,null,null,null,null,null,null,null,null,null,null,null,null,null,null,null,null,null,null,null,null,null,null,null,null,null,null,null,null,null,null,15,"REP.OSETIA DEL NORTE",null,null,null,null,56,"MORBIHAN",null,null,null,null,null,null,null,null,null,null,"OT","OLBIA-TEMPIO",null,null,null,null,null,null,null,null,null,null,null,null,null,null,null,null,null,null,"NK","NORFOLK",null,null,null,null,null,null,null,null,null,null,null,null,null,null,null,null,63,"SHANLIURFA"]
[null,null,null,"ESPAÑA","ES",null,"VORARLBERG","V",null,"ORIENTE  ","O ",null,null,null,null,null,null,null,null,null,null,null,null,null,null,null,null,null,null,"Dólar neozelandés","NZD5","LA UNION",null,null,null,"PAJARITO",null,null,null,null,null,null,null,null,null,null,null,null,null,null,null,"PUERTO WILCHES",null,null,null,null,null,null,null,null,null,null,null,null,null,null,null,null,null,null,null,null,null,null,null,null,null,null,null,null,null,null,null,null,null,null,null,null,null,null,null,null,null,null,null,null,null,null,null,null,null,null,2,"REP.TIER.ALTAS ALTÁI",null,null,null,null,57,"MOSELLE",null,null,null,null,null,null,null,null,null,null,"OR","ORISTANO",null,null,null,null,null,null,null,null,null,null,null,null,null,null,null,null,null,null,"YN","NORTH YORKSHIRE",null,null,null,null,null,null,null,null,null,null,null,null,null,null,null,null,73,"SHIRNAK"]
[null,null,null,"ESTADOS_UNIDOS","US",null,"VIENA","W",null,"PARAJE  ","PRJ ",null,null,null,null,null,null,null,null,null,null,null,null,null,null,null,null,null,null,"Dólar Salomón","SBD","LIBORINA",null,null,null,"PANQUEBA",null,null,null,null,null,null,null,null,null,null,null,null,null,null,null,"RIONEGRO",null,null,null,null,null,null,null,null,null,null,null,null,null,null,null,null,null,null,null,null,null,null,null,null,null,null,null,null,null,null,null,null,null,null,null,null,null,null,null,null,null,null,null,null,null,null,null,null,null,null,1,"REPÚBLICA ADIGUESIA",null,null,null,null,58,"NIÈVRE",null,null,null,null,null,null,null,null,null,null,"PD","PADUA",null,null,null,null,null,null,null,null,null,null,null,null,null,null,null,null,null,null,"NH","NORTHAMPTONSHIRE",null,null,null,null,null,null,null,null,null,null,null,null,null,null,null,null,56,"SIIRT"]
[null,null,null,"ESTONIA","EE",null,"AUST CAPITAL TERR","ACT",null,"PARCELA  ","PA ",null,null,null,null,null,null,null,null,null,null,null,null,null,null,null,null,null,null,"Dólar Singapur","SGD","MACEO",null,null,null,"PAUNA",null,null,null,null,null,null,null,null,null,null,null,null,null,null,null,"SABANA DE TORRES",null,null,null,null,null,null,null,null,null,null,null,null,null,null,null,null,null,null,null,null,null,null,null,null,null,null,null,null,null,null,null,null,null,null,null,null,null,null,null,null,null,null,null,null,null,null,null,null,null,null,4,"REPÚBLICA BURIATIA",null,null,null,null,59,"NORTE",null,null,null,null,null,null,null,null,null,null,"PA","PALERMO",null,null,null,null,null,null,null,null,null,null,null,null,null,null,null,null,null,null,"NU","NORTHUMBERLAND",null,null,null,null,null,null,null,null,null,null,null,null,null,null,null,null,57,"SINOP"]
[null,null,null,"ETIOPÍA","ET",null,"NUEVA GALES DEL SUR","NSW",null,"PARK WAY ","PW ",null,null,null,null,null,null,null,null,null,null,null,null,null,null,null,null,null,null,"Dólar surinamita","SRD","MARINILLA",null,null,null,"PAYA",null,null,null,null,null,null,null,null,null,null,null,null,null,null,null,"SAN ANDRES",null,null,null,null,null,null,null,null,null,null,null,null,null,null,null,null,null,null,null,null,null,null,null,null,null,null,null,null,null,null,null,null,null,null,null,null,null,null,null,null,null,null,null,null,null,null,null,null,null,null,8,"REPÚBLICA CALMUQUIA",null,null,null,null,60,"OISE",null,null,null,null,null,null,null,null,null,null,"PR","PARMA",null,null,null,null,null,null,null,null,null,null,null,null,null,null,null,null,null,null,"NT","NOTTINGHAMSHIRE",null,null,null,null,null,null,null,null,null,null,null,null,null,null,null,null,58,"SIVAS"]
[null,null,null,"FEDERACIÓN_RUSA","RU",null,"TERRITORIO DEL NORTE","NT",null,"PARQUE  ","PAR ",null,null,null,null,null,null,null,null,null,null,null,null,null,null,null,null,null,null,"Dólar taiwanés nuevo","TWD","MEDELLIN",null,null,null,"PAZ DE RIO",null,null,null,null,null,null,null,null,null,null,null,null,null,null,null,"SAN BENITO",null,null,null,null,null,null,null,null,null,null,null,null,null,null,null,null,null,null,null,null,null,null,null,null,null,null,null,null,null,null,null,null,null,null,null,null,null,null,null,null,null,null,null,null,null,null,null,null,null,null,10,"REPÚBLICA CARELIA",null,null,null,null,61,"ORNE",null,null,null,null,null,null,null,null,null,null,"PV","PAVIA",null,null,null,null,null,null,null,null,null,null,null,null,null,null,null,null,null,null,"OR","ORKNEY",null,null,null,null,null,null,null,null,null,null,null,null,null,null,null,null,59,"TEKIRDAG"]
[null,null,null,"FILIPINAS","PH",null,"QUEENSLAND","QLD",null,"PARQUEADERO  ","PQ ",null,null,null,null,null,null,null,null,null,null,null,null,null,null,null,null,null,null,"Dólar Trinidad y Tobago","TTD","MONTEBELLO",null,null,null,"PESCA",null,null,null,null,null,null,null,null,null,null,null,null,null,null,null,"SAN GIL",null,null,null,null,null,null,null,null,null,null,null,null,null,null,null,null,null,null,null,null,null,null,null,null,null,null,null,null,null,null,null,null,null,null,null,null,null,null,null,null,null,null,null,null,null,null,null,null,null,null,20,"REPÚBLICA CHECHENIA",null,null,null,null,75,"PARÍS",null,null,null,null,null,null,null,null,null,null,"PG","PERUGIA",null,null,null,null,null,null,null,null,null,null,null,null,null,null,null,null,null,null,"OX","OXFORDSHIRE",null,null,null,null,null,null,null,null,null,null,null,null,null,null,null,null,60,"TOKAT"]
[null,null,null,"FINLANDIA","FI",null,"AUSTRALIA MERIDIONAL","SA",null,"PASAJE  ","PJ ",null,null,null,null,null,null,null,null,null,null,null,null,null,null,null,null,null,null,"Dólar Zimbabuense (antiguo)","ZWD","MURINDO",null,null,null,"PISBA",null,null,null,null,null,null,null,null,null,null,null,null,null,null,null,"SAN JOAQUIN",null,null,null,null,null,null,null,null,null,null,null,null,null,null,null,null,null,null,null,null,null,null,null,null,null,null,null,null,null,null,null,null,null,null,null,null,null,null,null,null,null,null,null,null,null,null,null,null,null,null,21,"REPÚBLICA CHUVASHIA",null,null,null,null,62,"PAS-DE-CALAIS",null,null,null,null,null,null,null,null,null,null,"PU","PESARO-URBINO",null,null,null,null,null,null,null,null,null,null,null,null,null,null,null,null,null,null,"PE","PEEBLESSHIRE",null,null,null,null,null,null,null,null,null,null,null,null,null,null,null,null,61,"TRABZON"]
[null,null,null,"FIYI","FJ",null,"TASMANIA","TAS",null,"PASEO  ","PS ",null,null,null,null,null,null,null,null,null,null,null,null,null,null,null,null,null,null,"Dólar Zimbabuense (nuevo)","ZWL","MUTATA",null,null,null,"PUERTO BOYACA",null,null,null,null,null,null,null,null,null,null,null,null,null,null,null,"SAN JOSE DE MIRANDA",null,null,null,null,null,null,null,null,null,null,null,null,null,null,null,null,null,null,null,null,null,null,null,null,null,null,null,null,null,null,null,null,null,null,null,null,null,null,null,null,null,null,null,null,null,null,null,null,null,null,5,"REPÚBLICA DAGUESTÁN",null,null,null,null,65,"PIRINEOS (ALTOS)",null,null,null,null,null,null,null,null,null,null,"PE","PESCARA",null,null,null,null,null,null,null,null,null,null,null,null,null,null,null,null,null,null,"PM","PEMBROKESHIRE",null,null,null,null,null,null,null,null,null,null,null,null,null,null,null,null,62,"TUNCELI"]
[null,null,null,"FRANCIA","FR",null,"VICTORIA","VIC",null,"PENTHOUSE  ","PH ",null,null,null,null,null,null,null,null,null,null,null,null,null,null,null,null,null,null,"Dólar Zimbabuense (obsoleto)","ZWN","NARIÑO",null,null,null,"QUIPAMA",null,null,null,null,null,null,null,null,null,null,null,null,null,null,null,"SAN MIGUEL",null,null,null,null,null,null,null,null,null,null,null,null,null,null,null,null,null,null,null,null,null,null,null,null,null,null,null,null,null,null,null,null,null,null,null,null,null,null,null,null,null,null,null,null,null,null,null,null,null,null,6,"REPÚBLICA INGUSHETIA",null,null,null,null,64,"PIRINEOS ATLÁNTICOS",null,null,null,null,null,null,null,null,null,null,"PC","PIACENZA",null,null,null,null,null,null,null,null,null,null,null,null,null,null,null,null,null,null,"PR","PERTHSHIRE",null,null,null,null,null,null,null,null,null,null,null,null,null,null,null,null,64,"USHAK"]
[null,null,null,"FRENCH S.TERRIT","TF",null,"AUTRALIA OCCIDENTAL","WA",null,"PISO  ","P ",null,null,null,null,null,null,null,null,null,null,null,null,null,null,null,null,null,null,"Dólar Zimbabuense (obsoleto)","ZWR","NECHI",null,null,null,"RAMIRIQUI",null,null,null,null,null,null,null,null,null,null,null,null,null,null,null,"SAN VICENTE DE CHUCURI",null,null,null,null,null,null,null,null,null,null,null,null,null,null,null,null,null,null,null,null,null,null,null,null,null,null,null,null,null,null,null,null,null,null,null,null,null,null,null,null,null,null,null,null,null,null,null,null,null,null,19,"REPÚBLICA JACASIA",null,null,null,null,66,"PIRINEOS ORIENTALES",null,null,null,null,null,null,null,null,null,null,"PI","PISA",null,null,null,null,null,null,null,null,null,null,null,null,null,null,null,null,null,null,"RA","RADNORSHIRE",null,null,null,null,null,null,null,null,null,null,null,null,null,null,null,null,65,"VAN"]
[null,null,null,"GABÓN","GA",null,"AMBERES","01",null,"PLANTA  ","PL ",null,null,null,null,null,null,null,null,null,null,null,null,null,null,null,null,null,null,"Dong vietnamita","VND","NECOCLI",null,null,null,"RAQUIRA",null,null,null,null,null,null,null,null,null,null,null,null,null,null,null,"SANTA BARBARA",null,null,null,null,null,null,null,null,null,null,null,null,null,null,null,null,null,null,null,null,null,null,null,null,null,null,null,null,null,null,null,null,null,null,null,null,null,null,null,null,null,null,null,null,null,null,null,null,null,null,11,"REPÚBLICA KOMI",null,null,null,null,63,"PUY-DE-DÔME",null,null,null,null,null,null,null,null,null,null,"PT","PISTOIA",null,null,null,null,null,null,null,null,null,null,null,null,null,null,null,null,null,null,"RE","RENFREWSHIRE",null,null,null,null,null,null,null,null,null,null,null,null,null,null,null,null,77,"YALOVA"]
[null,null,null,"GAMBIA","GM",null,"BRABANTE (FLAMENCO)","02",null,"PORTERÍA","POR ",null,null,null,null,null,null,null,null,null,null,null,null,null,null,null,null,null,null,"Dracma griego (obsoleto --> EUR)","GRD","OLAYA",null,null,null,"RONDON",null,null,null,null,null,null,null,null,null,null,null,null,null,null,null,"SANTA HELENA DEL OPON",null,null,null,null,null,null,null,null,null,null,null,null,null,null,null,null,null,null,null,null,null,null,null,null,null,null,null,null,null,null,null,null,null,null,null,null,null,null,null,null,null,null,null,null,null,null,null,null,null,null,12,"REPÚBLICA MARI",null,null,null,null,974,"RÉUNION",null,null,null,null,null,null,null,null,null,null,"PL","POLA",null,null,null,null,null,null,null,null,null,null,null,null,null,null,null,null,null,null,"RO","ROSS-SHIRE",null,null,null,null,null,null,null,null,null,null,null,null,null,null,null,null,66,"YOZGAT"]
[null,null,null,"GEORGIA","GE",null,"HAINAUT","03",null,"POSTE","POS ",null,null,null,null,null,null,null,null,null,null,null,null,null,null,null,null,null,null,"Dram armenio","AMD","PEÑOL",null,null,null,"SABOYA",null,null,null,null,null,null,null,null,null,null,null,null,null,null,null,"SIMACOTA",null,null,null,null,null,null,null,null,null,null,null,null,null,null,null,null,null,null,null,null,null,null,null,null,null,null,null,null,null,null,null,null,null,null,null,null,null,null,null,null,null,null,null,null,null,null,null,null,null,null,13,"REPÚBLICA MORDOVIA",null,null,null,null,68,"RIN (ALTO)",null,null,null,null,null,null,null,null,null,null,"PN","PORDENONE",null,null,null,null,null,null,null,null,null,null,null,null,null,null,null,null,null,null,"RX","ROXBURGHSHIRE",null,null,null,null,null,null,null,null,null,null,null,null,null,null,null,null,67,"ZONGULDAK"]
[null,null,null,"GHANA","GH",null,"LIEJA","04",null,"PREDIO","PD ",null,null,null,null,null,null,null,null,null,null,null,null,null,null,null,null,null,null,"Escudo Cabo Verde","CVE","PEQUE",null,null,null,"SACHICA",null,null,null,null,null,null,null,null,null,null,null,null,null,null,null,"SOCORRO",null,null,null,null,null,null,null,null,null,null,null,null,null,null,null,null,null,null,null,null,null,null,null,null,null,null,null,null,null,null,null,null,null,null,null,null,null,null,null,null,null,null,null,null,null,null,null,null,null,null,16,"REPÚBLICA TARTARIA",null,null,null,null,67,"RIN (BAJO)",null,null,null,null,null,null,null,null,null,null,"PZ","POTENZA",null,null,null,null,null,null,null,null,null,null,null,null,null,null,null,null,null,null,"RU","RUTLAND"]
[null,null,null,"GIBRALTAR","GI",null,"LIMBURGO","05",null,"PUENTE","PN ",null,null,null,null,null,null,null,null,null,null,null,null,null,null,null,null,null,null,"Escudo de Timor --> USD","TPE","PUEBLORRICO",null,null,null,"SAMACA",null,null,null,null,null,null,null,null,null,null,null,null,null,null,null,"SUAITA",null,null,null,null,null,null,null,null,null,null,null,null,null,null,null,null,null,null,null,null,null,null,null,null,null,null,null,null,null,null,null,null,null,null,null,null,null,null,null,null,null,null,null,null,null,null,null,null,null,null,17,"REPÚBLICA TUVA",null,null,null,null,69,"RÓDANO",null,null,null,null,null,null,null,null,null,null,"PO","PRATO",null,null,null,null,null,null,null,null,null,null,null,null,null,null,null,null,null,null,"SF","SELKIRKSHIRE"]
[null,null,null,"GRANADA","GD",null,"LUXEMBURGO","06",null,"PUESTO","PT ",null,null,null,null,null,null,null,null,null,null,null,null,null,null,null,null,null,null,"Escudo portugés (obsoleto --> EUR)","PTE","PUERTO BERRIO",null,null,null,"SAN EDUARDO",null,null,null,null,null,null,null,null,null,null,null,null,null,null,null,"SUCRE",null,null,null,null,null,null,null,null,null,null,null,null,null,null,null,null,null,null,null,null,null,null,null,null,null,null,null,null,null,null,null,null,null,null,null,null,null,null,null,null,null,null,null,null,null,null,null,null,null,null,18,"REPÚBLICA UDMURTIA",null,null,null,null,73,"SABOYA",null,null,null,null,null,null,null,null,null,null,"RG","RAGUSA",null,null,null,null,null,null,null,null,null,null,null,null,null,null,null,null,null,null,"SL","SHETLAND"]
[null,null,null,"GRECIA","GR",null,"NAMUR","07",null,"ROUND POINT","RP ",null,null,null,null,null,null,null,null,null,null,null,null,null,null,null,null,null,null,"Florín arubeño","AWG","PUERTO NARE",null,null,null,"SAN JOSE DE PARE",null,null,null,null,null,null,null,null,null,null,null,null,null,null,null,"SURATA",null,null,null,null,null,null,null,null,null,null,null,null,null,null,null,null,null,null,null,null,null,null,null,null,null,null,null,null,null,null,null,null,null,null,null,null,null,null,null,null,null,null,null,null,null,null,null,null,null,null,27,"TERRIT.KHABAROVSK",null,null,null,null,74,"SABOYA (ALTA)",null,null,null,null,null,null,null,null,null,null,"RA","RÁVENA",null,null,null,null,null,null,null,null,null,null,null,null,null,null,null,null,null,null,"SH","SHROPSHIRE"]
[null,null,null,"GROENLANDIA","GL",null,"OOST-VLAANDEREN","08",null,"SALIDA","SD ",null,null,null,null,null,null,null,null,null,null,null,null,null,null,null,null,null,null,"Florín holandés (obsoleto --> EUR)","NLG","PUERTO TRIUNFO",null,null,null,"SAN LUIS DE GACENO",null,null,null,null,null,null,null,null,null,null,null,null,null,null,null,"TONA",null,null,null,null,null,null,null,null,null,null,null,null,null,null,null,null,null,null,null,null,null,null,null,null,null,null,null,null,null,null,null,null,null,null,null,null,null,null,null,null,null,null,null,null,null,null,null,null,null,null,24,"TERRIT.KRASNOYARSK",null,null,null,null,975,"SAINT-PIERRE-ET-MIQ.",null,null,null,null,null,null,null,null,null,null,"RC","REGGIO CALABRIA",null,null,null,null,null,null,null,null,null,null,null,null,null,null,null,null,null,null,"SO","SOMERSET"]
[null,null,null,"GUADALUPE","GP",null,"WEST-VLAANDEREN","09",null,"SALÓN","SA ",null,null,null,null,null,null,null,null,null,null,null,null,null,null,null,null,null,null,"Florín surinamita (antiguo)","SRG","REMEDIOS",null,null,null,"SAN MATEO",null,null,null,null,null,null,null,null,null,null,null,null,null,null,null,"VALLE DE SAN JOSE",null,null,null,null,null,null,null,null,null,null,null,null,null,null,null,null,null,null,null,null,null,null,null,null,null,null,null,null,null,null,null,null,null,null,null,null,null,null,null,null,null,null,null,null,null,null,null,null,null,null,22,"TERRITORIO ALTÁI",null,null,null,null,70,"SAÔNE (HAUTE)",null,null,null,null,null,null,null,null,null,null,"RE","REGGIO EMILIA",null,null,null,null,null,null,null,null,null,null,null,null,null,null,null,null,null,null,"SG","SOUTH GLAMORGAN"]
[null,null,null,"GUAM","GU",null,"BRABANTE (VALÓN)",10,null,"SALÓN COMUNAL","SC ",null,null,null,null,null,null,null,null,null,null,null,null,null,null,null,null,null,null,"Florines antillanos","ANG","RETIRO",null,null,null,"SAN MIGUEL DE SEMA",null,null,null,null,null,null,null,null,null,null,null,null,null,null,null,"VELEZ",null,null,null,null,null,null,null,null,null,null,null,null,null,null,null,null,null,null,null,null,null,null,null,null,null,null,null,null,null,null,null,null,null,null,null,null,null,null,null,null,null,null,null,null,null,null,null,null,null,null,59,"TERRITORIO DE PERM",null,null,null,null,71,"SAÔNE-ET-LOIRE",null,null,null,null,null,null,null,null,null,null,"RI","RIETI",null,null,null,null,null,null,null,null,null,null,null,null,null,null,null,null,null,null,"YS","SOUTH YORKSHIRE"]
[null,null,null,"GUATEMALA","GT",null,"BRUSELAS (CAPITAL)",11,null,"SECTOR","SEC ",null,null,null,null,null,null,null,null,null,null,null,null,null,null,null,null,null,null,"Forint húngaro","HUF","RIONEGRO",null,null,null,"SAN PABLO DE BORBUR",null,null,null,null,null,null,null,null,null,null,null,null,null,null,null,"VETAS",null,null,null,null,null,null,null,null,null,null,null,null,null,null,null,null,null,null,null,null,null,null,null,null,null,null,null,null,null,null,null,null,null,null,null,null,null,null,null,null,null,null,null,null,null,null,null,null,null,null,23,"TERRITORIO KRASNODAR",null,null,null,null,72,"SARTHE",null,null,null,null,null,null,null,null,null,null,"RN","RIMINI",null,null,null,null,null,null,null,null,null,null,null,null,null,null,null,null,null,null,"ST","STAFFORDSHIRE"]
[null,null,null,"GUAYANA FRANC.","GF",null,"BURGAS","01",null,"SEMISÓTANO","SS ",null,null,null,null,null,null,null,null,null,null,null,null,null,null,null,null,null,null,"Franco belga (obsoleto --> EUR)","BEF","SABANALARGA",null,null,null,"SANTA MARIA",null,null,null,null,null,null,null,null,null,null,null,null,null,null,null,"VILLANUEVA",null,null,null,null,null,null,null,null,null,null,null,null,null,null,null,null,null,null,null,null,null,null,null,null,null,null,null,null,null,null,null,null,null,null,null,null,null,null,null,null,null,null,null,null,null,null,null,null,null,null,25,"TERRITORIO PRIMORYE",null,null,null,null,77,"SEINE-ET-MARNE",null,null,null,null,null,null,null,null,null,null,"RM","ROMA",null,null,null,null,null,null,null,null,null,null,null,null,null,null,null,null,null,null,"SV","STIRLINGSHIRE"]
[null,null,null,"GUERNSEY","GG",null,"GRAD SOFIYA","02",null,"SOLAR","SL ",null,null,null,null,null,null,null,null,null,null,null,null,null,null,null,null,null,null,"Franco burundés","BIF","SABANETA",null,null,null,"SANTA ROSA DE VITERBO",null,null,null,null,null,null,null,null,null,null,null,null,null,null,null,"ZAPATOCA",null,null,null,null,null,null,null,null,null,null,null,null,null,null,null,null,null,null,null,null,null,null,null,null,null,null,null,null,null,null,null,null,null,null,null,null,null,null,null,null,null,null,null,null,null,null,null,null,null,null,26,"TERRITORIO STAVROPOL",null,null,null,null,76,"SEINE-MARITIME",null,null,null,null,null,null,null,null,null,null,"RO","ROVIGO",null,null,null,null,null,null,null,null,null,null,null,null,null,null,null,null,null,null,"SK","SUFFOLK"]
[null,null,null,"GUINEA","GN",null,"KHASKOVO","03",null,"SÓTANO","ST ",null,null,null,null,null,null,null,null,null,null,null,null,null,null,null,null,null,null,"Franco CFA","CDF","SALGAR",null,null,null,"SANTA SOFIA",null,null,null,null,null,null,null,null,null,null,null,null,null,null,null,null,null,null,null,null,null,null,null,null,null,null,null,null,null,null,null,null,null,null,null,null,null,null,null,null,null,null,null,null,null,null,null,null,null,null,null,null,null,null,null,null,null,null,null,null,null,null,null,null,null,null,85,"UST-ORDINSKY BURYAT",null,null,null,null,93,"SEINE-SAINT-DENIS",null,null,null,null,null,null,null,null,null,null,"SA","SALERNO",null,null,null,null,null,null,null,null,null,null,null,null,null,null,null,null,null,null,"SY","SURREY"]
[null,null,null,"GUINEA ECUATOR.","GQ",null,"LOVECH","04",null,"SUITE","SUITE ",null,null,null,null,null,null,null,null,null,null,null,null,null,null,null,null,null,null,"Franco CFA benimés BCEAO","XOF","SAN ANDRES DE CUERQUIA",null,null,null,"SANTANA",null,null,null,null,null,null,null,null,null,null,null,null,null,null,null,null,null,null,null,null,null,null,null,null,null,null,null,null,null,null,null,null,null,null,null,null,null,null,null,null,null,null,null,null,null,null,null,null,null,null,null,null,null,null,null,null,null,null,null,null,null,null,null,null,null,null,14,"YAKUTIYA-SAHA RREPUB",null,null,null,null,79,"SÈVRES (DEUX)",null,null,null,null,null,null,null,null,null,null,"SS","SASSARI",null,null,null,null,null,null,null,null,null,null,null,null,null,null,null,null,null,null,"SU","SUTHERLAND"]
[null,null,null,"GUINEA-BISSAU","GW",null,"MONTANA","05",null,"SÚPER MANZANA","SM ",null,null,null,null,null,null,null,null,null,null,null,null,null,null,null,null,null,null,"Franco CFA gabonés BEAC","XAF","SAN CARLOS",null,null,null,"SATIVANORTE",null,null,null,null,null,null,null,null,null,null,null,null,null,null,null,null,null,null,null,null,null,null,null,null,null,null,null,null,null,null,null,null,null,null,null,null,null,null,null,null,null,null,null,null,null,null,null,null,null,null,null,null,null,null,null,null,null,null,null,null,null,null,null,null,null,null,null,null,null,null,null,null,80,"SOMME",null,null,null,null,null,null,null,null,null,null,"SV","SAVONA",null,null,null,null,null,null,null,null,null,null,null,null,null,null,null,null,null,null,"TY","TYRONE"]
[null,null,null,"GUYANA","GY",null,"PLOVDIV","06",null,"SUR","SUR ",null,null,null,null,null,null,null,null,null,null,null,null,null,null,null,null,null,null,"Franco CFP","XPF","SAN FRANCISCO",null,null,null,"SATIVASUR",null,null,null,null,null,null,null,null,null,null,null,null,null,null,null,null,null,null,null,null,null,null,null,null,null,null,null,null,null,null,null,null,null,null,null,null,null,null,null,null,null,null,null,null,null,null,null,null,null,null,null,null,null,null,null,null,null,null,null,null,null,null,null,null,null,null,null,null,null,null,null,null,81,"TARN",null,null,null,null,null,null,null,null,null,null,"SI","SIENA",null,null,null,null,null,null,null,null,null,null,null,null,null,null,null,null,null,null,"WA","WARWICKSHIRE"]
[null,null,null,"HAITI","HT",null,"RUSE","07",null,"TERMINAL","TER ",null,null,null,null,null,null,null,null,null,null,null,null,null,null,null,null,null,null,"Franco Comores","KMF","SAN JERONIMO",null,null,null,"SIACHOQUE",null,null,null,null,null,null,null,null,null,null,null,null,null,null,null,null,null,null,null,null,null,null,null,null,null,null,null,null,null,null,null,null,null,null,null,null,null,null,null,null,null,null,null,null,null,null,null,null,null,null,null,null,null,null,null,null,null,null,null,null,null,null,null,null,null,null,null,null,null,null,null,null,82,"TARN-ET-GARONNE",null,null,null,null,null,null,null,null,null,null,"SR","SIRACUSA",null,null,null,null,null,null,null,null,null,null,null,null,null,null,null,null,null,null,"WG","WEST GLAMORGAN"]
[null,null,null,"HONDURAS","HN",null,"SOFÍA","08",null,"TERRAPLÉN","TERPLN ",null,null,null,null,null,null,null,null,null,null,null,null,null,null,null,null,null,null,"Franco francés (islas del Pacífico)","CFP","SAN JOSE DE LA MONTAÑA",null,null,null,"SOATA",null,null,null,null,null,null,null,null,null,null,null,null,null,null,null,null,null,null,null,null,null,null,null,null,null,null,null,null,null,null,null,null,null,null,null,null,null,null,null,null,null,null,null,null,null,null,null,null,null,null,null,null,null,null,null,null,null,null,null,null,null,null,null,null,null,null,null,null,null,null,null,null,90,"TERRIT.-DE-BELFORT",null,null,null,null,null,null,null,null,null,null,"SO","SONDRIO",null,null,null,null,null,null,null,null,null,null,null,null,null,null,null,null,null,null,"WK","WEST LOTHIAN"]
[null,null,null,"HONG KONG","HK",null,"VARNA","09",null,"TERRAZA","TZ ",null,null,null,null,null,null,null,null,null,null,null,null,null,null,null,null,null,null,"Franco francés (obsoleto --> EUR)","FRF","SAN JUAN DE URABA",null,null,null,"SOCHA",null,null,null,null,null,null,null,null,null,null,null,null,null,null,null,null,null,null,null,null,null,null,null,null,null,null,null,null,null,null,null,null,null,null,null,null,null,null,null,null,null,null,null,null,null,null,null,null,null,null,null,null,null,null,null,null,null,null,null,null,null,null,null,null,null,null,null,null,null,null,null,null,94,"VAL-DE-MARNE",null,null,null,null,null,null,null,null,null,null,"EE","STATI ESTERI",null,null,null,null,null,null,null,null,null,null,null,null,null,null,null,null,null,null,"SW","WEST SUSSEX"]
[null,null,null,"HUNGRÍA","HU",null,"ACRE","AC",null,"TORRE","TO ",null,null,null,null,null,null,null,null,null,null,null,null,null,null,null,null,null,null,"Franco guineano","GNF","SAN LUIS",null,null,null,"SOCOTA",null,null,null,null,null,null,null,null,null,null,null,null,null,null,null,null,null,null,null,null,null,null,null,null,null,null,null,null,null,null,null,null,null,null,null,null,null,null,null,null,null,null,null,null,null,null,null,null,null,null,null,null,null,null,null,null,null,null,null,null,null,null,null,null,null,null,null,null,null,null,null,null,95,"VAL-D'OISE",null,null,null,null,null,null,null,null,null,null,"TA","TARANTO",null,null,null,null,null,null,null,null,null,null,null,null,null,null,null,null,null,null,"YW","WEST YORKSHIRE"]
[null,null,null,"INDIA","IN",null,"ALAGOAS","AL",null,"TRANSVERSAL","TV ",null,null,null,null,null,null,null,null,null,null,null,null,null,null,null,null,null,null,"Franco malgache (antiguo)","MGF","SAN PEDRO",null,null,null,"SOGAMOSO",null,null,null,null,null,null,null,null,null,null,null,null,null,null,null,null,null,null,null,null,null,null,null,null,null,null,null,null,null,null,null,null,null,null,null,null,null,null,null,null,null,null,null,null,null,null,null,null,null,null,null,null,null,null,null,null,null,null,null,null,null,null,null,null,null,null,null,null,null,null,null,null,83,"VAR",null,null,null,null,null,null,null,null,null,null,"TE","TERAMO",null,null,null,null,null,null,null,null,null,null,null,null,null,null,null,null,null,null,"WE","WESTMORLAND"]
[null,null,null,"INDONESIA","ID",null,"AMAZONAS","AM",null,"UNIDAD","UN ",null,null,null,null,null,null,null,null,null,null,null,null,null,null,null,null,null,null,"Franco ruandés","RWF","SAN PEDRO DE URABA",null,null,null,"SOMONDOCO",null,null,null,null,null,null,null,null,null,null,null,null,null,null,null,null,null,null,null,null,null,null,null,null,null,null,null,null,null,null,null,null,null,null,null,null,null,null,null,null,null,null,null,null,null,null,null,null,null,null,null,null,null,null,null,null,null,null,null,null,null,null,null,null,null,null,null,null,null,null,null,null,84,"VAUCLUSE",null,null,null,null,null,null,null,null,null,null,"TR","TERNI",null,null,null,null,null,null,null,null,null,null,null,null,null,null,null,null,null,null,"WT","WIGTOWNSHIRE"]
[null,null,null,"IRÁN","IR",null,"AMAPÁ","AP",null,"UNIDAD RESIDENCIAL","UR ",null,null,null,null,null,null,null,null,null,null,null,null,null,null,null,null,null,null,"Franco suizo","CHF","SAN RAFAEL",null,null,null,"SORA",null,null,null,null,null,null,null,null,null,null,null,null,null,null,null,null,null,null,null,null,null,null,null,null,null,null,null,null,null,null,null,null,null,null,null,null,null,null,null,null,null,null,null,null,null,null,null,null,null,null,null,null,null,null,null,null,null,null,null,null,null,null,null,null,null,null,null,null,null,null,null,null,85,"VENDÉE",null,null,null,null,null,null,null,null,null,null,"TP","TRAPANI",null,null,null,null,null,null,null,null,null,null,null,null,null,null,null,null,null,null,"WI","WILTSHIRE"]
[null,null,null,"IRAQ","IQ",null,"BAHÍA","BA",null,"URBANIZACIÓN","URB ",null,null,null,null,null,null,null,null,null,null,null,null,null,null,null,null,null,null,"Franco Yibuti","DJF","SAN ROQUE",null,null,null,"SORACA",null,null,null,null,null,null,null,null,null,null,null,null,null,null,null,null,null,null,null,null,null,null,null,null,null,null,null,null,null,null,null,null,null,null,null,null,null,null,null,null,null,null,null,null,null,null,null,null,null,null,null,null,null,null,null,null,null,null,null,null,null,null,null,null,null,null,null,null,null,null,null,null,86,"VIENNE",null,null,null,null,null,null,null,null,null,null,"TN","TRENTO",null,null,null,null,null,null,null,null,null,null,null,null,null,null,null,null,null,null,"WC","WORCESTERSHIRE"]
[null,null,null,"IRLANDA","IE",null,"CEARÁ","CE",null,"VARIANTE","VTE ",null,null,null,null,null,null,null,null,null,null,null,null,null,null,null,null,null,null,"Francos luxemburgueses (obsol.--> EUR)","LUF","SAN VICENTE",null,null,null,"SOTAQUIRA",null,null,null,null,null,null,null,null,null,null,null,null,null,null,null,null,null,null,null,null,null,null,null,null,null,null,null,null,null,null,null,null,null,null,null,null,null,null,null,null,null,null,null,null,null,null,null,null,null,null,null,null,null,null,null,null,null,null,null,null,null,null,null,null,null,null,null,null,null,null,null,null,87,"VIENNE (HAUTE)",null,null,null,null,null,null,null,null,null,null,"TV","TREVISO"]
[null,null,null,"IS.HEARD/MCDON.","HM",null,"BRASÍLIA","DF",null,"VEREDA","VRD ",null,null,null,null,null,null,null,null,null,null,null,null,null,null,null,null,null,null,"Gourde haitiano","HTG","SANTA BARBARA",null,null,null,"SUSACON",null,null,null,null,null,null,null,null,null,null,null,null,null,null,null,null,null,null,null,null,null,null,null,null,null,null,null,null,null,null,null,null,null,null,null,null,null,null,null,null,null,null,null,null,null,null,null,null,null,null,null,null,null,null,null,null,null,null,null,null,null,null,null,null,null,null,null,null,null,null,null,null,88,"VOSGES",null,null,null,null,null,null,null,null,null,null,"TS","TRIESTE"]
[null,null,null,"IS.VÍRGENES USA","VI",null,"ESPÍRITO SANTO","ES",null,"ZONA ","ZN ",null,null,null,null,null,null,null,null,null,null,null,null,null,null,null,null,null,null,"Griwna ucraniano","UAH","SANTA ROSA DE OSOS",null,null,null,"SUTAMARCHAN",null,null,null,null,null,null,null,null,null,null,null,null,null,null,null,null,null,null,null,null,null,null,null,null,null,null,null,null,null,null,null,null,null,null,null,null,null,null,null,null,null,null,null,null,null,null,null,null,null,null,null,null,null,null,null,null,null,null,null,null,null,null,null,null,null,null,null,null,null,null,null,null,976,"WALLIS-ET-FUTUNA",null,null,null,null,null,null,null,null,null,null,"TO","TURÍN"]
[null,null,null,"ISL.MARIANAS N.","MP",null,"GOIÁS","GO",null,"ZONA FRANCA","ZF ",null,null,null,null,null,null,null,null,null,null,null,null,null,null,null,null,null,null,"Guaraní paraguayo","PYG","SANTAFE DE ANTIOQUIA",null,null,null,"SUTATENZA",null,null,null,null,null,null,null,null,null,null,null,null,null,null,null,null,null,null,null,null,null,null,null,null,null,null,null,null,null,null,null,null,null,null,null,null,null,null,null,null,null,null,null,null,null,null,null,null,null,null,null,null,null,null,null,null,null,null,null,null,null,null,null,null,null,null,null,null,null,null,null,null,89,"YONNE",null,null,null,null,null,null,null,null,null,null,"UD","UDINE"]
[null,null,null,"ISL.S.SANDWICH","GS",null,"MARANHÃO","MA",null,null,null,null,null,null,null,null,null,null,null,null,null,null,null,null,null,null,null,null,null,"Kina papú","PGK","SANTO DOMINGO",null,null,null,"TASCO",null,null,null,null,null,null,null,null,null,null,null,null,null,null,null,null,null,null,null,null,null,null,null,null,null,null,null,null,null,null,null,null,null,null,null,null,null,null,null,null,null,null,null,null,null,null,null,null,null,null,null,null,null,null,null,null,null,null,null,null,null,null,null,null,null,null,null,null,null,null,null,null,78,"YVELINES",null,null,null,null,null,null,null,null,null,null,"VA","VARESE"]
[null,null,null,"ISL.TURCAS Y C.","TC",null,"MINAS GERAIS","MG",null,null,null,null,null,null,null,null,null,null,null,null,null,null,null,null,null,null,null,null,null,"Kip laosiano","LAK","SEGOVIA",null,null,null,"TENZA",null,null,null,null,null,null,null,null,null,null,null,null,null,null,null,null,null,null,null,null,null,null,null,null,null,null,null,null,null,null,null,null,null,null,null,null,null,null,null,null,null,null,null,null,null,null,null,null,null,null,null,null,null,null,null,null,null,null,null,null,null,null,null,null,null,null,null,null,null,null,null,null,null,null,null,null,null,null,null,null,null,null,null,null,"VE","VENECIA"]
[null,null,null,"ISL.VÍRGENES GB","VG",null,"MATO GROSSO DO SUL","MS",null,null,null,null,null,null,null,null,null,null,null,null,null,null,null,null,null,null,null,null,null,"Kuna croata","HRK","SONSON",null,null,null,"TIBANA",null,null,null,null,null,null,null,null,null,null,null,null,null,null,null,null,null,null,null,null,null,null,null,null,null,null,null,null,null,null,null,null,null,null,null,null,null,null,null,null,null,null,null,null,null,null,null,null,null,null,null,null,null,null,null,null,null,null,null,null,null,null,null,null,null,null,null,null,null,null,null,null,null,null,null,null,null,null,null,null,null,null,null,null,"VB","VERBANIA"]
[null,null,null,"ISLA CHRISTMAS","CX",null,"MATO GROSSO","MT",null,null,null,null,null,null,null,null,null,null,null,null,null,null,null,null,null,null,null,null,null,"Kwacha malawiano","MWK","SOPETRAN",null,null,null,"TIBASOSA",null,null,null,null,null,null,null,null,null,null,null,null,null,null,null,null,null,null,null,null,null,null,null,null,null,null,null,null,null,null,null,null,null,null,null,null,null,null,null,null,null,null,null,null,null,null,null,null,null,null,null,null,null,null,null,null,null,null,null,null,null,null,null,null,null,null,null,null,null,null,null,null,null,null,null,null,null,null,null,null,null,null,null,null,"VC","VERCELLI"]
[null,null,null,"ISLA DE MAN","IM",null,"PARÁ","PA",null,null,null,null,null,null,null,null,null,null,null,null,null,null,null,null,null,null,null,null,null,"Kwacha zambiano (ant.)","ZMK","TAMESIS",null,null,null,"TINJACA",null,null,null,null,null,null,null,null,null,null,null,null,null,null,null,null,null,null,null,null,null,null,null,null,null,null,null,null,null,null,null,null,null,null,null,null,null,null,null,null,null,null,null,null,null,null,null,null,null,null,null,null,null,null,null,null,null,null,null,null,null,null,null,null,null,null,null,null,null,null,null,null,null,null,null,null,null,null,null,null,null,null,null,null,"VR","VERONA"]
[null,null,null,"ISLANDIA","IS",null,"PARAÍBA","PB",null,null,null,null,null,null,null,null,null,null,null,null,null,null,null,null,null,null,null,null,null,"Kwacha zambiano (nvo.)","ZMW","TARAZA",null,null,null,"TIPACOQUE",null,null,null,null,null,null,null,null,null,null,null,null,null,null,null,null,null,null,null,null,null,null,null,null,null,null,null,null,null,null,null,null,null,null,null,null,null,null,null,null,null,null,null,null,null,null,null,null,null,null,null,null,null,null,null,null,null,null,null,null,null,null,null,null,null,null,null,null,null,null,null,null,null,null,null,null,null,null,null,null,null,null,null,null,"VV","VIBO VALENTIA"]
[null,null,null,"ISLAS BOUVET","BV",null,"PERNAMBUCO","PE",null,null,null,null,null,null,null,null,null,null,null,null,null,null,null,null,null,null,null,null,null,"Kwanza angoleño","AOA","TARSO",null,null,null,"TOCA",null,null,null,null,null,null,null,null,null,null,null,null,null,null,null,null,null,null,null,null,null,null,null,null,null,null,null,null,null,null,null,null,null,null,null,null,null,null,null,null,null,null,null,null,null,null,null,null,null,null,null,null,null,null,null,null,null,null,null,null,null,null,null,null,null,null,null,null,null,null,null,null,null,null,null,null,null,null,null,null,null,null,null,null,"VI","VICENZA"]
[null,null,null,"ISLAS CAIMÁN","KY",null,"PIAUÍ","PI",null,null,null,null,null,null,null,null,null,null,null,null,null,null,null,null,null,null,null,null,null,"Kwanza angoleño reajustado (ant.)","AOR","TITIRIBI",null,null,null,"TOGUI",null,null,null,null,null,null,null,null,null,null,null,null,null,null,null,null,null,null,null,null,null,null,null,null,null,null,null,null,null,null,null,null,null,null,null,null,null,null,null,null,null,null,null,null,null,null,null,null,null,null,null,null,null,null,null,null,null,null,null,null,null,null,null,null,null,null,null,null,null,null,null,null,null,null,null,null,null,null,null,null,null,null,null,null,"VT","VITERBO"]
[null,null,null,"ISLAS COCOS","CC",null,"PARANÁ","PR",null,null,null,null,null,null,null,null,null,null,null,null,null,null,null,null,null,null,null,null,null,"Kyat de la Unión de Myanmar (Birmania)","MMK","TOLEDO",null,null,null,"TOPAGA",null,null,null,null,null,null,null,null,null,null,null,null,null,null,null,null,null,null,null,null,null,null,null,null,null,null,null,null,null,null,null,null,null,null,null,null,null,null,null,null,null,null,null,null,null,null,null,null,null,null,null,null,null,null,null,null,null,null,null,null,null,null,null,null,null,null,null,null,null,null,null,null,null,null,null,null,null,null,null,null,null,null,null,null,"ZA","ZARA"]
[null,null,null,"ISLAS COOK","CK",null,"RIO DE JANEIRO","RJ",null,null,null,null,null,null,null,null,null,null,null,null,null,null,null,null,null,null,null,null,null,"Lari georgiano","GEL","TURBO",null,null,null,"TOTA"]
[null,null,null,"ISLAS FEROE","FO",null,"RIO GRANDE DO NORTE","RN",null,null,null,null,null,null,null,null,null,null,null,null,null,null,null,null,null,null,null,null,null,"Lat letón","LVL","URAMITA",null,null,null,"TUNJA"]
[null,null,null,"ISLAS MALVINAS","FK",null,"RONDÔNIA","RO",null,null,null,null,null,null,null,null,null,null,null,null,null,null,null,null,null,null,null,null,null,"Lei moldavo","MDL","URRAO",null,null,null,"TUNUNGUA"]
[null,null,null,"ISLAS NIUE","NU",null,"RORAIMA","RR",null,null,null,null,null,null,null,null,null,null,null,null,null,null,null,null,null,null,null,null,null,"Lek albano","ALL","VALDIVIA",null,null,null,"TURMEQUE"]
[null,null,null,"ISLAS NORFOLK","NF",null,"RIO GRANDE DO SUL","RS",null,null,null,null,null,null,null,null,null,null,null,null,null,null,null,null,null,null,null,null,null,"Lempira hondureño","HNL","VALPARAISO",null,null,null,"TUTA"]
[null,null,null,"ISLAS PITCAIRN","PN",null,"SANTA CATARINA","SC",null,null,null,null,null,null,null,null,null,null,null,null,null,null,null,null,null,null,null,null,null,"Leone de Sierra Leona","SLL","VEGACHI",null,null,null,"TUTAZA"]
[null,null,null,"ISLAS SALOMÓN","SB",null,"SERGIPE","SE",null,null,null,null,null,null,null,null,null,null,null,null,null,null,null,null,null,null,null,null,null,"Leu rumano","RON","VENECIA",null,null,null,"UMBITA"]
[null,null,null,"ISLAS TOKELAU","TK",null,"SÃO PAULO","SP",null,null,null,null,null,null,null,null,null,null,null,null,null,null,null,null,null,null,null,null,null,"Leu rumano (antiguo)","ROL","VIGIA DEL FUERTE",null,null,null,"VENTAQUEMADA"]
[null,null,null,"ISLMENALEJEEUU","UM",null,"TOCANTINS","TO",null,null,null,null,null,null,null,null,null,null,null,null,null,null,null,null,null,null,null,null,null,"Lev búlgaro","BGN","YALI",null,null,null,"VILLA DE LEYVA"]
[null,null,null,"ISRAEL","IL",null,"ALBERTA","AB",null,null,null,null,null,null,null,null,null,null,null,null,null,null,null,null,null,null,null,null,null,"Libra chipriota (obsoleto --> EUR)","CYP","YARUMAL",null,null,null,"VIRACACHA"]
[null,null,null,"ITALIA","IT",null,"COLUMBIA BRITÁNICA","BC",null,null,null,null,null,null,null,null,null,null,null,null,null,null,null,null,null,null,null,null,null,"Libra de Sta. Elena","SHP","YOLOMBO",null,null,null,"ZETAQUIRA"]
[null,null,null,"JAMAICA","JM",null,"MANITOBA","MB",null,null,null,null,null,null,null,null,null,null,null,null,null,null,null,null,null,null,null,null,null,"Libra egipcia","EGP","YONDO"]
[null,null,null,"JAPÓN","JP",null,"NEW BRUNSWICK","NB",null,null,null,null,null,null,null,null,null,null,null,null,null,null,null,null,null,null,null,null,null,"Libra esterlina","GBP","ZARAGOZA"]
[null,null,null,"JERSEY","JE",null,"TERRANOVA/LABRADOR","NL",null,null,null,null,null,null,null,null,null,null,null,null,null,null,null,null,null,null,null,null,null,"Libra gibraltareña","GIP"]
[null,null,null,"JORDANIA","JO",null,"NUEVA ESCOCIA","NS",null,null,null,null,null,null,null,null,null,null,null,null,null,null,null,null,null,null,null,null,null,"Libra irlandesa (obsoleto --> EUR)","IEP"]
[null,null,null,"KAZAJISTÁN","KZ",null,"TERRITORIO NORESTE","NT",null,null,null,null,null,null,null,null,null,null,null,null,null,null,null,null,null,null,null,null,null,"Libra libanesa","LBP"]
[null,null,null,"KENIA","KE",null,"NUNAVUT","NU",null,null,null,null,null,null,null,null,null,null,null,null,null,null,null,null,null,null,null,null,null,"Libra maltesa (obsoleto --> EUR)","MTL"]
[null,null,null,"KIRGUIZISTÁN","KG",null,"ONTARIO","ON",null,null,null,null,null,null,null,null,null,null,null,null,null,null,null,null,null,null,null,null,null,"Libra Malvinas","FKP"]
[null,null,null,"KIRIBATI","KI",null,"ISL.PRÍNCIPE EDUARDO","PE",null,null,null,null,null,null,null,null,null,null,null,null,null,null,null,null,null,null,null,null,null,"Libra siria","SYP"]
[null,null,null,"KUWAIT","KW",null,"QUEBEC","QC",null,null,null,null,null,null,null,null,null,null,null,null,null,null,null,null,null,null,null,null,null,"Libra sudanesa","SDG"]
[null,null,null,"LAOS","LA",null,"SASKATCHEWAN","SK",null,null,null,null,null,null,null,null,null,null,null,null,null,null,null,null,null,null,null,null,null,"Libra sudanesa (hasta 1992)","SDP"]
[null,null,null,"LESOTO","LS",null,"TERRITORIO YUKON","YT",null,null,null,null,null,null,null,null,null,null,null,null,null,null,null,null,null,null,null,null,null,"Libra sursudanesa","SSP"]
[null,null,null,"LETONIA","LV",null,"ARGOVIA","AG",null,null,null,null,null,null,null,null,null,null,null,null,null,null,null,null,null,null,null,null,null,"Lilangeni Swazilandia","SZL"]
[null,null,null,"LIBANO","LB",null,"INNER-RHODEN","AI",null,null,null,null,null,null,null,null,null,null,null,null,null,null,null,null,null,null,null,null,null,"Lira italiana (obsoleto --> EUR)","ITL"]
[null,null,null,"LIBERIA","LR",null,"AUSSER-RHODEN","AR",null,null,null,null,null,null,null,null,null,null,null,null,null,null,null,null,null,null,null,null,null,"Lira turca","TRY"]
[null,null,null,"LIBIA","LY",null,"BERNA","BE",null,null,null,null,null,null,null,null,null,null,null,null,null,null,null,null,null,null,null,null,null,"Lira turca (antigua)","TRL"]
[null,null,null,"LIECHTENSTEIN","LI",null,"BASILEA PROVINCIA","BL",null,null,null,null,null,null,null,null,null,null,null,null,null,null,null,null,null,null,null,null,null,"Lita lituano","LTL"]
[null,null,null,"LITUANIA","LT",null,"BASILEA CIUDAD","BS",null,null,null,null,null,null,null,null,null,null,null,null,null,null,null,null,null,null,null,null,null,"Loti Lesotho","LSL"]
[null,null,null,"LUXEMBURGO","LU",null,"FRIBURGO","FR",null,null,null,null,null,null,null,null,null,null,null,null,null,null,null,null,null,null,null,null,null,"Manat azerbaiyano","AZN"]
[null,null,null,"MACAO","MO",null,"GINEBRA","GE",null,null,null,null,null,null,null,null,null,null,null,null,null,null,null,null,null,null,null,null,null,"Manat azerbaiyano (antiguo)","AZM"]
[null,null,null,"MACEDONIA","MK",null,"GLARIS","GL",null,null,null,null,null,null,null,null,null,null,null,null,null,null,null,null,null,null,null,null,null,"Manat turcomano","TMT"]
[null,null,null,"MADAGASCAR","MG",null,"CANTÓN DE GRISONES","GR",null,null,null,null,null,null,null,null,null,null,null,null,null,null,null,null,null,null,null,null,null,"Manat turcomano (antiguo)","TMM"]
[null,null,null,"MALASIA","MY",null,"JURA","JU",null,null,null,null,null,null,null,null,null,null,null,null,null,null,null,null,null,null,null,null,null,"Marco alemán (obsoleto --> EUR)","DEM"]
[null,null,null,"MALAUI","MW",null,"LUCERNA","LU",null,null,null,null,null,null,null,null,null,null,null,null,null,null,null,null,null,null,null,null,null,"Marco convertible Bosnia-Herzegovina","BAM"]
[null,null,null,"MALDIVAS","MV",null,"NEUCHATEL","NE",null,null,null,null,null,null,null,null,null,null,null,null,null,null,null,null,null,null,null,null,null,"Marco finlandés (obsoleto --> EUR)","FIM"]
[null,null,null,"MALÍ","ML",null,"NIDWALDEN","NW",null,null,null,null,null,null,null,null,null,null,null,null,null,null,null,null,null,null,null,null,null,"Metical mozambiqueño","MZN"]
[null,null,null,"MALTA","MT",null,"OBWALDEN","OW",null,null,null,null,null,null,null,null,null,null,null,null,null,null,null,null,null,null,null,null,null,"Metical mozambiqueño (antiguo)","MZM"]
[null,null,null,"MARRUECOS","MA",null,"ST.GALLEN","SG",null,null,null,null,null,null,null,null,null,null,null,null,null,null,null,null,null,null,null,null,null,"Naira nigeriana","NGN"]
[null,null,null,"MARTINICA","MQ",null,"SCHAFFHAUSEN","SH",null,null,null,null,null,null,null,null,null,null,null,null,null,null,null,null,null,null,null,null,null,"Nakfa de Eritrea","ERN"]
[null,null,null,"MAURICIO (ISL.)","MU",null,"SOLOTHURN","SO",null,null,null,null,null,null,null,null,null,null,null,null,null,null,null,null,null,null,null,null,null,"Ngultrum del Buthan","BTN"]
[null,null,null,"MAURITANIA","MR",null,"SCHWYZ","SZ",null,null,null,null,null,null,null,null,null,null,null,null,null,null,null,null,null,null,null,null,null,"Nuevo kwanza angoleño (ant.)","AON"]
[null,null,null,"MAYOTTE","YT",null,"TURGOVIA","TG",null,null,null,null,null,null,null,null,null,null,null,null,null,null,null,null,null,null,null,null,null,"Nuevo Sol peruano","PEN"]
[null,null,null,"MEXICO","MX",null,"TICINO","TI",null,null,null,null,null,null,null,null,null,null,null,null,null,null,null,null,null,null,null,null,null,"Ouguiya mauritana","MRO"]
[null,null,null,"MICRONESIA","FM",null,"URI","UR",null,null,null,null,null,null,null,null,null,null,null,null,null,null,null,null,null,null,null,null,null,"Pa'anga tongano","TOP"]
[null,null,null,"MOLDAVIA","MD",null,"VAUD","VD",null,null,null,null,null,null,null,null,null,null,null,null,null,null,null,null,null,null,null,null,null,"Pataca de Macao","MOP"]
[null,null,null,"MÓNACO","MC",null,"VALAIS","VS",null,null,null,null,null,null,null,null,null,null,null,null,null,null,null,null,null,null,null,null,null,"Peseta española (obsoleto --> EUR)","ESP"]
[null,null,null,"MONGOLIA","MN",null,"ZUG","ZG",null,null,null,null,null,null,null,null,null,null,null,null,null,null,null,null,null,null,null,null,null,"Peso argentino","ARS"]
[null,null,null,"MONTSERRAT","MS",null,"ZÚRICH","ZH",null,null,null,null,null,null,null,null,null,null,null,null,null,null,null,null,null,null,null,null,null,"Peso convertible","CUC"]
[null,null,null,"MOZAMBIQUE","MZ",null,"I - IQUIQUE","01",null,null,null,null,null,null,null,null,null,null,null,null,null,null,null,null,null,null,null,null,null,"Peso cubano","CUP"]
[null,null,null,"MYANMAR","MM",null,"II - ANTOFAGASTA","02",null,null,null,null,null,null,null,null,null,null,null,null,null,null,null,null,null,null,null,null,null,"Peso dominicano","DOP"]
[null,null,null,"NACIONES UNIDAS","UN",null,"III - COPIAPO","03",null,null,null,null,null,null,null,null,null,null,null,null,null,null,null,null,null,null,null,null,null,"Peso filipino","PHP"]
[null,null,null,"NAMIBIA","NA",null,"IV - LA SERENA","04",null,null,null,null,null,null,null,null,null,null,null,null,null,null,null,null,null,null,null,null,null,"Peso guineano (obsoleto --> SHP)","GWP"]
[null,null,null,"NARANJA","OR",null,"V - VALPARAISO","05",null,null,null,null,null,null,null,null,null,null,null,null,null,null,null,null,null,null,null,null,null,"Peso uruguayo","UYU"]
[null,null,null,"NAURU","NR",null,"VI - RANCAGUA","06",null,null,null,null,null,null,null,null,null,null,null,null,null,null,null,null,null,null,null,null,null,"Pesos chilenos","CLP"]
[null,null,null,"NEPAL","NP",null,"VII - TALCA","07",null,null,null,null,null,null,null,null,null,null,null,null,null,null,null,null,null,null,null,null,null,"Pesos mexicanos","MXN"]
[null,null,null,"NICARAGUA","NI",null,"VIII - CONCEPCIÓN","08",null,null,null,null,null,null,null,null,null,null,null,null,null,null,null,null,null,null,null,null,null,"Pula botswanesa","BWP"]
[null,null,null,"NÍGER","NE",null,"IX - TEMUCO","09",null,null,null,null,null,null,null,null,null,null,null,null,null,null,null,null,null,null,null,null,null,"Quetzal guatemalteco","GTQ"]
[null,null,null,"NIGERIA","NG",null,"X - PUERTO MONTT",10,null,null,null,null,null,null,null,null,null,null,null,null,null,null,null,null,null,null,null,null,null,"Rand sudafricano","ZAR"]
[null,null,null,"NORUEGA","NO",null,"XI - COYHAIQUE",11,null,null,null,null,null,null,null,null,null,null,null,null,null,null,null,null,null,null,null,null,null,"Real brasileño","BRL"]
[null,null,null,"NUEVA CALEDONIA","NC",null,"XII - PUNTA ARENAS",12,null,null,null,null,null,null,null,null,null,null,null,null,null,null,null,null,null,null,null,null,null,"RenMinBi Yuan chino","RMB"]
[null,null,null,"NUEVA_ZELANDA","NZ",null,"RM - SANTIAGO",13,null,null,null,null,null,null,null,null,null,null,null,null,null,null,null,null,null,null,null,null,null,"Rial iraní","IRR"]
[null,null,null,"OMÁN","OM",null,"BEIJING (PEKÍN)",10,null,null,null,null,null,null,null,null,null,null,null,null,null,null,null,null,null,null,null,null,null,"Rial omaní","OMR"]
[null,null,null,"OTAN","NT",null,"SHANGHAI",20,null,null,null,null,null,null,null,null,null,null,null,null,null,null,null,null,null,null,null,null,null,"Rial yemení","YER"]
[null,null,null,"PAÍSES_BAJOS","NL",null,"TIANJIN",30,null,null,null,null,null,null,null,null,null,null,null,null,null,null,null,null,null,null,null,null,null,"Riel camboyano","KHR"]
[null,null,null,"PAKISTÁN","PK",null,"NEI MONGOL",40,null,null,null,null,null,null,null,null,null,null,null,null,null,null,null,null,null,null,null,null,null,"Ringgit malayo","MYR"]
[null,null,null,"PALAOS","PW",null,"SHANXI",50,null,null,null,null,null,null,null,null,null,null,null,null,null,null,null,null,null,null,null,null,null,"Riyal katarí","QAR"]
[null,null,null,"PALESTINA","PS",null,"HEBEI",60,null,null,null,null,null,null,null,null,null,null,null,null,null,null,null,null,null,null,null,null,null,"Riyal saudita","SAR"]
[null,null,null,"PANAMA","PA",null,"LIAONING",70,null,null,null,null,null,null,null,null,null,null,null,null,null,null,null,null,null,null,null,null,null,"Rublo bielorruso","BYR"]
[null,null,null,"PAPUANVAGUINEA","PG",null,"JILIN",80,null,null,null,null,null,null,null,null,null,null,null,null,null,null,null,null,null,null,null,null,null,"Rublo bielorruso (ant.)","BYB"]
[null,null,null,"PARAGUAY","PY",null,"HEILONGJIANG",90,null,null,null,null,null,null,null,null,null,null,null,null,null,null,null,null,null,null,null,null,null,"Rublo ruso","RUB"]
[null,null,null,"PERÚ","PE",null,"JIANGSU",100,null,null,null,null,null,null,null,null,null,null,null,null,null,null,null,null,null,null,null,null,null,"Rublo tadjik (ant.)","TJR"]
[null,null,null,"POLINESIA FRAN.","PF",null,"ANHUI",110,null,null,null,null,null,null,null,null,null,null,null,null,null,null,null,null,null,null,null,null,null,"Rufiyaa maldiva","MVR"]
[null,null,null,"POLONIA","PL",null,"SHANDONG",120,null,null,null,null,null,null,null,null,null,null,null,null,null,null,null,null,null,null,null,null,null,"Rupia hindú","INR"]
[null,null,null,"PORTUGAL","PT",null,"ZHEJIANG",130,null,null,null,null,null,null,null,null,null,null,null,null,null,null,null,null,null,null,null,null,null,"Rupia indonesia","IDR"]
[null,null,null,"PUERTO RICO","PR",null,"JIANGXI",140,null,null,null,null,null,null,null,null,null,null,null,null,null,null,null,null,null,null,null,null,null,"Rupia Mauricio","MUR"]
[null,null,null,"QATAR","QA",null,"FUJIAN",150,null,null,null,null,null,null,null,null,null,null,null,null,null,null,null,null,null,null,null,null,null,"Rupia nepalesa","NPR"]
[null,null,null,"REINO_UNIDO","GB",null,"HUNAN",160,null,null,null,null,null,null,null,null,null,null,null,null,null,null,null,null,null,null,null,null,null,"Rupia pakistaní","PKR"]
[null,null,null,"REP.CENTROAFR.","CF",null,"HUBEI",170,null,null,null,null,null,null,null,null,null,null,null,null,null,null,null,null,null,null,null,null,null,"Rupia Seychelles","SCR"]
[null,null,null,"REPUBLICA_CHECA","CZ",null,"HENAN",180,null,null,null,null,null,null,null,null,null,null,null,null,null,null,null,null,null,null,null,null,null,"Rupia Sri Lanka","LKR"]
[null,null,null,"REPÚBLICA CONGO","CD",null,"GUANGDONG",190,null,null,null,null,null,null,null,null,null,null,null,null,null,null,null,null,null,null,null,null,null,"Shekel israelí","ILS"]
[null,null,null,"REPÚBLICA CONGO","CG",null,"HAINAN",200,null,null,null,null,null,null,null,null,null,null,null,null,null,null,null,null,null,null,null,null,null,"Som de Kirguizistán","KGS"]
[null,null,null,"REPUBLICA DOMIN","DO",null,"GUANGXI",210,null,null,null,null,null,null,null,null,null,null,null,null,null,null,null,null,null,null,null,null,null,"Somoni de Tayikistán","TJS"]
[null,null,null,"REUNIÓN","RE",null,"GUIZHOU",220,null,null,null,null,null,null,null,null,null,null,null,null,null,null,null,null,null,null,null,null,null,"Sucre ecuatoriano (obsoleto --> USD)","ECS"]
[null,null,null,"RUANDA","RW",null,"SICHUAN",230,null,null,null,null,null,null,null,null,null,null,null,null,null,null,null,null,null,null,null,null,null,"Sum de Uzbequistán","UZS"]
[null,null,null,"RUMANIA","RO",null,"YUNNAN",240,null,null,null,null,null,null,null,null,null,null,null,null,null,null,null,null,null,null,null,null,null,"Taka Bangladesh","BDT"]
[null,null,null,"S.CRIS.& NIEVES","KN",null,"SHAANXI",250,null,null,null,null,null,null,null,null,null,null,null,null,null,null,null,null,null,null,null,null,null,"Tala samoano","WST"]
[null,null,null,"S.PEDR.,MIQUEL.","PM",null,"GANSU",260,null,null,null,null,null,null,null,null,null,null,null,null,null,null,null,null,null,null,null,null,null,"Tenge Kazajstán","KZT"]
[null,null,null,"S.TOMÉ,PRÍNCIPE","ST",null,"NINGXIA",270,null,null,null,null,null,null,null,null,null,null,null,null,null,null,null,null,null,null,null,null,null,"Tolar esloveno (obsoleto --> EUR)","SIT"]
[null,null,null,"SÁHARA OCCID.","EH",null,"QINGHAI",280,null,null,null,null,null,null,null,null,null,null,null,null,null,null,null,null,null,null,null,null,null,"Tugrik mongolés","MNT"]
[null,null,null,"SAMOA AMERICANA","AS",null,"XINJIANG",290,null,null,null,null,null,null,null,null,null,null,null,null,null,null,null,null,null,null,null,null,null,"Unidad Monetaria Europea (ECU)","XEU"]
[null,null,null,"SAMOA OCCIDENT.","WS",null,"XIZANG",300,null,null,null,null,null,null,null,null,null,null,null,null,null,null,null,null,null,null,null,null,null,"Vatu Vanuatu","VUV"]
[null,null,null,"SAN MARINO","SM",null,"CHONG QING",320,null,null,null,null,null,null,null,null,null,null,null,null,null,null,null,null,null,null,null,null,null,"Won coreano","KPW"]
[null,null,null,"SAN VICENTE","VC",null,"PRAGA",11,null,null,null,null,null,null,null,null,null,null,null,null,null,null,null,null,null,null,null,null,null,"Won surcoreano","KRW"]
[null,null,null,"SANTA HELENA","SH",null,"STREDOCESKY",21,null,null,null,null,null,null,null,null,null,null,null,null,null,null,null,null,null,null,null,null,null,"Yen japonés","JPY"]
[null,null,null,"SANTA LUCÍA","LC",null,"JIHOCESKY",31,null,null,null,null,null,null,null,null,null,null,null,null,null,null,null,null,null,null,null,null,null,"Yuan de la R.P.China","CNY"]
[null,null,null,"SENEGAL","SN",null,"PLZENSKY",32,null,null,null,null,null,null,null,null,null,null,null,null,null,null,null,null,null,null,null,null,null,"Zaire (ant.)","ZRN"]
[null,null,null,"SERBIA/MONTEN.","CS",null,"KARLOVARSKY",41,null,null,null,null,null,null,null,null,null,null,null,null,null,null,null,null,null,null,null,null,null,"Zloty polaco (nuevo)","PLN"]
[null,null,null,"SEYCHELLES","SC",null,"USTECKY",42]
[null,null,null,"SIERRA LEONA","SL",null,"LIBERECKY",51]
[null,null,null,"SINGAPUR","SG",null,"KRALOVEHRADECKY",52]
[null,null,null,"SINT MAARTEN","SX",null,"PARDUBICKY",53]
[null,null,null,"SIRIA","SY",null,"VYSOCINA",63]
[null,null,null,"SOMALIA","SO",null,"JIHOMORAVSKY",64]
[null,null,null,"SRI LANKA","LK",null,"OLOMOUCKY",71]
[null,null,null,"SUAZILANDIA","SZ",null,"ZLINSKY",72]
[null,null,null,"SUDÁFRICA","ZA",null,"MORAVSKOSLEZSKY",81]
[null,null,null,"SUDÁN","SD",null,"SLESVIG-HOLSTEIN","01"]
[null,null,null,"SUDÁN DEL SUR","SS",null,"HAMBURGO","02"]
[null,null,null,"SUECIA","SE",null,"BAJA SAJONIA","03"]
[null,null,null,"SUIZA","CH",null,"BREMEN","04"]
[null,null,null,"SURINAM","SR",null,"RENANIA N.WESTFALIA","05"]
[null,null,null,"SVALBARD","SJ",null,"HESSE","06"]
[null,null,null,"TAILANDIA","TH",null,"RENANIA-PALATINADO","07"]
[null,null,null,"TAIWAN","TW",null,"BADEN-WURTEMBERG","08"]
[null,null,null,"TANZANIA","TZ",null,"BAVIERA","09"]
[null,null,null,"TAYIKISTÁN","TJ",null,"EL SARRE",10]
[null,null,null,"TERR.BR.OC.IND.","IO",null,"BERLÍN",11]
[null,null,null,"TIMOR ORIENTAL","TL",null,"BRANDENBURGO",12]
[null,null,null,"TIMOR ORIENTAL","TP",null,"MECLENBURGO-POMERAN.",13]
[null,null,null,"TOGO","TG",null,"SAJONIA",14]
[null,null,null,"TONGA","TO",null,"SAJONIA-ANHALT",15]
[null,null,null,"TRINIDADYTOBAGO","TT",null,"TURINGIA",16]
[null,null,null,"TÚNEZ","TN",null,"HOVEDSTADEN","01"]
[null,null,null,"TURKMENISTÁN","TM",null,"MIDTJYLLAND","02"]
[null,null,null,"TURQUÍA","TR",null,"NORDJYLLAND","03"]
[null,null,null,"TUVALU","TV",null,"SJAELLAND","04"]
[null,null,null,"UCRANIA","UA",null,"SYDDANMARK","05"]
[null,null,null,"UGANDA","UG",null,"ÁLAVA","01"]
[null,null,null,"UNIÓN EUROPEA","EU",null,"ALBACETE","02"]
[null,null,null,"URUGUAY","UY",null,"ALICANTE","03"]
[null,null,null,"UZBEKISTÁN","UZ",null,"ALMERÍA","04"]
[null,null,null,"VANUATU","VU",null,"ÁVILA","05"]
[null,null,null,"VENEZUELA","VE",null,"BADAJOZ","06"]
[null,null,null,"VIETNAM","VN",null,"BALEARES","07"]
[null,null,null,"WALLIS,FUTUNA","WF",null,"BARCELONA","08"]
[null,null,null,"YEMEN","YE",null,"BURGOS","09"]
[null,null,null,"YIBUTI","DJ",null,"CÁCERES",10]
[null,null,null,"ZAMBIA","ZM",null,"CÁDIZ",11]
[null,null,null,"ZIMBABUE","ZW",null,"CASTELLÓN",12]
[null,null,null,null,null,null,"CIUDAD REAL",13]
[null,null,null,null,null,null,"CÓRDOBA",14]
[null,null,null,null,null,null,"LA CORUÑA",15]
[null,null,null,null,null,null,"CUENCA",16]
[null,null,null,null,null,null,"GERONA",17]
[null,null,null,null,null,null,"GRANADA",18]
[null,null,null,null,null,null,"GUADALAJARA",19]
[null,null,null,null,null,null,"GUIPÚZCOA",20]
[null,null,null,null,null,null,"HUELVA",21]
[null,null,null,null,null,null,"HUESCA",22]
[null,null,null,null,null,null,"JAÉN",23]
[null,null,null,null,null,null,"LEÓN",24]
[null,null,null,null,null,null,"LÉRIDA",25]
[null,null,null,null,null,null,"LA RIOJA",26]
[null,null,null,null,null,null,"LUGO",27]
[null,null,null,null,null,null,"MADRID",28]
[null,null,null,null,null,null,"MÁLAGA",29]
[null,null,null,null,null,null,"MURCIA",30]
[null,null,null,null,null,null,"NAVARRA",31]
[null,null,null,null,null,null,"ORENSE",32]
[null,null,null,null,null,null,"ASTURIAS",33]
[null,null,null,null,null,null,"PALENCIA",34]
[null,null,null,null,null,null,"LAS PALMAS",35]
[null,null,null,null,null,null,"PONTEVEDRA",36]
[null,null,null,null,null,null,"SALAMANCA",37]
[null,null,null,null,null,null,"STA.CRUZ TENERIFE",38]
[null,null,null,null,null,null,"CANTABRIA",39]
[null,null,null,null,null,null,"SEGOVIA",40]
[null,null,null,null,null,null,"SEVILLA",41]
[null,null,null,null,null,null,"SORIA",42]
[null,null,null,null,null,null,"TARRAGONA",43]
[null,null,null,null,null,null,"TERUEL",44]
[null,null,null,null,null,null,"TOLEDO",45]
[null,null,null,null,null,null,"VALENCIA",46]
[null,null,null,null,null,null,"VALLADOLID",47]
[null,null,null,null,null,null,"VIZCAYA",48]
[null,null,null,null,null,null,"ZAMORA",49]
[null,null,null,null,null,null,"ZARAGOZA",50]
[null,null,null,null,null,null,"AHVENANMAA","01"]
[null,null,null,null,null,null,"ETELÄ-SUOMI","02"]
[null,null,null,null,null,null,"ITÄ-SUOMI","03"]
[null,null,null,null,null,null,"LAPPI","04"]
[null,null,null,null,null,null,"LÄNSI-SUOMI","05"]
[null,null,null,null,null,null,"OULU","06"]
[null,null,null,null,null,null,"AIN","01"]
[null,null,null,null,null,null,"AISNE","02"]
[null,null,null,null,null,null,"ALLIER","03"]
[null,null,null,null,null,null,"ALPES (ALTA PROVENZ)","04"]
[null,null,null,null,null,null,"ALPES (ALTOS)","05"]
[null,null,null,null,null,null,"ALPES MARÍTIMOS","06"]
[null,null,null,null,null,null,"ARDÈCHE","07"]
[null,null,null,null,null,null,"LAS ARDENAS","08"]
[null,null,null,null,null,null,"ARIÈGE","09"]
[null,null,null,null,null,null,"AUBE",10]
[null,null,null,null,null,null,"AUDE",11]
[null,null,null,null,null,null,"AVEYRON",12]
[null,null,null,null,null,null,"BOUCHES-DU-RHÔNE",13]
[null,null,null,null,null,null,"CALVADOS",14]
[null,null,null,null,null,null,"CANTAL",15]
[null,null,null,null,null,null,"CHARENTE",16]
[null,null,null,null,null,null,"CHARENTE-MARITIME",17]
[null,null,null,null,null,null,"CHER",18]
[null,null,null,null,null,null,"CORRÈZE",19]
[null,null,null,null,null,null,"CÔTE-D'OR",21]
[null,null,null,null,null,null,"CÔTES-D'ARMOR",22]
[null,null,null,null,null,null,"CREUSE",23]
[null,null,null,null,null,null,"DORDOGNE",24]
[null,null,null,null,null,null,"DOUBS",25]
[null,null,null,null,null,null,"DRÔME",26]
[null,null,null,null,null,null,"EURE",27]
[null,null,null,null,null,null,"EURE-ET-LOIR",28]
[null,null,null,null,null,null,"FINISTÈRE",29]
[null,null,null,null,null,null,"CORSE-DU-SUD","2A"]
[null,null,null,null,null,null,"CORSE-DU-NORD","2B"]
[null,null,null,null,null,null,"GARD",30]
[null,null,null,null,null,null,"GARONA (ALTA)",31]
[null,null,null,null,null,null,"GERS",32]
[null,null,null,null,null,null,"GIRONDE",33]
[null,null,null,null,null,null,"HÉRAULT",34]
[null,null,null,null,null,null,"ILLE-ET-VILAINE",35]
[null,null,null,null,null,null,"INDRE",36]
[null,null,null,null,null,null,"INDRE-ET-LOIRE",37]
[null,null,null,null,null,null,"ISÈRE",38]
[null,null,null,null,null,null,"JURA",39]
[null,null,null,null,null,null,"LANDES",40]
[null,null,null,null,null,null,"LOIR-ET-CHER",41]
[null,null,null,null,null,null,"LOIRE",42]
[null,null,null,null,null,null,"LOIRE (HAUTE)",43]
[null,null,null,null,null,null,"LOIRE-ATLANTIQUE",44]
[null,null,null,null,null,null,"LOIRET",45]
[null,null,null,null,null,null,"LOT",46]
[null,null,null,null,null,null,"LOT-ET-GARONNE",47]
[null,null,null,null,null,null,"LOZÈRE",48]
[null,null,null,null,null,null,"MAINE-ET-LOIRE",49]
[null,null,null,null,null,null,"MANCHE",50]
[null,null,null,null,null,null,"MARNE",51]
[null,null,null,null,null,null,"MARNE (HAUTE)",52]
[null,null,null,null,null,null,"MAYENNE",53]
[null,null,null,null,null,null,"MEURTHE-ET-MOSELLE",54]
[null,null,null,null,null,null,"MEUSE",55]
[null,null,null,null,null,null,"MORBIHAN",56]
[null,null,null,null,null,null,"MOSELLE",57]
[null,null,null,null,null,null,"NIÈVRE",58]
[null,null,null,null,null,null,"NORTE",59]
[null,null,null,null,null,null,"OISE",60]
[null,null,null,null,null,null,"ORNE",61]
[null,null,null,null,null,null,"PAS-DE-CALAIS",62]
[null,null,null,null,null,null,"PUY-DE-DÔME",63]
[null,null,null,null,null,null,"PIRINEOS ATLÁNTICOS",64]
[null,null,null,null,null,null,"PIRINEOS (ALTOS)",65]
[null,null,null,null,null,null,"PIRINEOS ORIENTALES",66]
[null,null,null,null,null,null,"RIN (BAJO)",67]
[null,null,null,null,null,null,"RIN (ALTO)",68]
[null,null,null,null,null,null,"RÓDANO",69]
[null,null,null,null,null,null,"SAÔNE (HAUTE)",70]
[null,null,null,null,null,null,"SAÔNE-ET-LOIRE",71]
[null,null,null,null,null,null,"SARTHE",72]
[null,null,null,null,null,null,"SABOYA",73]
[null,null,null,null,null,null,"SABOYA (ALTA)",74]
[null,null,null,null,null,null,"PARÍS",75]
[null,null,null,null,null,null,"SEINE-MARITIME",76]
[null,null,null,null,null,null,"SEINE-ET-MARNE",77]
[null,null,null,null,null,null,"YVELINES",78]
[null,null,null,null,null,null,"SÈVRES (DEUX)",79]
[null,null,null,null,null,null,"SOMME",80]
[null,null,null,null,null,null,"TARN",81]
[null,null,null,null,null,null,"TARN-ET-GARONNE",82]
[null,null,null,null,null,null,"VAR",83]
[null,null,null,null,null,null,"VAUCLUSE",84]
[null,null,null,null,null,null,"VENDÉE",85]
[null,null,null,null,null,null,"VIENNE",86]
[null,null,null,null,null,null,"VIENNE (HAUTE)",87]
[null,null,null,null,null,null,"VOSGES",88]
[null,null,null,null,null,null,"YONNE",89]
[null,null,null,null,null,null,"TERRIT.-DE-BELFORT",90]
[null,null,null,null,null,null,"ESSONNE",91]
[null,null,null,null,null,null,"HAUTS-DE-SEINE",92]
[null,null,null,null,null,null,"SEINE-SAINT-DENIS",93]
[null,null,null,null,null,null,"VAL-DE-MARNE",94]
[null,null,null,null,null,null,"VAL-D'OISE",95]
[null,null,null,null,null,null,"D.O.M.-T.O.M.",97]
[null,null,null,null,null,null,"GUADALUPE",971]
[null,null,null,null,null,null,"MARTINICA",972]
[null,null,null,null,null,null,"GUYANA",973]
[null,null,null,null,null,null,"RÉUNION",974]
[null,null,null,null,null,null,"SAINT-PIERRE-ET-MIQ.",975]
[null,null,null,null,null,null,"WALLIS-ET-FUTUNA",976]
[null,null,null,null,null,null,"HORS-FRANCE",99]
[null,null,null,null,null,null,"ABERDEENSHIRE","AB"]
[null,null,null,null,null,null,"ARGYLLSHIRE","AG"]
[null,null,null,null,null,null,"ANGLESEY","AL"]
[null,null,null,null,null,null,"ARMAGH","AM"]
[null,null,null,null,null,null,"ANGUS/FORFANSHIRE","AN"]
[null,null,null,null,null,null,"ANTRIM","AT"]
[null,null,null,null,null,null,"AYRSHIRE","AY"]
[null,null,null,null,null,null,"BEDFORDSHIRE","BE"]
[null,null,null,null,null,null,"BRACKNELL FOREST","BF"]
[null,null,null,null,null,null,"BERKSHIRE","BK"]
[null,null,null,null,null,null,"BRECKNOCKSHIRE","BR"]
[null,null,null,null,null,null,"BATH&NTHESTSOMERSET","BS"]
[null,null,null,null,null,null,"BUTESHIRE","BT"]
[null,null,null,null,null,null,"BUCKINGHAMSHIRE","BU"]
[null,null,null,null,null,null,"BERWICKSHIRE","BW"]
[null,null,null,null,null,null,"CAMBRIDGESHIRE","CA"]
[null,null,null,null,null,null,"CARMARTHENSHIRE","CB"]
[null,null,null,null,null,null,"CARDIGANSHIRE","CD"]
[null,null,null,null,null,null,"CAERNARFONSHIRE","CF"]
[null,null,null,null,null,null,"CHESHIRE","CH"]
[null,null,null,null,null,null,"CROMARTYSHIRE","CM"]
[null,null,null,null,null,null,"CLACKMANNANSHIRE","CN"]
[null,null,null,null,null,null,"CORNUALLES","CO"]
[null,null,null,null,null,null,"CAITHNESS","CT"]
[null,null,null,null,null,null,"CUMBERLAND","CU"]
[null,null,null,null,null,null,"DERBYSHIRE","DB"]
[null,null,null,null,null,null,"DENBIGHSHIRE","DD"]
[null,null,null,null,null,null,"DUMFRIESSHIRE","DF"]
[null,null,null,null,null,null,"DOWN","DN"]
[null,null,null,null,null,null,"DORSET","DO"]
[null,null,null,null,null,null,"DUNBARTONSHIRE","DT"]
[null,null,null,null,null,null,"DURHAM","DU"]
[null,null,null,null,null,null,"DEVON","DV"]
[null,null,null,null,null,null,"EAST LOTHIAN","EL"]
[null,null,null,null,null,null,"ESSEX","ES"]
[null,null,null,null,null,null,"FIFE","FI"]
[null,null,null,null,null,null,"FLINTSHIRE","FL"]
[null,null,null,null,null,null,"FERMANAGH","FM"]
[null,null,null,null,null,null,"GLOUCESTERSHIRE","GL"]
[null,null,null,null,null,null,"HAMPSHIRE","HA"]
[null,null,null,null,null,null,"HERTFORDSHIRE","HT"]
[null,null,null,null,null,null,"HUNTINGDONSHIRE","HU"]
[null,null,null,null,null,null,"HEREFORD Y WORCESTER","HW"]
[null,null,null,null,null,null,"INVERNESSHIRE","IN"]
[null,null,null,null,null,null,"ISLA DE WIGHT","IW"]
[null,null,null,null,null,null,"KENT","KE"]
[null,null,null,null,null,null,"KINCARDINESHIRE","KI"]
[null,null,null,null,null,null,"KIRKCUDBRIGHTSHIRE","KK"]
[null,null,null,null,null,null,"KINROSS-SHIRE","KN"]
[null,null,null,null,null,null,"LANCASHIRE","LA"]
[null,null,null,null,null,null,"LONDONDERRY","LD"]
[null,null,null,null,null,null,"LEICESTERSHIRE","LE"]
[null,null,null,null,null,null,"LINCOLNSHIRE","LI"]
[null,null,null,null,null,null,"LANARKSHIRE","LN"]
[null,null,null,null,null,null,"MIDLOTHIAN","MD"]
[null,null,null,null,null,null,"MERIONETH","ME"]
[null,null,null,null,null,null,"MID GLAMORGAN","MG"]
[null,null,null,null,null,null,"MONMOUTHSHIRE","MM"]
[null,null,null,null,null,null,"MORAYSHIRE","MR"]
[null,null,null,null,null,null,"MONTGOMERYSHIRE","MT"]
[null,null,null,null,null,null,"MIDDLESEX","MX"]
[null,null,null,null,null,null,"NORTHAMPTONSHIRE","NH"]
[null,null,null,null,null,null,"NORFOLK","NK"]
[null,null,null,null,null,null,"NAIRNSHIRE","NR"]
[null,null,null,null,null,null,"NOTTINGHAMSHIRE","NT"]
[null,null,null,null,null,null,"NORTHUMBERLAND","NU"]
[null,null,null,null,null,null,"ORKNEY","OR"]
[null,null,null,null,null,null,"OXFORDSHIRE","OX"]
[null,null,null,null,null,null,"PEEBLESSHIRE","PE"]
[null,null,null,null,null,null,"PEMBROKESHIRE","PM"]
[null,null,null,null,null,null,"PERTHSHIRE","PR"]
[null,null,null,null,null,null,"RADNORSHIRE","RA"]
[null,null,null,null,null,null,"RENFREWSHIRE","RE"]
[null,null,null,null,null,null,"ROSS-SHIRE","RO"]
[null,null,null,null,null,null,"RUTLAND","RU"]
[null,null,null,null,null,null,"ROXBURGHSHIRE","RX"]
[null,null,null,null,null,null,"EAST SUSSEX","SE"]
[null,null,null,null,null,null,"SELKIRKSHIRE","SF"]
[null,null,null,null,null,null,"SOUTH GLAMORGAN","SG"]
[null,null,null,null,null,null,"SHROPSHIRE","SH"]
[null,null,null,null,null,null,"SUFFOLK","SK"]
[null,null,null,null,null,null,"SHETLAND","SL"]
[null,null,null,null,null,null,"SOMERSET","SO"]
[null,null,null,null,null,null,"STAFFORDSHIRE","ST"]
[null,null,null,null,null,null,"SUTHERLAND","SU"]
[null,null,null,null,null,null,"STIRLINGSHIRE","SV"]
[null,null,null,null,null,null,"WEST SUSSEX","SW"]
[null,null,null,null,null,null,"SURREY","SY"]
[null,null,null,null,null,null,"TYRONE","TY"]
[null,null,null,null,null,null,"WARWICKSHIRE","WA"]
[null,null,null,null,null,null,"WORCESTERSHIRE","WC"]
[null,null,null,null,null,null,"WESTMORLAND","WE"]
[null,null,null,null,null,null,"WEST GLAMORGAN","WG"]
[null,null,null,null,null,null,"WILTSHIRE","WI"]
[null,null,null,null,null,null,"WEST LOTHIAN","WK"]
[null,null,null,null,null,null,"WIGTOWNSHIRE","WT"]
[null,null,null,null,null,null,"NORTH YORKSHIRE","YN"]
[null,null,null,null,null,null,"SOUTH YORKSHIRE","YS"]
[null,null,null,null,null,null,"WEST YORKSHIRE","YW"]
[null,null,null,null,null,null,"AITOLIA KAI AKARNAN","01"]
[null,null,null,null,null,null,"AKHAIA","02"]
[null,null,null,null,null,null,"ARGOLIS","03"]
[null,null,null,null,null,null,"ARKADHIA","04"]
[null,null,null,null,null,null,"ARTA","05"]
[null,null,null,null,null,null,"ATTIKI","06"]
[null,null,null,null,null,null,"DHODHEKANISOS","07"]
[null,null,null,null,null,null,"DHRAMA","08"]
[null,null,null,null,null,null,"EVRITANIA","09"]
[null,null,null,null,null,null,"EVROS",10]
[null,null,null,null,null,null,"EVVOIA",11]
[null,null,null,null,null,null,"FLORINA",12]
[null,null,null,null,null,null,"FOKIS",13]
[null,null,null,null,null,null,"FTHIOTIS",14]
[null,null,null,null,null,null,"GREVENA",15]
[null,null,null,null,null,null,"ILIA",16]
[null,null,null,null,null,null,"IMATHIA",17]
[null,null,null,null,null,null,"IOANNINA",18]
[null,null,null,null,null,null,"IRAKLION",19]
[null,null,null,null,null,null,"KARDHITSA",20]
[null,null,null,null,null,null,"KASTORIA",21]
[null,null,null,null,null,null,"KAVALA",22]
[null,null,null,null,null,null,"KEFALLINIA",23]
[null,null,null,null,null,null,"KERKIRA",24]
[null,null,null,null,null,null,"KHALKIDHIKI",25]
[null,null,null,null,null,null,"KHANIA",26]
[null,null,null,null,null,null,"KHIOS",27]
[null,null,null,null,null,null,"KIKLADHES",28]
[null,null,null,null,null,null,"KILKIS",29]
[null,null,null,null,null,null,"KORINTHIA",30]
[null,null,null,null,null,null,"KOZANI",31]
[null,null,null,null,null,null,"LAKONIA",32]
[null,null,null,null,null,null,"LARISA",33]
[null,null,null,null,null,null,"LASITHI",34]
[null,null,null,null,null,null,"LESVOS",35]
[null,null,null,null,null,null,"LEVKAS",36]
[null,null,null,null,null,null,"MAGNISIA",37]
[null,null,null,null,null,null,"MESSINIA",38]
[null,null,null,null,null,null,"PELLA",39]
[null,null,null,null,null,null,"PIERIA",40]
[null,null,null,null,null,null,"PIRAIEVS",41]
[null,null,null,null,null,null,"PREVEZA",42]
[null,null,null,null,null,null,"RETHIMNI",43]
[null,null,null,null,null,null,"RODHOPI",44]
[null,null,null,null,null,null,"SAMOS",45]
[null,null,null,null,null,null,"SERRAI",46]
[null,null,null,null,null,null,"THESPROTIA",47]
[null,null,null,null,null,null,"SALÓNICA",48]
[null,null,null,null,null,null,"TRIKALA",49]
[null,null,null,null,null,null,"VOIOTIA",50]
[null,null,null,null,null,null,"XANTHI",51]
[null,null,null,null,null,null,"ZAKINTHOS",52]
[null,null,null,null,null,null,"ZAGREBACKA","A00"]
[null,null,null,null,null,null,"KRAPINSKO-ZAGORSKA","B00"]
[null,null,null,null,null,null,"SISACKO-MOSLAVACKA ","C00"]
[null,null,null,null,null,null,"KARLOVACKA ","D00"]
[null,null,null,null,null,null,"VARAZDINSKA ","E00"]
[null,null,null,null,null,null,"KOPRIVNICKO-KRIZEVAC","F00"]
[null,null,null,null,null,null,"BJELOVARSKO-BILOGORS","G00"]
[null,null,null,null,null,null,"RIJECKO-GORANSKA ","H00"]
[null,null,null,null,null,null,"LICKO-SENJSKA ","I00"]
[null,null,null,null,null,null,"VIROVITICKO-PODRAVAC","J00"]
[null,null,null,null,null,null,"POZESKO-SLAVONSKA ","K00"]
[null,null,null,null,null,null,"SLAVONSKOBRODSKA","L00"]
[null,null,null,null,null,null,"ZADARSKA ","M00"]
[null,null,null,null,null,null,"OSJECKO-BARANJSKA ","N00"]
[null,null,null,null,null,null,"SIBENSKO-KNINSKA  ","O00"]
[null,null,null,null,null,null,"VUKOVARSKO-SRIJEMSKA","P00"]
[null,null,null,null,null,null,"SPLITSKO-DALMATINSKA","R00"]
[null,null,null,null,null,null,"ISTARSKA","S00"]
[null,null,null,null,null,null,"DUBROVACKO-NERETVANS","T00"]
[null,null,null,null,null,null,"MEDJIMURSKA","U00"]
[null,null,null,null,null,null,"ZAGREB CIUDAD ","V00"]
[null,null,null,null,null,null,"BACS-KISKUN","01"]
[null,null,null,null,null,null,"BARANYA","02"]
[null,null,null,null,null,null,"BEKES","03"]
[null,null,null,null,null,null,"BEKESCSABA","04"]
[null,null,null,null,null,null,"BORSOD-ABAUJ-ZEMPLEN","05"]
[null,null,null,null,null,null,"BUDAPEST","06"]
[null,null,null,null,null,null,"CSONGRAD","07"]
[null,null,null,null,null,null,"DEBRECEN","08"]
[null,null,null,null,null,null,"DUNAUJVAROS","09"]
[null,null,null,null,null,null,"EGER",10]
[null,null,null,null,null,null,"FEJER",11]
[null,null,null,null,null,null,"GYOR",12]
[null,null,null,null,null,null,"GYOR-MOSON-SOPRON",13]
[null,null,null,null,null,null,"HAJDU-BIHAR",14]
[null,null,null,null,null,null,"HEVES",15]
[null,null,null,null,null,null,"HODMEZOVASARHELY",16]
[null,null,null,null,null,null,"JASZ-NAGYKUN-SZOLNOK",17]
[null,null,null,null,null,null,"KAPOSVAR",18]
[null,null,null,null,null,null,"KECSKEMET",19]
[null,null,null,null,null,null,"KOMAROM-ESZTERGOM",20]
[null,null,null,null,null,null,"MISKOLC",21]
[null,null,null,null,null,null,"NAGYKANIZSA",22]
[null,null,null,null,null,null,"NOGRAD",23]
[null,null,null,null,null,null,"NYIREGYHAZA",24]
[null,null,null,null,null,null,"PECS",25]
[null,null,null,null,null,null,"PEST",26]
[null,null,null,null,null,null,"SOMOGY",27]
[null,null,null,null,null,null,"SOPRON",28]
[null,null,null,null,null,null,"SZABOLCS-SZAT.-BEREG",29]
[null,null,null,null,null,null,"SZEGED",30]
[null,null,null,null,null,null,"SZEKESFEHERVAR",31]
[null,null,null,null,null,null,"SZOLNOK",32]
[null,null,null,null,null,null,"SZOMBATHELY",33]
[null,null,null,null,null,null,"TATABANYA",34]
[null,null,null,null,null,null,"TOLNA",35]
[null,null,null,null,null,null,"VAS",36]
[null,null,null,null,null,null,"VESZPREM",37]
[null,null,null,null,null,null,"ZALA",38]
[null,null,null,null,null,null,"ZALAEGERSZEG",39]
[null,null,null,null,null,null,"CORK","C"]
[null,null,null,null,null,null,"CLARE","CE"]
[null,null,null,null,null,null,"CAVAN","CN"]
[null,null,null,null,null,null,"CARLOW","CW"]
[null,null,null,null,null,null,"DUBLÍN","D"]
[null,null,null,null,null,null,"DONEGAL","DL"]
[null,null,null,null,null,null,"GALWAY","G"]
[null,null,null,null,null,null,"KILDARE","KE"]
[null,null,null,null,null,null,"KILKENNY","KK"]
[null,null,null,null,null,null,"KERRY","KY"]
[null,null,null,null,null,null,"LONGFORD","LD"]
[null,null,null,null,null,null,"LOUTH","LH"]
[null,null,null,null,null,null,"LIMERICK","LK"]
[null,null,null,null,null,null,"LEITRIM","LM"]
[null,null,null,null,null,null,"LAOIS","LS"]
[null,null,null,null,null,null,"MEATH","MH"]
[null,null,null,null,null,null,"MONAGHAN","MN"]
[null,null,null,null,null,null,"MAYO","MO"]
[null,null,null,null,null,null,"OFFALY","OY"]
[null,null,null,null,null,null,"ROSCOMMON","RN"]
[null,null,null,null,null,null,"SLIGO","SO"]
[null,null,null,null,null,null,"TIPPERARY","TA"]
[null,null,null,null,null,null,"WATERFORD","WD"]
[null,null,null,null,null,null,"WESTMEATH","WH"]
[null,null,null,null,null,null,"WICKLOW","WW"]
[null,null,null,null,null,null,"WEXFORD","WX"]
[null,null,null,null,null,null,"CENTRAL","01"]
[null,null,null,null,null,null,"HAIFA","02"]
[null,null,null,null,null,null,"JERUSALÉN","03"]
[null,null,null,null,null,null,"NORTHERN","04"]
[null,null,null,null,null,null,"SOUTHERN","05"]
[null,null,null,null,null,null,"TEL AVIV","06"]
[null,null,null,null,null,null,"ANDRA PRADESH","01"]
[null,null,null,null,null,null,"ARUNACHAL PRADESH","02"]
[null,null,null,null,null,null,"ASSAM","03"]
[null,null,null,null,null,null,"BIHAR","04"]
[null,null,null,null,null,null,"GOA","05"]
[null,null,null,null,null,null,"GUJARAT","06"]
[null,null,null,null,null,null,"HARYANA","07"]
[null,null,null,null,null,null,"HIMACHAL PRADESH","08"]
[null,null,null,null,null,null,"JAMMU Y CACHEMIRA","09"]
[null,null,null,null,null,null,"KARNATAKA",10]
[null,null,null,null,null,null,"KERALA",11]
[null,null,null,null,null,null,"MADHYA PRADESH",12]
[null,null,null,null,null,null,"MAHARASHTRA",13]
[null,null,null,null,null,null,"MANIPUR",14]
[null,null,null,null,null,null,"MEGALAYA",15]
[null,null,null,null,null,null,"MIZORAM",16]
[null,null,null,null,null,null,"NAGALAND",17]
[null,null,null,null,null,null,"ORISSA",18]
[null,null,null,null,null,null,"PUNJAB",19]
[null,null,null,null,null,null,"RAJASTHAN",20]
[null,null,null,null,null,null,"SIKKIM",21]
[null,null,null,null,null,null,"TAMIL NADU",22]
[null,null,null,null,null,null,"TRIPURA",23]
[null,null,null,null,null,null,"UTTAR PRADESH",24]
[null,null,null,null,null,null,"BENGALA OESTE",25]
[null,null,null,null,null,null,"ANDAMAN Y NICO.IN.",26]
[null,null,null,null,null,null,"CHANDIGARH",27]
[null,null,null,null,null,null,"DADRA Y NAGAR HAV.",28]
[null,null,null,null,null,null,"DAMAN Y DIU",29]
[null,null,null,null,null,null,"DELHI",30]
[null,null,null,null,null,null,"LAKSHADWEEP",31]
[null,null,null,null,null,null,"PONDICHERRY",32]
[null,null,null,null,null,null,"CHHAATTISGARH",33]
[null,null,null,null,null,null,"JHARKHAND",34]
[null,null,null,null,null,null,"UTTARANCHAL",35]
[null,null,null,null,null,null,"AGRIGENTO","AG"]
[null,null,null,null,null,null,"ALESSANDRIA","AL"]
[null,null,null,null,null,null,"ANCONA","AN"]
[null,null,null,null,null,null,"AOSTA","AO"]
[null,null,null,null,null,null,"ASCOLI PICENO","AP"]
[null,null,null,null,null,null,"L'AQUILA","AQ"]
[null,null,null,null,null,null,"AREZZO","AR"]
[null,null,null,null,null,null,"ASTI","AT"]
[null,null,null,null,null,null,"AVELLINO","AV"]
[null,null,null,null,null,null,"BARI","BA"]
[null,null,null,null,null,null,"BERGAMO","BG"]
[null,null,null,null,null,null,"BIELLA","BI"]
[null,null,null,null,null,null,"BELLUNO","BL"]
[null,null,null,null,null,null,"BENEVENTO","BN"]
[null,null,null,null,null,null,"BOLONIA","BO"]
[null,null,null,null,null,null,"BRINDISI","BR"]
[null,null,null,null,null,null,"BRESCIA","BS"]
[null,null,null,null,null,null,"BOLZANO","BZ"]
[null,null,null,null,null,null,"CAGLIARI","CA"]
[null,null,null,null,null,null,"CAMPOBASSO","CB"]
[null,null,null,null,null,null,"CASERTA","CE"]
[null,null,null,null,null,null,"CHIETI","CH"]
[null,null,null,null,null,null,"CARBONIA-IGLESIAS","CI"]
[null,null,null,null,null,null,"CALTANISETTA","CL"]
[null,null,null,null,null,null,"CUNEO","CN"]
[null,null,null,null,null,null,"COMO","CO"]
[null,null,null,null,null,null,"CREMONA","CR"]
[null,null,null,null,null,null,"COSENZA","CS"]
[null,null,null,null,null,null,"CATANIA","CT"]
[null,null,null,null,null,null,"CATANZARO","CZ"]
[null,null,null,null,null,null,"STATI ESTERI","EE"]
[null,null,null,null,null,null,"ENNA","EN"]
[null,null,null,null,null,null,"FORLI/CESANA","FC"]
[null,null,null,null,null,null,"FERRARA","FE"]
[null,null,null,null,null,null,"FOGGIA","FG"]
[null,null,null,null,null,null,"FLORENCIA","FI"]
[null,null,null,null,null,null,"FERRARA","FR"]
[null,null,null,null,null,null,"FIUME","FU"]
[null,null,null,null,null,null,"GÉNOVA","GE"]
[null,null,null,null,null,null,"GORIZIA","GO"]
[null,null,null,null,null,null,"GROSSETO","GR"]
[null,null,null,null,null,null,"IMPERIA","IM"]
[null,null,null,null,null,null,"ISERNIA","IS"]
[null,null,null,null,null,null,"CROTONE","KR"]
[null,null,null,null,null,null,"LUCCA","LC"]
[null,null,null,null,null,null,"LECCE","LE"]
[null,null,null,null,null,null,"LIVORNO","LI"]
[null,null,null,null,null,null,"LODI","LO"]
[null,null,null,null,null,null,"LATINA","LT"]
[null,null,null,null,null,null,"LUCCA","LU"]
[null,null,null,null,null,null,"MONZA Y BRIANZA","MB"]
[null,null,null,null,null,null,"MACERATA","MC"]
[null,null,null,null,null,null,"MESSINA","ME"]
[null,null,null,null,null,null,"MILÁN","MI"]
[null,null,null,null,null,null,"MANTOVA","MN"]
[null,null,null,null,null,null,"MÓDENA","MO"]
[null,null,null,null,null,null,"MASSA CARRARA","MS"]
[null,null,null,null,null,null,"MATERA","MT"]
[null,null,null,null,null,null,"NÁPOLES","NA"]
[null,null,null,null,null,null,"NOVARA","NO"]
[null,null,null,null,null,null,"NUORO","NU"]
[null,null,null,null,null,null,"OGLIASTRA","OG"]
[null,null,null,null,null,null,"ORISTANO","OR"]
[null,null,null,null,null,null,"OLBIA-TEMPIO","OT"]
[null,null,null,null,null,null,"PALERMO","PA"]
[null,null,null,null,null,null,"PIACENZA","PC"]
[null,null,null,null,null,null,"PADUA","PD"]
[null,null,null,null,null,null,"PESCARA","PE"]
[null,null,null,null,null,null,"PERUGIA","PG"]
[null,null,null,null,null,null,"PISA","PI"]
[null,null,null,null,null,null,"POLA","PL"]
[null,null,null,null,null,null,"PORDENONE","PN"]
[null,null,null,null,null,null,"PRATO","PO"]
[null,null,null,null,null,null,"PARMA","PR"]
[null,null,null,null,null,null,"PISTOIA","PT"]
[null,null,null,null,null,null,"PESARO-URBINO","PU"]
[null,null,null,null,null,null,"PAVIA","PV"]
[null,null,null,null,null,null,"POTENZA","PZ"]
[null,null,null,null,null,null,"RÁVENA","RA"]
[null,null,null,null,null,null,"REGGIO CALABRIA","RC"]
[null,null,null,null,null,null,"REGGIO EMILIA","RE"]
[null,null,null,null,null,null,"RAGUSA","RG"]
[null,null,null,null,null,null,"RIETI","RI"]
[null,null,null,null,null,null,"ROMA","RM"]
[null,null,null,null,null,null,"RIMINI","RN"]
[null,null,null,null,null,null,"ROVIGO","RO"]
[null,null,null,null,null,null,"SALERNO","SA"]
[null,null,null,null,null,null,"SIENA","SI"]
[null,null,null,null,null,null,"SONDRIO","SO"]
[null,null,null,null,null,null,"LA SPEZIA","SP"]
[null,null,null,null,null,null,"SIRACUSA","SR"]
[null,null,null,null,null,null,"SASSARI","SS"]
[null,null,null,null,null,null,"SAVONA","SV"]
[null,null,null,null,null,null,"TARANTO","TA"]
[null,null,null,null,null,null,"TERAMO","TE"]
[null,null,null,null,null,null,"TRENTO","TN"]
[null,null,null,null,null,null,"TURÍN","TO"]
[null,null,null,null,null,null,"TRAPANI","TP"]
[null,null,null,null,null,null,"TERNI","TR"]
[null,null,null,null,null,null,"TRIESTE","TS"]
[null,null,null,null,null,null,"TREVISO","TV"]
[null,null,null,null,null,null,"UDINE","UD"]
[null,null,null,null,null,null,"VARESE","VA"]
[null,null,null,null,null,null,"VERBANIA","VB"]
[null,null,null,null,null,null,"VERCELLI","VC"]
[null,null,null,null,null,null,"VENECIA","VE"]
[null,null,null,null,null,null,"VICENZA","VI"]
[null,null,null,null,null,null,"VERONA","VR"]
[null,null,null,null,null,null,"MEDIO CAMPIDANO","VS"]
[null,null,null,null,null,null,"VITERBO","VT"]
[null,null,null,null,null,null,"VIBO VALENTIA","VV"]
[null,null,null,null,null,null,"ZARA","ZA"]
[null,null,null,null,null,null,"HOKKAIDO","01"]
[null,null,null,null,null,null,"AOMORI","02"]
[null,null,null,null,null,null,"IWATE","03"]
[null,null,null,null,null,null,"MIYAGI","04"]
[null,null,null,null,null,null,"AKITA","05"]
[null,null,null,null,null,null,"YAMAGATA","06"]
[null,null,null,null,null,null,"FUKUSHIMA","07"]
[null,null,null,null,null,null,"IBARAKI","08"]
[null,null,null,null,null,null,"TOCHIGI","09"]
[null,null,null,null,null,null,"GUNMA",10]
[null,null,null,null,null,null,"SAITAMA",11]
[null,null,null,null,null,null,"CHIBA",12]
[null,null,null,null,null,null,"TOKIO",13]
[null,null,null,null,null,null,"KANAGAWA",14]
[null,null,null,null,null,null,"NIIGATA",15]
[null,null,null,null,null,null,"TOYAMA",16]
[null,null,null,null,null,null,"ISHIKAWA",17]
[null,null,null,null,null,null,"FUKUI",18]
[null,null,null,null,null,null,"YAMANASHI",19]
[null,null,null,null,null,null,"NAGANO",20]
[null,null,null,null,null,null,"GIFU",21]
[null,null,null,null,null,null,"SHIZUOKA",22]
[null,null,null,null,null,null,"AICHI",23]
[null,null,null,null,null,null,"MIE",24]
[null,null,null,null,null,null,"SHIGA",25]
[null,null,null,null,null,null,"KIOTO",26]
[null,null,null,null,null,null,"OSAKA",27]
[null,null,null,null,null,null,"HYOGO",28]
[null,null,null,null,null,null,"NARA",29]
[null,null,null,null,null,null,"WAKAYAMA",30]
[null,null,null,null,null,null,"TOTTORI",31]
[null,null,null,null,null,null,"SHIMANE",32]
[null,null,null,null,null,null,"OKAYAMA",33]
[null,null,null,null,null,null,"HIROSHIMA",34]
[null,null,null,null,null,null,"YAMAGUCHI",35]
[null,null,null,null,null,null,"TOKUSHIMA",36]
[null,null,null,null,null,null,"KAGAWA",37]
[null,null,null,null,null,null,"EHIME",38]
[null,null,null,null,null,null,"KOCHI",39]
[null,null,null,null,null,null,"FUKUOKA",40]
[null,null,null,null,null,null,"SAGA",41]
[null,null,null,null,null,null,"NAGASAKI",42]
[null,null,null,null,null,null,"KUMAMOTO",43]
[null,null,null,null,null,null,"OITA",44]
[null,null,null,null,null,null,"MIYAZAKI",45]
[null,null,null,null,null,null,"KAGOSHIMA",46]
[null,null,null,null,null,null,"OKINAWA",47]
[null,null,null,null,null,null,"JEJU","01"]
[null,null,null,null,null,null,"CHOLLABUK-DO","02"]
[null,null,null,null,null,null,"CHOLLANAM-DO","03"]
[null,null,null,null,null,null,"CH'UNGCH'ONGBUK-DO","04"]
[null,null,null,null,null,null,"CH'UNGCH'ONGNAM-DO","05"]
[null,null,null,null,null,null,"INCHEON","06"]
[null,null,null,null,null,null,"GANGWON-DO","07"]
[null,null,null,null,null,null,"GWANGJU","08"]
[null,null,null,null,null,null,"GYEONGGI-DO","09"]
[null,null,null,null,null,null,"GYEONGSANGBUK-DO",10]
[null,null,null,null,null,null,"GYEONGSANGNAM-DO",11]
[null,null,null,null,null,null,"BUSAN",12]
[null,null,null,null,null,null,"SEÚL",13]
[null,null,null,null,null,null,"DAEGU",14]
[null,null,null,null,null,null,"DAEJEON",15]
[null,null,null,null,null,null,"ULSÁN",16]
[null,null,null,null,null,null,"SEJONG",17]
[null,null,null,null,null,null,"ALMATYNSKAIA","00"]
[null,null,null,null,null,null,"KOSTANAISKAIA","01"]
[null,null,null,null,null,null,"SEVERO-KAZAKHSTANSK","02"]
[null,null,null,null,null,null,"PAVLODARSKAIA","03"]
[null,null,null,null,null,null,"AKMOLINSKAIA","04"]
[null,null,null,null,null,null,"AKTUBINSKAIA","05"]
[null,null,null,null,null,null,"ATYRAUSKAIA","06"]
[null,null,null,null,null,null,"ZAPADNO-KAZAKHST","07"]
[null,null,null,null,null,null,"MANGYSTAYSKAIA","08"]
[null,null,null,null,null,null,"KARAGANDINSKAIA","09"]
[null,null,null,null,null,null,"VOSTOCHNO-KAZAKHSTAN",10]
[null,null,null,null,null,null,"GAMBILSKAIA",11]
[null,null,null,null,null,null,"KYZILORDINSKAIA",12]
[null,null,null,null,null,null,"AGUASCALIENTES","AGS"]
[null,null,null,null,null,null,"BAJA CALIFORNIA","BC"]
[null,null,null,null,null,null,"BAJA CALIFORNIA S","BCS"]
[null,null,null,null,null,null,"CHIHUAHUA","CHI"]
[null,null,null,null,null,null,"CHIAPAS","CHS"]
[null,null,null,null,null,null,"CAMPECHE","CMP"]
[null,null,null,null,null,null,"COAHUILA","COA"]
[null,null,null,null,null,null,"COLIMA","COL"]
[null,null,null,null,null,null,"DISTRITO FEDERAL","DF"]
[null,null,null,null,null,null,"DURANGO","DGO"]
[null,null,null,null,null,null,"GUERRERO","GRO"]
[null,null,null,null,null,null,"GUANAJUATO","GTO"]
[null,null,null,null,null,null,"HIDALGO","HGO"]
[null,null,null,null,null,null,"JALISCO","JAL"]
[null,null,null,null,null,null,"MICHOACÁN","MCH"]
[null,null,null,null,null,null,"ESTADO DE MÉXICO","MEX"]
[null,null,null,null,null,null,"MORELOS","MOR"]
[null,null,null,null,null,null,"NAYARIT","NAY"]
[null,null,null,null,null,null,"NUEVO LEÓN","NL"]
[null,null,null,null,null,null,"OAXACA","OAX"]
[null,null,null,null,null,null,"PUEBLA","PUE"]
[null,null,null,null,null,null,"QUINTANA ROO","QR"]
[null,null,null,null,null,null,"QUERÉTARO","QRO"]
[null,null,null,null,null,null,"SINALOA","SIN"]
[null,null,null,null,null,null,"SAN LUIS POTOSÍ","SLP"]
[null,null,null,null,null,null,"SONORA","SON"]
[null,null,null,null,null,null,"TABASCO","TAB"]
[null,null,null,null,null,null,"TLAXCALA","TLX"]
[null,null,null,null,null,null,"TAMAULIPAS","TMS"]
[null,null,null,null,null,null,"VERACRUZ","VER"]
[null,null,null,null,null,null,"YUCATÁN","YUC"]
[null,null,null,null,null,null,"ZACATECAS","ZAC"]
[null,null,null,null,null,null,"DRENTHE","01"]
[null,null,null,null,null,null,"FLEVOLAND","02"]
[null,null,null,null,null,null,"FRISIA","03"]
[null,null,null,null,null,null,"GELDERLAND","04"]
[null,null,null,null,null,null,"GRONINGEN","05"]
[null,null,null,null,null,null,"LIMBURGO","06"]
[null,null,null,null,null,null,"NOORD-BRABANT","07"]
[null,null,null,null,null,null,"NOORD-HOLLAND","08"]
[null,null,null,null,null,null,"OVERIJSSEL","09"]
[null,null,null,null,null,null,"UTRECHT",10]
[null,null,null,null,null,null,"ZEELAND",11]
[null,null,null,null,null,null,"ZUID-HOLLAND",12]
[null,null,null,null,null,null,"ØSTFOLD FYLKE","01"]
[null,null,null,null,null,null,"AKERSHUS FYLKE","02"]
[null,null,null,null,null,null,"OSLO","03"]
[null,null,null,null,null,null,"HEDMARK FYLKE","04"]
[null,null,null,null,null,null,"OPPLAND FYLKE","05"]
[null,null,null,null,null,null,"BUSKERUD FYLKE","06"]
[null,null,null,null,null,null,"VESTFOLD FYLKE","07"]
[null,null,null,null,null,null,"TELEMARK FYLKE","08"]
[null,null,null,null,null,null,"AUST-AGDER FYLKE","09"]
[null,null,null,null,null,null,"VEST-AGDER FYLKE",10]
[null,null,null,null,null,null,"ROGALAND FYLKE",11]
[null,null,null,null,null,null,"HORDALAND FYLKE",12]
[null,null,null,null,null,null,"SOGN OG FJORDANE F.",14]
[null,null,null,null,null,null,"MØRE OG ROMSDAL F.",15]
[null,null,null,null,null,null,"SØR-TRØNDELAG FYLKE",16]
[null,null,null,null,null,null,"NORD-TRØNDELAG FYLKE",17]
[null,null,null,null,null,null,"NORDLAND FYLKE",18]
[null,null,null,null,null,null,"TROMS FYLKE",19]
[null,null,null,null,null,null,"FINNMARK FYLKE",20]
[null,null,null,null,null,null,"AUCKLAND","AKL"]
[null,null,null,null,null,null,"BAY OF PLENTY","BOP"]
[null,null,null,null,null,null,"CANTERBURY","CAN"]
[null,null,null,null,null,null,"HAWKE´S BAY","HAB"]
[null,null,null,null,null,null,"MANAWATU-WANGANUI","MAN"]
[null,null,null,null,null,null,"NORTHLAND","NTL"]
[null,null,null,null,null,null,"OTAGO","OTA"]
[null,null,null,null,null,null,"SOUTHLAND","STL"]
[null,null,null,null,null,null,"TARANAKI","TAR"]
[null,null,null,null,null,null,"WAIKATO","WAI"]
[null,null,null,null,null,null,"WEST COAST","WEC"]
[null,null,null,null,null,null,"WELLINGTON","WLG"]
[null,null,null,null,null,null,"TUMBES","01"]
[null,null,null,null,null,null,"PIURA","02"]
[null,null,null,null,null,null,"LAMBAYEQUE","03"]
[null,null,null,null,null,null,"LA LIBERTAD","04"]
[null,null,null,null,null,null,"ANCASH","05"]
[null,null,null,null,null,null,"LIMA Y CALLAO","06"]
[null,null,null,null,null,null,"ICA","07"]
[null,null,null,null,null,null,"AREQUIPA","08"]
[null,null,null,null,null,null,"MOQUEGUA","09"]
[null,null,null,null,null,null,"TACNA",10]
[null,null,null,null,null,null,"AMAZONAS",11]
[null,null,null,null,null,null,"CAJAMARCA",12]
[null,null,null,null,null,null,"SAN MARTÍN",13]
[null,null,null,null,null,null,"HUÁNUCO",14]
[null,null,null,null,null,null,"PASCO",15]
[null,null,null,null,null,null,"JUNÍN",16]
[null,null,null,null,null,null,"HUANCAVELICA",17]
[null,null,null,null,null,null,"AYACUCHO",18]
[null,null,null,null,null,null,"APURIMAC",19]
[null,null,null,null,null,null,"CUZCO",20]
[null,null,null,null,null,null,"PUNO",21]
[null,null,null,null,null,null,"LORETO",22]
[null,null,null,null,null,null,"UCAYALI",23]
[null,null,null,null,null,null,"MADRE DE DÍOS",24]
[null,null,null,null,null,null,"ILOCOS","01"]
[null,null,null,null,null,null,"CAGAYAN VALLEY","02"]
[null,null,null,null,null,null,"CENTRAL LUZON","03"]
[null,null,null,null,null,null,"SOUTH LUZON","04"]
[null,null,null,null,null,null,"BICOL","05"]
[null,null,null,null,null,null,"WEST VISAYAS","06"]
[null,null,null,null,null,null,"CNTRL VISAYAS","07"]
[null,null,null,null,null,null,"EAST VISAYAS","08"]
[null,null,null,null,null,null,"WEST MINDANAO","09"]
[null,null,null,null,null,null,"NORTH MINDANAO",10]
[null,null,null,null,null,null,"CNTRL MINDANAO",11]
[null,null,null,null,null,null,"SOUTH MINDANAO",12]
[null,null,null,null,null,null,"DOLNOSLASKIE","DSL"]
[null,null,null,null,null,null,"KUJAWSKO-POMORSKIE","K-P"]
[null,null,null,null,null,null,"LUBELSKIE","LBL"]
[null,null,null,null,null,null,"LUBUSKIE","LBS"]
[null,null,null,null,null,null,"LÓDZKIE","LDZ"]
[null,null,null,null,null,null,"MALOPOLSKIE","MAL"]
[null,null,null,null,null,null,"MAZOWIECKIE","MAZ"]
[null,null,null,null,null,null,"OPOLSKIE","OPO"]
[null,null,null,null,null,null,"PODKARPACKIE","PDK"]
[null,null,null,null,null,null,"PODLASKIE","PDL"]
[null,null,null,null,null,null,"POMORSKIE","POM"]
[null,null,null,null,null,null,"SLASKIE","SLS"]
[null,null,null,null,null,null,"SWIETOKRZYSKIE","SWK"]
[null,null,null,null,null,null,"WARMINSKO-MAZURSKIE","W-M"]
[null,null,null,null,null,null,"WIELKOPOLSKIE","WLK"]
[null,null,null,null,null,null,"ZACHODNIO-POMORSKIE","Z-P"]
[null,null,null,null,null,null,"MINHO-LIMA",10]
[null,null,null,null,null,null,"CÁVADO",11]
[null,null,null,null,null,null,"AVE",12]
[null,null,null,null,null,null,"GRANDE PORTO",13]
[null,null,null,null,null,null,"TÂMEGA",14]
[null,null,null,null,null,null,"ENTRE DOURO E VOUGA",15]
[null,null,null,null,null,null,"DOURO",16]
[null,null,null,null,null,null,"ALTO TRÁS-OS-MONTES",17]
[null,null,null,null,null,null,"BAIXO VOUGA",20]
[null,null,null,null,null,null,"BAIXO MONDEGO",21]
[null,null,null,null,null,null,"PINHAL LITORAL",22]
[null,null,null,null,null,null,"PINHAL INTERIOR N.",23]
[null,null,null,null,null,null,"PINHAL INTERIOR SUL",24]
[null,null,null,null,null,null,"DÃO-LAFOES",25]
[null,null,null,null,null,null,"SERRA DA ESTRELA",26]
[null,null,null,null,null,null,"BEIRA INTERIOR NORTE",27]
[null,null,null,null,null,null,"BEIRA INTERIOR SUL",28]
[null,null,null,null,null,null,"COVA DA BEIRA",29]
[null,null,null,null,null,null,"OESTE",30]
[null,null,null,null,null,null,"GRANDE LISBOA",31]
[null,null,null,null,null,null,"PENÍNSULA DE SETÚBAL",32]
[null,null,null,null,null,null,"MÉDIO TEJO",33]
[null,null,null,null,null,null,"LEZÍRIA DO TEJO",34]
[null,null,null,null,null,null,"ALENTEJO LITORAL",40]
[null,null,null,null,null,null,"ALTO ALENTEJO",41]
[null,null,null,null,null,null,"ALENTEJO CENTRAL",42]
[null,null,null,null,null,null,"BAIXO ALENTEJO",43]
[null,null,null,null,null,null,"ALGARVE",50]
[null,null,null,null,null,null,"REG.AUT.DOS AÇORES",60]
[null,null,null,null,null,null,"REG.AUT.DA MADEIRA",70]
[null,null,null,null,null,null,"ALBA","01"]
[null,null,null,null,null,null,"ARAD","02"]
[null,null,null,null,null,null,"ARGES","03"]
[null,null,null,null,null,null,"BACAU","04"]
[null,null,null,null,null,null,"BIHOR","05"]
[null,null,null,null,null,null,"BISTRITA-NASAUD","06"]
[null,null,null,null,null,null,"BOTOSANI","07"]
[null,null,null,null,null,null,"BRAILA","08"]
[null,null,null,null,null,null,"BRASOV","09"]
[null,null,null,null,null,null,"BUCURESTI",10]
[null,null,null,null,null,null,"BUZAU",11]
[null,null,null,null,null,null,"CALARASI",12]
[null,null,null,null,null,null,"CARAS-SEVERIN",13]
[null,null,null,null,null,null,"CLUJ",14]
[null,null,null,null,null,null,"CONSTANTA",15]
[null,null,null,null,null,null,"COVASNA",16]
[null,null,null,null,null,null,"DIMBOVITA",17]
[null,null,null,null,null,null,"DOLJ",18]
[null,null,null,null,null,null,"GALATI",19]
[null,null,null,null,null,null,"GORJ",20]
[null,null,null,null,null,null,"GIURGIU",21]
[null,null,null,null,null,null,"HARGHITA",22]
[null,null,null,null,null,null,"HUNEDOARA",23]
[null,null,null,null,null,null,"IALOMITA",24]
[null,null,null,null,null,null,"IASI",25]
[null,null,null,null,null,null,"ILFOV",26]
[null,null,null,null,null,null,"MARAMURES",27]
[null,null,null,null,null,null,"MEHEDINTI",28]
[null,null,null,null,null,null,"MURES",29]
[null,null,null,null,null,null,"NEAMT",30]
[null,null,null,null,null,null,"OLT",31]
[null,null,null,null,null,null,"PRAHOVA",32]
[null,null,null,null,null,null,"SALAJ",33]
[null,null,null,null,null,null,"SATU MARE",34]
[null,null,null,null,null,null,"SIBIU",35]
[null,null,null,null,null,null,"SUCEAVA",36]
[null,null,null,null,null,null,"TELEORMAN",37]
[null,null,null,null,null,null,"TIMIS",38]
[null,null,null,null,null,null,"TULCEA",39]
[null,null,null,null,null,null,"VASLUI",40]
[null,null,null,null,null,null,"VILCEA",41]
[null,null,null,null,null,null,"VRANCEA",42]
[null,null,null,null,null,null,"REPÚBLICA ADIGUESIA","01"]
[null,null,null,null,null,null,"REP.TIER.ALTAS ALTÁI","02"]
[null,null,null,null,null,null,"REP.BASHKORTOSTÁN","03"]
[null,null,null,null,null,null,"REPÚBLICA BURIATIA","04"]
[null,null,null,null,null,null,"REPÚBLICA DAGUESTÁN","05"]
[null,null,null,null,null,null,"REPÚBLICA INGUSHETIA","06"]
[null,null,null,null,null,null,"R.KABARDINA-BALKARIA","07"]
[null,null,null,null,null,null,"REPÚBLICA CALMUQUIA","08"]
[null,null,null,null,null,null,"KARACHIEVO-CHERKESIA","09"]
[null,null,null,null,null,null,"REPÚBLICA CARELIA",10]
[null,null,null,null,null,null,"REPÚBLICA KOMI",11]
[null,null,null,null,null,null,"REPÚBLICA MARI",12]
[null,null,null,null,null,null,"REPÚBLICA MORDOVIA",13]
[null,null,null,null,null,null,"YAKUTIYA-SAHA RREPUB",14]
[null,null,null,null,null,null,"REP.OSETIA DEL NORTE",15]
[null,null,null,null,null,null,"REPÚBLICA TARTARIA",16]
[null,null,null,null,null,null,"REPÚBLICA TUVA",17]
[null,null,null,null,null,null,"REPÚBLICA UDMURTIA",18]
[null,null,null,null,null,null,"REPÚBLICA JACASIA",19]
[null,null,null,null,null,null,"REPÚBLICA CHECHENIA",20]
[null,null,null,null,null,null,"REPÚBLICA CHUVASHIA",21]
[null,null,null,null,null,null,"TERRITORIO ALTÁI",22]
[null,null,null,null,null,null,"TERRITORIO KRASNODAR",23]
[null,null,null,null,null,null,"TERRIT.KRASNOYARSK",24]
[null,null,null,null,null,null,"TERRITORIO PRIMORYE",25]
[null,null,null,null,null,null,"TERRITORIO STAVROPOL",26]
[null,null,null,null,null,null,"TERRIT.KHABAROVSK",27]
[null,null,null,null,null,null,"ÁREA DE AMUR",28]
[null,null,null,null,null,null,"ÁREA DE ARKHANGELSK",29]
[null,null,null,null,null,null,"ÁREA DE ASTRACÁN",30]
[null,null,null,null,null,null,"ÁREA DE BELGOROD",31]
[null,null,null,null,null,null,"ÁREA DE BRYANSK",32]
[null,null,null,null,null,null,"ÁREA DE VLADÍMIR",33]
[null,null,null,null,null,null,"ÁREA DE VOLGOGRADO",34]
[null,null,null,null,null,null,"ÁREA DE VOLOGDA",35]
[null,null,null,null,null,null,"ÁREA DE VORÓNEZH",36]
[null,null,null,null,null,null,"ÁREA DE IVÁNOVO",37]
[null,null,null,null,null,null,"ÁREA DE IRKUTSK",38]
[null,null,null,null,null,null,"ÁREA DE KALININGRADO",39]
[null,null,null,null,null,null,"ÁREA DE KALUGA",40]
[null,null,null,null,null,null,"ÁREA DE KAMCHATKA",41]
[null,null,null,null,null,null,"ÁREA DE KEMEROVO",42]
[null,null,null,null,null,null,"ÁREA DE KÍROV",43]
[null,null,null,null,null,null,"ÁREA DE KOSTROMÁ",44]
[null,null,null,null,null,null,"ÁREA DE KURGÁN",45]
[null,null,null,null,null,null,"ÁREA DE KURSK",46]
[null,null,null,null,null,null,"ÁREA DE LENINGRADO",47]
[null,null,null,null,null,null,"ÁREA DE LÍPETSK",48]
[null,null,null,null,null,null,"ÁREA DE MAGADÁN",49]
[null,null,null,null,null,null,"ÁREA DE MOSCÚ",50]
[null,null,null,null,null,null,"ÁREA DE MÚRMANSK",51]
[null,null,null,null,null,null,"NIZNI NÓVGOROD",52]
[null,null,null,null,null,null,"ÁREA DE NÓVGOROD",53]
[null,null,null,null,null,null,"ÁREA DE NOVOSIBIRSK",54]
[null,null,null,null,null,null,"ÁREA DE OMSK",55]
[null,null,null,null,null,null,"ÁREA DE ORENBURG",56]
[null,null,null,null,null,null,"ÁREA DE ORIOL",57]
[null,null,null,null,null,null,"ÁREA DE PENZA",58]
[null,null,null,null,null,null,"TERRITORIO DE PERM",59]
[null,null,null,null,null,null,"ÁREA DE PSKOV",60]
[null,null,null,null,null,null,"ÁREA ROSTOV DEL DON",61]
[null,null,null,null,null,null,"ÁREA DE RIAZÁN",62]
[null,null,null,null,null,null,"ÁREA DE SAMARA",63]
[null,null,null,null,null,null,"ÁREA DE SARÁTOV",64]
[null,null,null,null,null,null,"ÁREA DE SAKHALIN",65]
[null,null,null,null,null,null,"ÁREA DE SVERDLOVSK",66]
[null,null,null,null,null,null,"ÁREA DE SMOLENSK",67]
[null,null,null,null,null,null,"ÁREA DE TAMBOV",68]
[null,null,null,null,null,null,"ÁREA DE TVER",69]
[null,null,null,null,null,null,"ÁREA DE TOMSK",70]
[null,null,null,null,null,null,"ÁREA DE TULA",71]
[null,null,null,null,null,null,"ÁREA DE TYUMEN",72]
[null,null,null,null,null,null,"ÁREA DE SIMBIRSK",73]
[null,null,null,null,null,null,"ÁREA DE CHELÍABINSK",74]
[null,null,null,null,null,null,"ÁREA DE ZABAIKALSK",75]
[null,null,null,null,null,null,"ÁREA DE YAROSLAVL",76]
[null,null,null,null,null,null,"CANAL DE MOSCÚ",77]
[null,null,null,null,null,null,"C.ST-PETERBURG",78]
[null,null,null,null,null,null,"ÁREA AUTONOM.JUDÍA",79]
[null,null,null,null,null,null,"DI.AUT.AGINSK BURYAT",80]
[null,null,null,null,null,null,"DI.AUT.KOMY PERMJATS",81]
[null,null,null,null,null,null,"DISTR.AUTON.KORJACS",82]
[null,null,null,null,null,null,"DISTR.AUT.NENEKCHKY",83]
[null,null,null,null,null,null,"DISTR.AUTON.TAYMIR",84]
[null,null,null,null,null,null,"UST-ORDINSKY BURYAT",85]
[null,null,null,null,null,null,"DIS.CHANTI-MANSYJSKY",86]
[null,null,null,null,null,null,"DISTR.AUTON.CHUKOTKA",87]
[null,null,null,null,null,null,"DISTR.AUTON.EVENSKY",88]
[null,null,null,null,null,null,"DIS.JAMALO-NENEKCHKY",89]
[null,null,null,null,null,null,"BLEKINGE LÄN","01"]
[null,null,null,null,null,null,"DALARNAS LÄN","02"]
[null,null,null,null,null,null,"GOTLANDS LÄN","03"]
[null,null,null,null,null,null,"GÄVLEBORGS LÄN","04"]
[null,null,null,null,null,null,"HALLANDS LÄN","05"]
[null,null,null,null,null,null,"JÄMTLANDS LÄN","06"]
[null,null,null,null,null,null,"JÖNKÖPINGS LÄN","07"]
[null,null,null,null,null,null,"KALMAR LÄN","08"]
[null,null,null,null,null,null,"KRONOBERGS LÄN","09"]
[null,null,null,null,null,null,"NORRBOTTENS LÄN",10]
[null,null,null,null,null,null,"SKÅNE LÄN",11]
[null,null,null,null,null,null,"STOCKHOLMS LÄN",12]
[null,null,null,null,null,null,"SÖDERMANLANDS LÄN",13]
[null,null,null,null,null,null,"UPPSALA LÄN",14]
[null,null,null,null,null,null,"VÄRMLANDS LÄN",15]
[null,null,null,null,null,null,"VÄSTERBOTTENS LÄN",16]
[null,null,null,null,null,null,"VÄSTERNORRLANDS LÄN",17]
[null,null,null,null,null,null,"VÄSTMANLANDS LÄN",18]
[null,null,null,null,null,null,"VÄSTRA GÖTALANDS LÄN",19]
[null,null,null,null,null,null,"ÖREBRO LÄN",20]
[null,null,null,null,null,null,"ÖSTERGÖTLANDS LÄN",21]
[null,null,null,null,null,null,"SINGAPUR","SG"]
[null,null,null,null,null,null,"AJDOVSCINA","01"]
[null,null,null,null,null,null,"BREZICE","02"]
[null,null,null,null,null,null,"CELJE","03"]
[null,null,null,null,null,null,"CERKNICA","04"]
[null,null,null,null,null,null,"CRNOMELJ","05"]
[null,null,null,null,null,null,"DRAVOGRAD","06"]
[null,null,null,null,null,null,"GORNJA RADGONA","07"]
[null,null,null,null,null,null,"GROSUPLJE","08"]
[null,null,null,null,null,null,"HRASTNIK LASKO","09"]
[null,null,null,null,null,null,"IDRIJA",10]
[null,null,null,null,null,null,"ILIRSKA BISTRICA",11]
[null,null,null,null,null,null,"IZOLA",12]
[null,null,null,null,null,null,"JESENICE",13]
[null,null,null,null,null,null,"KAMNIK",14]
[null,null,null,null,null,null,"KOCEVJE",15]
[null,null,null,null,null,null,"KOPER",16]
[null,null,null,null,null,null,"KRANJ",17]
[null,null,null,null,null,null,"KRSKO",18]
[null,null,null,null,null,null,"LENART",19]
[null,null,null,null,null,null,"LENDAVA",20]
[null,null,null,null,null,null,"LITIJA",21]
[null,null,null,null,null,null,"LJUBLJANA-BEZIGRAD",22]
[null,null,null,null,null,null,"LJUBLJANA-CENTER",23]
[null,null,null,null,null,null,"LJUBLJANA-MOSTE-POLJ",24]
[null,null,null,null,null,null,"LJUBLJANA-SISKA",25]
[null,null,null,null,null,null,"LJUBLJANA-VIC-RUDNIK",26]
[null,null,null,null,null,null,"LJUTOMER",27]
[null,null,null,null,null,null,"LOGATEC",28]
[null,null,null,null,null,null,"MARIBOR",29]
[null,null,null,null,null,null,"METLIKA",30]
[null,null,null,null,null,null,"MOZIRJE",31]
[null,null,null,null,null,null,"MURSKA SOBOTA",32]
[null,null,null,null,null,null,"NOVA GORICA",33]
[null,null,null,null,null,null,"NOVO MESTO",34]
[null,null,null,null,null,null,"ORMOZ",35]
[null,null,null,null,null,null,"PESNICA",36]
[null,null,null,null,null,null,"PIRAN",37]
[null,null,null,null,null,null,"POSTOJNA",38]
[null,null,null,null,null,null,"PTUJ",39]
[null,null,null,null,null,null,"RADLJE OB DRAVI",40]
[null,null,null,null,null,null,"RADOVLJICA",41]
[null,null,null,null,null,null,"RAVNE NA KOROSKEM",42]
[null,null,null,null,null,null,"RIBNICA",43]
[null,null,null,null,null,null,"RUSE",44]
[null,null,null,null,null,null,"SENTJUR PRI CELJU",45]
[null,null,null,null,null,null,"SEVNICA",46]
[null,null,null,null,null,null,"SEZANA",47]
[null,null,null,null,null,null,"SKOFJA LOKA",48]
[null,null,null,null,null,null,"SLOVENJ GRADEC",49]
[null,null,null,null,null,null,"SLOVENSKA BISTRICA",50]
[null,null,null,null,null,null,"SLOVENSKE KONJICE",51]
[null,null,null,null,null,null,"SMARJE PRI JELSAH",52]
[null,null,null,null,null,null,"TOLMIN",53]
[null,null,null,null,null,null,"TRBOVLJE",54]
[null,null,null,null,null,null,"TREBNJE",55]
[null,null,null,null,null,null,"TRZIC",56]
[null,null,null,null,null,null,"VELENJE",57]
[null,null,null,null,null,null,"VRHNIKA",58]
[null,null,null,null,null,null,"ZAGORJE OB SAVI",59]
[null,null,null,null,null,null,"ZALEC",60]
[null,null,null,null,null,null,"BRATISLAVA","01"]
[null,null,null,null,null,null,"ZAPADOSLOVENSKY","02"]
[null,null,null,null,null,null,"STREDOSLOVENSKY","03"]
[null,null,null,null,null,null,"VYCHODOSLOVENSKY","04"]
[null,null,null,null,null,null,"AMNAT CHAROEN","01"]
[null,null,null,null,null,null,"ANG THONG","02"]
[null,null,null,null,null,null,"BURIRAM","03"]
[null,null,null,null,null,null,"CHACHOENGSAO","04"]
[null,null,null,null,null,null,"CHAI NAT","05"]
[null,null,null,null,null,null,"CHAIYAPHUM","06"]
[null,null,null,null,null,null,"CHANTHABURI","07"]
[null,null,null,null,null,null,"CHIANG MAI","08"]
[null,null,null,null,null,null,"CHIANG RAI","09"]
[null,null,null,null,null,null,"CHON BURI",10]
[null,null,null,null,null,null,"CHUMPHON",11]
[null,null,null,null,null,null,"KALASIN",12]
[null,null,null,null,null,null,"KAMPHAENG PHET",13]
[null,null,null,null,null,null,"KANCHANABURI",14]
[null,null,null,null,null,null,"KHON KAEN",15]
[null,null,null,null,null,null,"KRABI",16]
[null,null,null,null,null,null,"KRUNG THEP",17]
[null,null,null,null,null,null,"MAHANAKHON",18]
[null,null,null,null,null,null,"LAMPANG",19]
[null,null,null,null,null,null,"LAMPHUN",20]
[null,null,null,null,null,null,"LOEI",21]
[null,null,null,null,null,null,"LOP BURI",22]
[null,null,null,null,null,null,"MAE HONG SON",23]
[null,null,null,null,null,null,"MAHA SARAKHAM",24]
[null,null,null,null,null,null,"MUKDAHAN",25]
[null,null,null,null,null,null,"NAKHON NAYOK",26]
[null,null,null,null,null,null,"NAKHON PATHOM",27]
[null,null,null,null,null,null,"NAKHON PHANOM",28]
[null,null,null,null,null,null,"NAKHON RATCHASIMA",29]
[null,null,null,null,null,null,"NAKHON SAWAN",30]
[null,null,null,null,null,null,"NAKHON SI THAMMARAT",31]
[null,null,null,null,null,null,"NAN",32]
[null,null,null,null,null,null,"NARATHIWAT",33]
[null,null,null,null,null,null,"NONG BUA LAMPHU",34]
[null,null,null,null,null,null,"NONG KHAI",35]
[null,null,null,null,null,null,"NONTHABURI",36]
[null,null,null,null,null,null,"PATHUM THANI",37]
[null,null,null,null,null,null,"PATTANI",38]
[null,null,null,null,null,null,"PHANGNGA",39]
[null,null,null,null,null,null,"PHATTHALUNG",40]
[null,null,null,null,null,null,"PHAYAO",41]
[null,null,null,null,null,null,"PHETCHABUN",42]
[null,null,null,null,null,null,"PHETCHABURI",43]
[null,null,null,null,null,null,"PHICHIT",44]
[null,null,null,null,null,null,"PHITSANULOK",45]
[null,null,null,null,null,null,"PHRA NAKHON SI AYUT.",46]
[null,null,null,null,null,null,"PHRAE",47]
[null,null,null,null,null,null,"PHUKET",48]
[null,null,null,null,null,null,"PRACHIN BURI",49]
[null,null,null,null,null,null,"ADANA","01"]
[null,null,null,null,null,null,"ADIYAMAN","02"]
[null,null,null,null,null,null,"AFYON","03"]
[null,null,null,null,null,null,"AGRI","04"]
[null,null,null,null,null,null,"AMASYA","05"]
[null,null,null,null,null,null,"ANKARA","06"]
[null,null,null,null,null,null,"ANTALYA","07"]
[null,null,null,null,null,null,"ARTVIN","08"]
[null,null,null,null,null,null,"AYDIN","09"]
[null,null,null,null,null,null,"BALIKESIR",10]
[null,null,null,null,null,null,"BILECIK",11]
[null,null,null,null,null,null,"BINGÖL",12]
[null,null,null,null,null,null,"BITLIS",13]
[null,null,null,null,null,null,"BOLU",14]
[null,null,null,null,null,null,"BURDUR",15]
[null,null,null,null,null,null,"BURSA",16]
[null,null,null,null,null,null,"CANAKKALE",17]
[null,null,null,null,null,null,"CANKIRI",18]
[null,null,null,null,null,null,"CORUM",19]
[null,null,null,null,null,null,"DENIZLI",20]
[null,null,null,null,null,null,"DIYARBAKIR",21]
[null,null,null,null,null,null,"EDIRNE",22]
[null,null,null,null,null,null,"ELAZIG",23]
[null,null,null,null,null,null,"ERZINCAN",24]
[null,null,null,null,null,null,"ERZURUM",25]
[null,null,null,null,null,null,"ESKISEHIR",26]
[null,null,null,null,null,null,"GAZIANTEP",27]
[null,null,null,null,null,null,"GIRESUN",28]
[null,null,null,null,null,null,"GÜMÜSHANE",29]
[null,null,null,null,null,null,"HAKKARI",30]
[null,null,null,null,null,null,"HATAY",31]
[null,null,null,null,null,null,"ISPARTA",32]
[null,null,null,null,null,null,"ICEL",33]
[null,null,null,null,null,null,"ESTANBUL",34]
[null,null,null,null,null,null,"ESMIRNA",35]
[null,null,null,null,null,null,"KARS",36]
[null,null,null,null,null,null,"KASTAMONU",37]
[null,null,null,null,null,null,"KAYSERI",38]
[null,null,null,null,null,null,"KIRKLARELI",39]
[null,null,null,null,null,null,"KIRSHEHIR",40]
[null,null,null,null,null,null,"KOCAELI",41]
[null,null,null,null,null,null,"KONYA",42]
[null,null,null,null,null,null,"KÜTAHYA",43]
[null,null,null,null,null,null,"MALATYA",44]
[null,null,null,null,null,null,"MANISA",45]
[null,null,null,null,null,null,"K.MARASH",46]
[null,null,null,null,null,null,"MARDIN",47]
[null,null,null,null,null,null,"MUGLA",48]
[null,null,null,null,null,null,"MUSH",49]
[null,null,null,null,null,null,"NEVSHEHIR",50]
[null,null,null,null,null,null,"NIGDE",51]
[null,null,null,null,null,null,"ORDU",52]
[null,null,null,null,null,null,"RIZE",53]
[null,null,null,null,null,null,"SAKARYA",54]
[null,null,null,null,null,null,"SAMSUN",55]
[null,null,null,null,null,null,"SIIRT",56]
[null,null,null,null,null,null,"SINOP",57]
[null,null,null,null,null,null,"SIVAS",58]
[null,null,null,null,null,null,"TEKIRDAG",59]
[null,null,null,null,null,null,"TOKAT",60]
[null,null,null,null,null,null,"TRABZON",61]
[null,null,null,null,null,null,"TUNCELI",62]
[null,null,null,null,null,null,"SHANLIURFA",63]
[null,null,null,null,null,null,"USHAK",64]
[null,null,null,null,null,null,"VAN",65]
[null,null,null,null,null,null,"YOZGAT",66]
[null,null,null,null,null,null,"ZONGULDAK",67]
[null,null,null,null,null,null,"AKSARAY",68]
[null,null,null,null,null,null,"BAYBURT",69]
[null,null,null,null,null,null,"KARAMAN",70]
[null,null,null,null,null,null,"KIRIKKALE",71]
[null,null,null,null,null,null,"BATMAN",72]
[null,null,null,null,null,null,"SHIRNAK",73]
[null,null,null,null,null,null,"BARTIN",74]
[null,null,null,null,null,null,"ARDAHAN",75]
[null,null,null,null,null,null,"IGDIR",76]
[null,null,null,null,null,null,"YALOVA",77]
[null,null,null,null,null,null,"FU-CHIEN","FJN"]
[null,null,null,null,null,null,"KAO-HSIUNG","KSH"]
[null,null,null,null,null,null,"T´AI-PEI","TPE"]
[null,null,null,null,null,null,"TAIWÁN","TWN"]
[null,null,null,null,null,null,"CHERNIGIVS'KA","CHG"]
[null,null,null,null,null,null,"CHERKAS'KA","CHR"]
[null,null,null,null,null,null,"CHERNOVITS'KA","CHV"]
[null,null,null,null,null,null,"DNIPROPETROVS'KA","DNP"]
[null,null,null,null,null,null,"DONETS'KA","DON"]
[null,null,null,null,null,null,"HARKIVS'KA","HAR"]
[null,null,null,null,null,null,"HMEL'NITS'KA","HML"]
[null,null,null,null,null,null,"HERSONS'KA","HRS"]
[null,null,null,null,null,null,"IVANO-FRANKIVS'KA","IVF"]
[null,null,null,null,null,null,"KIEVS'KA","KIE"]
[null,null,null,null,null,null,"KIROVOGRADS'KA","KIR"]
[null,null,null,null,null,null,"RESPUBLIKA KRIM","KRM"]
[null,null,null,null,null,null,"L'VIVSBKA","L'V"]
[null,null,null,null,null,null,"LUGANS'KA","LUG"]
[null,null,null,null,null,null,"M.KIEV","M_K"]
[null,null,null,null,null,null,"M.SEVASTOPIL'","M_S"]
[null,null,null,null,null,null,"MIKOLAIVS'KA","MIK"]
[null,null,null,null,null,null,"ODES'KA","ODS"]
[null,null,null,null,null,null,"POLTAVS'KA","POL"]
[null,null,null,null,null,null,"RIVNENS'KA","RIV"]
[null,null,null,null,null,null,"SUMS'KA","SUM"]
[null,null,null,null,null,null,"TERNOPIL'S'KA","TER"]
[null,null,null,null,null,null,"VINNITS'KA","VIN"]
[null,null,null,null,null,null,"VOLINS'KA","VOL"]
[null,null,null,null,null,null,"ZAKARPATS'KA","ZAK"]
[null,null,null,null,null,null,"ZAPORIZ'KA","ZAP"]
[null,null,null,null,null,null,"ZHITOMIRS'KA","ZHI"]
[null,null,null,null,null,null,"ALASKA","AK"]
[null,null,null,null,null,null,"ALABAMA","AL"]
[null,null,null,null,null,null,"ARKANSAS","AR"]
[null,null,null,null,null,null,"SAMOA AMERICANA","AS"]
[null,null,null,null,null,null,"ARIZONA","AZ"]
[null,null,null,null,null,null,"CALIFORNIA","CA"]
[null,null,null,null,null,null,"COLORADO","CO"]
[null,null,null,null,null,null,"CONNECTICUT","CT"]
[null,null,null,null,null,null,"DISTRITO DE COLUMBIA","DC"]
[null,null,null,null,null,null,"DELAWARE","DE"]
[null,null,null,null,null,null,"FLORIDA","FL"]
[null,null,null,null,null,null,"GEORGIA","GA"]
[null,null,null,null,null,null,"GUAM","GU"]
[null,null,null,null,null,null,"HAWAI","HI"]
[null,null,null,null,null,null,"IOWA","IA"]
[null,null,null,null,null,null,"IDAHO","ID"]
[null,null,null,null,null,null,"ILLINOIS","IL"]
[null,null,null,null,null,null,"INDIANA","IN"]
[null,null,null,null,null,null,"KANSAS","KS"]
[null,null,null,null,null,null,"KENTUCKY","KY"]
[null,null,null,null,null,null,"LOUISIANA","LA"]
[null,null,null,null,null,null,"MASSACHUSETTS","MA"]
[null,null,null,null,null,null,"MARYLAND","MD"]
[null,null,null,null,null,null,"MAINE","ME"]
[null,null,null,null,null,null,"MICHIGAN","MI"]
[null,null,null,null,null,null,"MINNESOTA","MN"]
[null,null,null,null,null,null,"MISSOURI","MO"]
[null,null,null,null,null,null,"ISLAS MARIANA NORTE","MP"]
[null,null,null,null,null,null,"MISSISSIPPI","MS"]
[null,null,null,null,null,null,"MONTANA","MT"]
[null,null,null,null,null,null,"CAROLINA DEL NORTE","NC"]
[null,null,null,null,null,null,"DAKOTA DEL NORTE","ND"]
[null,null,null,null,null,null,"NEBRASKA","NE"]
[null,null,null,null,null,null,"NEW HAMPSHIRE","NH"]
[null,null,null,null,null,null,"NUEVA JERSEY","NJ"]
[null,null,null,null,null,null,"NUEVO MÉXICO","NM"]
[null,null,null,null,null,null,"NEVADA","NV"]
[null,null,null,null,null,null,"NUEVA YORK","NY"]
[null,null,null,null,null,null,"OHIO","OH"]
[null,null,null,null,null,null,"OKLAHOMA","OK"]
[null,null,null,null,null,null,"OREGÓN","OR"]
[null,null,null,null,null,null,"PENNSYLVANIA","PA"]
[null,null,null,null,null,null,"PUERTO RICO","PR"]
[null,null,null,null,null,null,"RHODE ISLAND","RI"]
[null,null,null,null,null,null,"CAROLINA DEL SUR","SC"]
[null,null,null,null,null,null,"DAKOTA DEL SUR","SD"]
[null,null,null,null,null,null,"TENNESSEE","TN"]
[null,null,null,null,null,null,"TEXAS","TX"]
[null,null,null,null,null,null,"UTAH","UT"]
[null,null,null,null,null,null,"VIRGINIA","VA"]
[null,null,null,null,null,null,"ISLAS VÍRGENES","VI"]
[null,null,null,null,null,null,"VERMONT","VT"]
[null,null,null,null,null,null,"WASHINGTON","WA"]
[null,null,null,null,null,null,"WISCONSIN","WI"]
[null,null,null,null,null,null,"VIRGINIA OCCIDENTAL","WV"]
[null,null,null,null,null,null,"WYOMING","WY"]
[null,null,null,null,null,null,"AMAZONAS","AMA"]
[null,null,null,null,null,null,"ANZOATEGUI","ANZ"]
[null,null,null,null,null,null,"APURE","APU"]
[null,null,null,null,null,null,"ARAGUA","ARA"]
[null,null,null,null,null,null,"BARINAS","BAR"]
[null,null,null,null,null,null,"BOLÍVAR","BOL"]
[null,null,null,null,null,null,"CARABOBO","CAR"]
[null,null,null,null,null,null,"COJEDES","COJ"]
[null,null,null,null,null,null,"DELTA AMACURO","DA"]
[null,null,null,null,null,null,"DISTRITO FEDERAL","DF"]
[null,null,null,null,null,null,"FALCON","FAL"]
[null,null,null,null,null,null,"GUARICO","GUA"]
[null,null,null,null,null,null,"LARA","LAR"]
[null,null,null,null,null,null,"MERIDA","MER"]
[null,null,null,null,null,null,"MIRANDA","MIR"]
[null,null,null,null,null,null,"MONAGAS","MON"]
[null,null,null,null,null,null,"NUEVA ESPARTA","NE"]
[null,null,null,null,null,null,"PORTUGUESA","POR"]
[null,null,null,null,null,null,"SUCRE","SUC"]
[null,null,null,null,null,null,"TACHIRA","TAC"]
[null,null,null,null,null,null,"TRUJILLO","TRU"]
[null,null,null,null,null,null,"VARGAS","VAR"]
[null,null,null,null,null,null,"YARACUY","YAR"]
[null,null,null,null,null,null,"ZULIA","ZUL"]
[null,null,null,null,null,null,"EASTERN CAPE","EC"]
[null,null,null,null,null,null,"FREE STATE","FS"]
[null,null,null,null,null,null,"LIMPOPO","LP"]
[null,null,null,null,null,null,"NORTHERN CAPE","NC"]
[null,null,null,null,null,null,"NORTH WEST","NW"]
[null,null,null,null,null,null,"WESTERN CAPE","WC"]
[null,null,null,null,null,null,"KWAZULU-NATAL","ZN"]